Workbook

Sheet 化工16级总表（排名）
A1: 序号 | B1: 班级 | C1: 姓名 | D1: 学号 | E1: 必修课成绩 | F1: 大一综测 | G1: 大二综测 | H1: 大三综测 | I1: 总分 | J1: 归一化总分 | K1: 保研总分 | L1: 必修课挂科 | M1: 选修课挂科 | N1: 四级至今没过 | O1: 体测至今没过
A2: 1 | B2: 化工16-1班 | C2: 崔世彤 | D2: 2016010411 | E2: 92.8608365 | F2: 102.8916552 | G2: 112.3161718 | H2: 122.3243196 | I2: =F2+G2+H2 -> 337.5321465 | J2: =I2/$I$2*100 -> 100 | K2: =E2*0.7+0.2*J2 -> 85.00258555 | L2: 无 | M2: 无 | N2: 无 | O2: 无
A3: 2 | B3: 化工16-4班 | C3: 吴艳芬 | D3: 2016010440 | E3: 92.09219331 | F3: 98.38046038 | G3: 107.0931742 | H3: 122.2025591 | I3: =F3+G3+H3 -> 327.6761936 | J3: =I3/$I$2*100 -> 97.07999579 | K3: =E3*0.7+0.2*J3 -> 83.88053447 | L3: 无 | M3: 无 | N3: 无 | O3: 无
A4: 3 | B4: 化工16-4班 | C4: 何姿颖 | D4: 2016010601 | E4: 90.43791822 | F4: 102.1248331 | G4: 115.591718 | H4: 118.0949305 | I4: =F4+G4+H4 -> 335.8114817 | J4: =I4/$I$2*100 -> 99.49022193 | K4: =E4*0.7+0.2*J4 -> 83.20458714 | L4: 无 | M4: 无 | N4: 无 | O4: 无
A5: 4 | B5: 化工16-1班 | C5: 张新意 | D5: 2016010431 | E5: 87.71863118 | F5: 101.7141034 | G5: 120.6667381 | H5: 111.7506643 | I5: =F5+G5+H5 -> 334.1315059 | J5: =I5/$I$2*100 -> 98.99249873 | K5: =E5*0.7+0.2*J5 -> 81.20154157 | L5: 无 | M5: 无 | N5: 无 | O5: 无
A6: 5 | B6: 化工16-4班 | C6: 张翔瑞 | D6: 2016010430 | E6: 87.19665428 | F6: 98.76931295 | G6: 105.9301492 | H6: 119.927269 | I6: =F6+G6+H6 -> 324.6267312 | J6: =I6/$I$2*100 -> 96.1765374 | K6: =E6*0.7+0.2*J6 -> 80.27296547 | L6: 无 | M6: 无 | N6: 无 | O6: 无
A7: 6 | B7: 化工16-4班 | C7: 宋明霞 | D7: 2016011809 | E7: 88.18475836 | F7: 94.0857277 | G7: 102.8718009 | H7: 101.9859515 | I7: =F7+G7+H7 -> 298.9434801 | J7: =I7/$I$2*100 -> 88.56741001 | K7: =E7*0.7+0.2*J7 -> 79.44281286 | L7: 无 | M7: 无 | N7: 无 | O7: 无
A8: 7 | B8: 化工16-2班 | C8: 程小杰 | D8: 2016010446 | E8: 88.50038023 | F8: 94.83416263 | G8: 97.54129308 | H8: 92.18708784 | I8: =F8+G8+H8 -> 284.5625436 | J8: =I8/$I$2*100 -> 84.30679758 | K8: =E8*0.7+0.2*J8 -> 78.81162568 | L8: 无 | M8: 无 | N8: 无 | O8: 无
A9: 8 | B9: 化工16-2班 | C9: 王璧琮 | D9: 2016010438 | E9: 88.22737643 | F9: 90.91911798 | G9: 91.8422447 | H9: 101.5399242 | I9: =F9+G9+H9 -> 284.3012869 | J9: =I9/$I$2*100 -> 84.22939558 | K9: =E9*0.7+0.2*J9 -> 78.60504261 | L9: 无 | M9: 无 | N9: 无 | O9: 无
A10: 9 | B10: 化工16-4班 | C10: 李昭颐 | D10: 2016010436 | E10: 87.63494424 | F10: 93.34142056 | G10: 99.62389806 | H10: 97.1744 | I10: =F10+G10+H10 -> 290.1397186 | J10: =I10/$I$2*100 -> 85.95913651 | K10: =E10*0.7+0.2*J10 -> 78.53628827 | L10: 无 | M10: 无 | N10: 无 | O10: 无
A11: 10 | B11: 化工16-1班 | C11: 冯江丽 | D11: 2016010401 | E11: 88.2243346 | F11: 92.14100052 | G11: 89.74260906 | H11: 96.65587879 | I11: =F11+G11+H11 -> 278.5394884 | J11: =I11/$I$2*100 -> 82.5223586 | K11: =E11*0.7+0.2*J11 -> 78.26150594 | L11: 无 | M11: 无 | N11: 无 | O11: 无
A12: 11 | B12: 化工16-4班 | C12: 徐晴 | D12: 2016011085 | E12: 87.21301115 | F12: 92.60898085 | G12: 99.06754988 | H12: 97.72067692 | I12: =F12+G12+H12 -> 289.3972076 | J12: =I12/$I$2*100 -> 85.73915421 | K12: =E12*0.7+0.2*J12 -> 78.19693865 | L12: 无 | M12: 无 | N12: 无 | O12: 无
A13: 12 | B13: 化工16-4班 | C13: 李建 | D13: 2016010545 | E13: 86.21821561 | F13: 100.4327937 | G13: 105.338933 | H13: 91.8872 | I13: =F13+G13+H13 -> 297.6589267 | J13: =I13/$I$2*100 -> 88.18683784 | K13: =E13*0.7+0.2*J13 -> 77.9901185 | L13: 无 | M13: 无 | N13: 无 | O13: 无
A14: 13 | B14: 化工16-1班 | C14: 丁婉艳 | D14: 2016010400 | E14: 88.04790875 | F14: 92.99113218 | G14: 90.53170584 | H14: 90.93527273 | I14: =F14+G14+H14 -> 274.4581108 | J14: =I14/$I$2*100 -> 81.3131767 | K14: =E14*0.7+0.2*J14 -> 77.89617146 | L14: 无 | M14: 无 | N14: 无 | O14: 无
A15: 14 | B15: 化工16-1班 | C15: 左长江 | D15: 2016010432 | E15: 86.90874525 | F15: 90.09985441 | G15: 92.30989939 | H15: 99.95818182 | I15: =F15+G15+H15 -> 282.3679356 | J15: =I15/$I$2*100 -> 83.65660531 | K15: =E15*0.7+0.2*J15 -> 77.56744273 | L15: 无 | M15: 无 | N15: 无 | O15: 无
A16: 15 | B16: 化工16-2班 | C16: 刘盛琨 | D16: 2016010452 | E16: 86.59695817 | F16: 93.07762219 | G16: 91.75415599 | H16: 95.18761945 | I16: =F16+G16+H16 -> 280.0193976 | J16: =I16/$I$2*100 -> 82.96080847 | K16: =E16*0.7+0.2*J16 -> 77.21003242 | L16: 无 | M16: 无 | N16: 无 | O16: 无
A17: 16 | B17: 化工16-1班 | C17: 盛奕琪 | D17: 2016010406 | E17: 86.9513308 | F17: 90.9757931 | G17: 90.5215338 | H17: 93.67675758 | I17: =F17+G17+H17 -> 275.1740845 | J17: =I17/$I$2*100 -> 81.52529686 | K17: =E17*0.7+0.2*J17 -> 77.17099093 | L17: 无 | M17: 无 | N17: 无 | O17: 无
A18: 17 | B18: 化工16-3班 | C18: 刘亮 | D18: 2016010469 | E18: 86.87528517 | F18: 91.12835808 | G18: 89.6729244 | H18: 92.47688889 | I18: =F18+G18+H18 -> 273.2781714 | J18: =I18/$I$2*100 -> 80.96359833 | K18: =E18*0.7+0.2*J18 -> 77.00541929 | L18: 无 | M18: 无 | N18: 无 | O18: 无
A19: 18 | B19: 化工16-3班 | C19: 刘恋 | D19: 2016010468 | E19: 86.96045627 | F19: 88.85600684 | G19: 88.23212626 | H19: 91.43206417 | I19: =F19+G19+H19 -> 268.5201973 | J19: =I19/$I$2*100 -> 79.5539625 | K19: =E19*0.7+0.2*J19 -> 76.78311189 | L19: 无 | M19: 无 | N19: 无 | O19: 无
A20: 19 | B20: 化工16-2班 | C20: 胡浩杰 | D20: 2016010449 | E20: 86.1026616 | F20: 91.68861798 | G20: 93.90576351 | H20: 92.77627252 | I20: =F20+G20+H20 -> 278.370654 | J20: =I20/$I$2*100 -> 82.47233837 | K20: =E20*0.7+0.2*J20 -> 76.76633079 | L20: 无 | M20: 无 | N20: 无 | O20: 无
A21: 20 | B21: 化工16-4班 | C21: 常兆恒 | D21: 2016010142 | E21: 84.58364312 | F21: 89.68024751 | G21: 101.9776703 | H21: 98.26426667 | I21: =F21+G21+H21 -> 289.9221844 | J21: =I21/$I$2*100 -> 85.89468808 | K21: =E21*0.7+0.2*J21 -> 76.3874878 | L21: 无 | M21: 无 | N21: 无 | O21: 有
A22: 21 | B22: 化工16-4班 | C22: 赵金 | D22: 2016011117 | E22: 85.31635688 | F22: 89.81998056 | G22: 94.95190291 | H22: 95.345 | I22: =F22+G22+H22 -> 280.1168835 | J22: =I22/$I$2*100 -> 82.98969042 | K22: =E22*0.7+0.2*J22 -> 76.3193879 | L22: 无 | M22: 无 | N22: 无 | O22: 无
A23: 22 | B23: 化工16-4班 | C23: 许杰 | D23: 2016011865 | E23: 84.17918216 | F23: 92.38698898 | G23: 99.64245514 | H23: 97.56233846 | I23: =F23+G23+H23 -> 289.5917826 | J23: =I23/$I$2*100 -> 85.79680056 | K23: =E23*0.7+0.2*J23 -> 76.08478762 | L23: 无 | M23: 无 | N23: 无 | O23: 无
A24: 23 | B24: 化工16-4班 | C24: 黄京平 | D24: 2016011185 | E24: 84.91486989 | F24: 89.84241943 | G24: 95.07049077 | H24: 93.2346 | I24: =F24+G24+H24 -> 278.1475102 | J24: =I24/$I$2*100 -> 82.40622798 | K24: =E24*0.7+0.2*J24 -> 75.92165452 | L24: 无 | M24: 无 | N24: 无 | O24: 无
A25: 24 | B25: 化工16-4班 | C25: 石韶霏 | D25: 2016010473 | E25: 84.7330855 | F25: 93.22863759 | G25: 94.29266351 | H25: 92.4932 | I25: =F25+G25+H25 -> 280.0145011 | J25: =I25/$I$2*100 -> 82.95935779 | K25: =E25*0.7+0.2*J25 -> 75.90503141 | L25: 无 | M25: 无 | N25: 无 | O25: 无
A26: 25 | B26: 化工16-3班 | C26: 任婧 | D26: 2016010472 | E26: 85.35589354 | F26: 88.95270933 | G26: 90.46752744 | H26: 92.47611765 | I26: =F26+G26+H26 -> 271.8963544 | J26: =I26/$I$2*100 -> 80.55421008 | K26: =E26*0.7+0.2*J26 -> 75.85996749 | L26: 无 | M26: 无 | N26: 无 | O26: 无
A27: 26 | B27: 化工16-1班 | C27: 张成霄 | D27: 2016010426 | E27: 85.16958175 | F27: 89.8901092 | G27: 90.59540476 | H27: 91.511 | I27: =F27+G27+H27 -> 271.996514 | J27: =I27/$I$2*100 -> 80.58388416 | K27: =E27*0.7+0.2*J27 -> 75.73548406 | L27: 无 | M27: 无 | N27: 无 | O27: 无
A28: 27 | B28: 化工16-2班 | C28: 苏小刚 | D28: 2016010456 | E28: 85.13688213 | F28: 87.50708149 | G28: 90.8150162 | H28: 92.20121192 | I28: =F28+G28+H28 -> 270.5233096 | J28: =I28/$I$2*100 -> 80.14742074 | K28: =E28*0.7+0.2*J28 -> 75.62530164 | L28: 无 | M28: 无 | N28: 无 | O28: 无
A29: 28 | B29: 化工16-1班 | C29: 袁俊涛 | D29: 2016010425 | E29: 84.9391635 | F29: 90.57052299 | G29: 85.09944777 | H29: 91.76909091 | I29: =F29+G29+H29 -> 267.4390617 | J29: =I29/$I$2*100 -> 79.23365653 | K29: =E29*0.7+0.2*J29 -> 75.30414575 | L29: 无 | M29: 无 | N29: 无 | O29: 无
A30: 29 | B30: 化工16-4班 | C30: 孟诗涵 | D30: 2016010666 | E30: 83.74349442 | F30: 94.26969972 | G30: 95.36897619 | H30: 90.28415385 | I30: =F30+G30+H30 -> 279.9228298 | J30: =I30/$I$2*100 -> 82.9321985 | K30: =E30*0.7+0.2*J30 -> 75.2068858 | L30: 无 | M30: 无 | N30: 无 | O30: 无
A31: 30 | B31: 化工16-2班 | C31: 徐凡 | D31: 2016010459 | E31: 84.43117871 | F31: 87.90883375 | G31: 90.67290061 | H31: 90.72502088 | I31: =F31+G31+H31 -> 269.3067552 | J31: =I31/$I$2*100 -> 79.78699451 | K31: =E31*0.7+0.2*J31 -> 75.059224 | L31: 无 | M31: 无 | N31: 无 | O31: 无
A32: 31 | B32: 化工16-4班 | C32: 揣云涵 | D32: 2016010935 | E32: 82.60074349 | F32: 94.79079352 | G32: 102.6598586 | H32: 92.14369231 | I32: =F32+G32+H32 -> 289.5943445 | J32: =I32/$I$2*100 -> 85.79755956 | K32: =E32*0.7+0.2*J32 -> 74.98003236 | L32: 有 | M32: 无 | N32: 无 | O32: 无
A33: 32 | B33: 化工16-2班 | C33: 司道润 | D33: 2016010455 | E33: 84.4486692 | F33: 90.92686997 | G33: 87.07165061 | H33: 87.38748649 | I33: =F33+G33+H33 -> 265.3860071 | J33: =I33/$I$2*100 -> 78.62540199 | K33: =E33*0.7+0.2*J33 -> 74.83914884 | L33: 无 | M33: 无 | N33: 无 | O33: 无
A34: 33 | B34: 化工16-4班 | C34: 杨鸿伟 | D34: 2016010876 | E34: 83.86877323 | F34: 90.0285799 | G34: 91.37364057 | H34: 89.90287273 | I34: =F34+G34+H34 -> 271.3050932 | J34: =I34/$I$2*100 -> 80.37903826 | K34: =E34*0.7+0.2*J34 -> 74.78394892 | L34: 无 | M34: 无 | N34: 无 | O34: 无
A35: 34 | B35: 化工16-4班 | C35: 高灿 | D35: 2016010690 | E35: 81.85501859 | F35: 94.77465343 | G35: 99.92389752 | H35: 97.54853333 | I35: =F35+G35+H35 -> 292.2470843 | J35: =I35/$I$2*100 -> 86.58348168 | K35: =E35*0.7+0.2*J35 -> 74.61520935 | L35: 无 | M35: 无 | N35: 无 | O35: 无
A36: 35 | B36: 化工16-4班 | C36: 章文昊 | D36: 2016010097 | E36: 83.43977695 | F36: 88.74504685 | G36: 90.67389644 | H36: 90.44929412 | I36: =F36+G36+H36 -> 269.8682374 | J36: =I36/$I$2*100 -> 79.95334375 | K36: =E36*0.7+0.2*J36 -> 74.39851262 | L36: 无 | M36: 无 | N36: 无 | O36: 无
A37: 36 | B37: 化工16-4班 | C37: 王锦涛 | D37: 2016011128 | E37: 83.38959108 | F37: 88.57074113 | G37: 91.65302626 | H37: 89.004 | I37: =F37+G37+H37 -> 269.2277674 | J37: =I37/$I$2*100 -> 79.76359293 | K37: =E37*0.7+0.2*J37 -> 74.32543234 | L37: 无 | M37: 无 | N37: 无 | O37: 无
A38: 37 | B38: 化工16-1班 | C38: 刘婉琪 | D38: 2016010403 | E38: 83.26844106 | F38: 90.95265827 | G38: 89.06366283 | H38: 88.97563636 | I38: =F38+G38+H38 -> 268.9919575 | J38: =I38/$I$2*100 -> 79.69372998 | K38: =E38*0.7+0.2*J38 -> 74.22665474 | L38: 无 | M38: 无 | N38: 无 | O38: 无
A39: 38 | B39: 化工16-4班 | C39: 边晨曦 | D39: 2016010616 | E39: 83.08327138 | F39: 91.46035314 | G39: 88.38609644 | H39: 90.03629091 | I39: =F39+G39+H39 -> 269.8827405 | J39: =I39/$I$2*100 -> 79.95764055 | K39: =E39*0.7+0.2*J39 -> 74.14981807 | L39: 无 | M39: 无 | N39: 无 | O39: 有
A40: 39 | B40: 化工16-3班 | C40: 杨博 | D40: 2016010494 | E40: 82.96045627 | F40: 85.72987599 | G40: 86.85711884 | H40: 96.24211765 | I40: =F40+G40+H40 -> 268.8291125 | J40: =I40/$I$2*100 -> 79.64548421 | K40: =E40*0.7+0.2*J40 -> 74.00141623 | L40: 无 | M40: 无 | N40: 无 | O40: 无
A41: 40 | B41: 化工16-1班 | C41: 杨浩轩 | D41: 2016010424 | E41: 82.91330798 | F41: 87.33113793 | G41: 87.97755683 | H41: 89.52622967 | I41: =F41+G41+H41 -> 264.8349244 | J41: =I41/$I$2*100 -> 78.4621338 | K41: =E41*0.7+0.2*J41 -> 73.73174235 | L41: 无 | M41: 无 | N41: 无 | O41: 无
A42: 41 | B42: 化工16-1班 | C42: 毛姣 | D42: 2016010404 | E42: 83.01977186 | F42: 88.60115517 | G42: 88.05452304 | H42: 86.48624599 | I42: =F42+G42+H42 -> 263.1419242 | J42: =I42/$I$2*100 -> 77.96055188 | K42: =E42*0.7+0.2*J42 -> 73.70595068 | L42: 无 | M42: 无 | N42: 无 | O42: 无
A43: 42 | B43: 化工16-2班 | C43: 蔡进 | D43: 2016010444 | E43: 83.34068441 | F43: 88.70632552 | G43: 84.96723394 | H43: 84.63464489 | I43: =F43+G43+H43 -> 258.3082044 | J43: =I43/$I$2*100 -> 76.52847499 | K43: =E43*0.7+0.2*J43 -> 73.64417409 | L43: 有 | M43: 无 | N43: 无 | O43: 有
A44: 43 | B44: 化工16-3班 | C44: 肖文 | D44: 2016010489 | E44: 82.56045627 | F44: 89.36185808 | G44: 87.02766992 | H44: 87.12777941 | I44: =F44+G44+H44 -> 263.5173074 | J44: =I44/$I$2*100 -> 78.07176594 | K44: =E44*0.7+0.2*J44 -> 73.40667258 | L44: 无 | M44: 无 | N44: 无 | O44: 无
A45: 44 | B45: 化工16-4班 | C45: 朱梦 | D45: 2016011820 | E45: 81.50855019 | F45: 85.46188657 | G45: 92.70809887 | H45: 91.07698462 | I45: =F45+G45+H45 -> 269.2469701 | J45: =I45/$I$2*100 -> 79.76928207 | K45: =E45*0.7+0.2*J45 -> 73.00984154 | L45: 无 | M45: 有 | N45: 无 | O45: 无
A46: 45 | B46: 化工16-3班 | C46: 严聿捷 | D46: 2016010492 | E46: 80.75665399 | F46: 95.81980435 | G46: 85.17521497 | H46: 88.50690196 | I46: =F46+G46+H46 -> 269.5019213 | J46: =I46/$I$2*100 -> 79.84481598 | K46: =E46*0.7+0.2*J46 -> 72.49862099 | L46: 有 | M46: 无 | N46: 无 | O46: 无
A47: 46 | B47: 化工16-2班 | C47: 操泰格 | D47: 2016010445 | E47: 80.97946768 | F47: 80.87246858 | G47: 87.67307803 | H47: 96.72710811 | I47: =F47+G47+H47 -> 265.2726547 | J47: =I47/$I$2*100 -> 78.59181931 | K47: =E47*0.7+0.2*J47 -> 72.40399124 | L47: 有 | M47: 无 | N47: 无 | O47: 无
A48: 47 | B48: 化工16-1班 | C48: 林润丹 | D48: 2016010402 | E48: 80.94828897 | F48: 88.77436991 | G48: 89.08688863 | H48: 86.42654545 | I48: =F48+G48+H48 -> 264.287804 | J48: =I48/$I$2*100 -> 78.30003948 | K48: =E48*0.7+0.2*J48 -> 72.32381018 | L48: 无 | M48: 无 | N48: 无 | O48: 无
A49: 48 | B49: 化工16-4班 | C49: 刘申宁 | D49: 2016011460 | E49: 80.14869888 | F49: 89.28007399 | G49: 89.06657228 | H49: 87.84055385 | I49: =F49+G49+H49 -> 266.1872001 | J49: =I49/$I$2*100 -> 78.86276992 | K49: =E49*0.7+0.2*J49 -> 71.8766432 | L49: 无 | M49: 无 | N49: 无 | O49: 无
A50: 49 | B50: 化工16-2班 | C50: 方正 | D50: 2016010447 | E50: 80.46692015 | F50: 86.39624378 | G50: 87.75179308 | H50: 87.974667 | I50: =F50+G50+H50 -> 262.1227039 | J50: =I50/$I$2*100 -> 77.65858942 | K50: =E50*0.7+0.2*J50 -> 71.85856199 | L50: 有 | M50: 无 | N50: 无 | O50: 无
A51: 50 | B51: 化工16-4班 | C51: 季腾辉 | D51: 2016011548 | E51: 80.20966543 | F51: 88.82917343 | G51: 86.65429644 | H51: 89.2573 | I51: =F51+G51+H51 -> 264.7407699 | J51: =I51/$I$2*100 -> 78.43423881 | K51: =E51*0.7+0.2*J51 -> 71.83361356 | L51: 无 | M51: 无 | N51: 无 | O51: 无
A52: 51 | B52: 化工16-2班 | C52: 阳方喜 | D52: 2016010460 | E52: 80.50722433 | F52: 89.93108129 | G52: 88.721199 | H52: 80.86092199 | I52: =F52+G52+H52 -> 259.5132023 | J52: =I52/$I$2*100 -> 76.88547741 | K52: =E52*0.7+0.2*J52 -> 71.73215252 | L52: 有 | M52: 无 | N52: 无 | O52: 无
A53: 52 | B53: 化工16-1班 | C53: 韩博 | D53: 2016010414 | E53: 80.15741445 | F53: 90.03435632 | G53: 88.29061059 | H53: 84.98646465 | I53: =F53+G53+H53 -> 263.3114316 | J53: =I53/$I$2*100 -> 78.01077149 | K53: =E53*0.7+0.2*J53 -> 71.71234441 | L53: 有 | M53: 无 | N53: 无 | O53: 无
A54: 53 | B54: 化工16-4班 | C54: 曹景臻 | D54: 2016010073 | E54: 79.79925651 | F54: 88.40378047 | G54: 88.72415069 | H54: 87.53177778 | I54: =F54+G54+H54 -> 264.6597089 | J54: =I54/$I$2*100 -> 78.41022304 | K54: =E54*0.7+0.2*J54 -> 71.54152416 | L54: 无 | M54: 无 | N54: 无 | O54: 无
A55: 54 | B55: 化工16-2班 | C55: 黄游晟 | D55: 2016010450 | E55: 79.49277567 | F55: 90.39599597 | G55: 91.34281728 | H55: 85.70407432 | I55: =F55+G55+H55 -> 267.4428876 | J55: =I55/$I$2*100 -> 79.23479002 | K55: =E55*0.7+0.2*J55 -> 71.49190097 | L55: 无 | M55: 无 | N55: 无 | O55: 无
A56: 55 | B56: 化工16-3班 | C56: 蔡润 | D56: 2016010476 | E56: 80.10798479 | F56: 86.51707848 | G56: 82.72844411 | H56: 84.89447059 | I56: =F56+G56+H56 -> 254.1399932 | J56: =I56/$I$2*100 -> 75.29356708 | K56: =E56*0.7+0.2*J56 -> 71.13430277 | L56: 无 | M56: 无 | N56: 无 | O56: 无
A57: 56 | B57: 化工16-3班 | C57: 焦晓宇 | D57: 2016010480 | E57: 79.02205323 | F57: 88.54548893 | G57: 90.56249852 | H57: 85.97751492 | I57: =F57+G57+H57 -> 265.0855024 | J57: =I57/$I$2*100 -> 78.53637204 | K57: =E57*0.7+0.2*J57 -> 71.02271167 | L57: 无 | M57: 无 | N57: 无 | O57: 无
A58: 57 | B58: 化工16–2班 | C58: 冯源 | D58: 2016010076 | E58: 79.94811715 | F58: 85.61422542 | G58: 83.69215652 | H58: 84.40876923 | I58: =SUM(F58:H58) -> 253.7151512 | J58: =I58/$I$2*100 -> 75.16769996 | K58: =J58*0.2+E58*0.7 -> 70.997222 | L58: 无 | M58: 无 | N58: 无 | O58: 无
A59: 58 | B59: 化工16-3班 | C59: 罗青涵 | D59: 2016010482 | E59: 79.75285171 | F59: 87.13956057 | G59: 87.27455903 | H59: 79.89127273 | I59: =F59+G59+H59 -> 254.3053923 | J59: =I59/$I$2*100 -> 75.34256957 | K59: =E59*0.7+0.2*J59 -> 70.89551011 | L59: 无 | M59: 无 | N59: 无 | O59: 无
A60: 59 | B60: 化工16-1班 | C60: 张文静 | D60: 2016010429 | E60: 79.13992395 | F60: 87.48769157 | G60: 84.39774885 | H60: 83.43909091 | I60: =F60+G60+H60 -> 255.3245313 | J60: =I60/$I$2*100 -> 75.64450792 | K60: =E60*0.7+0.2*J60 -> 70.52684835 | L60: 有 | M60: 无 | N60: 无 | O60: 无
A61: 60 | B61: 化工16-1班 | C61: 塔娜 | D61: 2016010407 | E61: 78.62889734 | F61: 84.59057471 | G61: 87.74372734 | H61: 88.24433333 | I61: =F61+G61+H61 -> 260.5786354 | J61: =I61/$I$2*100 -> 77.20113123 | K61: =E61*0.7+0.2*J61 -> 70.48045438 | L61: 有 | M61: 无 | N61: 无 | O61: 无
A62: 61 | B62: 化工16-3班 | C62: 曹艳静 | D62: 2016010466 | E62: 78.0608365 | F62: 83.00737599 | G62: 89.46339508 | H62: 92.48747964 | I62: =F62+G62+H62 -> 264.9582507 | J62: =I62/$I$2*100 -> 78.49867144 | K62: =E62*0.7+0.2*J62 -> 70.34231984 | L62: 有 | M62: 无 | N62: 有 | O62: 无
A63: 62 | B63: 化工16-1班 | C63: 裴红静 | D63: 2016010405 | E63: 78.79315589 | F63: 88.01713793 | G63: 83.59172734 | H63: 84.38676923 | I63: =F63+G63+H63 -> 255.9956345 | J63: =I63/$I$2*100 -> 75.84333437 | K63: =E63*0.7+0.2*J63 -> 70.323876 | L63: 有 | M63: 无 | N63: 无 | O63: 无
A64: 63 | B64: 化工16-4班 | C64: 周久强 | D64: 2016011267 | E64: 78.17063197 | F64: 90.37570056 | G64: 88.51744344 | H64: 84.206 | I64: =F64+G64+H64 -> 263.099144 | J64: =I64/$I$2*100 -> 77.94787747 | K64: =E64*0.7+0.2*J64 -> 70.30901787 | L64: 无 | M64: 无 | N64: 无 | O64: 无
A65: 64 | B65: 化工16-2班 | C65: 刘旭 | D65: 2016010453 | E65: 78.35969582 | F65: 84.12862196 | G65: 85.45320706 | H65: 84.72667568 | I65: =F65+G65+H65 -> 254.3085047 | J65: =I65/$I$2*100 -> 75.34349167 | K65: =E65*0.7+0.2*J65 -> 69.92048541 | L65: 无 | M65: 无 | N65: 无 | O65: 无
A66: 65 | B66: 化工16-2班 | C66: 胡淑文 | D66: 2016010434 | E66: 78.15057034 | F66: 84.86178087 | G66: 84.30646244 | H66: 86.76576051 | I66: =F66+G66+H66 -> 255.9340038 | J66: =I66/$I$2*100 -> 75.82507516 | K66: =E66*0.7+0.2*J66 -> 69.87041427 | L66: 无 | M66: 无 | N66: 无 | O66: 无
A67: 66 | B67: 化工16-1班 | C67: 张帅 | D67: 2016010428 | E67: 77.99239544 | F67: 83.6698908 | G67: 85.75766283 | H67: 88.341 | I67: =F67+G67+H67 -> 257.7685536 | J67: =I67/$I$2*100 -> 76.36859371 | K67: =E67*0.7+0.2*J67 -> 69.86839555 | L67: 无 | M67: 无 | N67: 有 | O67: 无
A68: 67 | B68: 化工16-2班 | C68: 许龄月 | D68: 2016010442 | E68: 78.68973384 | F68: 86.05760604 | G68: 87.8477662 | H68: 74.25783559 | I68: =F68+G68+H68 -> 248.1632078 | J68: =I68/$I$2*100 -> 73.52283638 | K68: =E68*0.7+0.2*J68 -> 69.78738096 | L68: 有 | M68: 无 | N68: 无 | O68: 无
A69: 68 | B69: 化工16-3班 | C69: 高琳琳 | D69: 2016011080 | E69: 77.68264463 | F69: 85.61422542 | G69: 87.20179895 | H69: 85.59963624 | I69: =SUM(F69:H69) -> 258.4156606 | J69: =I69/$I$2*100 -> 76.56031085 | K69: =J69*0.2+E69*0.7 -> 69.68991341 | L69: 无 | M69: 无 | N69: 无 | O69: 无
A70: 69 | B70: 化工16-4班 | C70: 沈稼轩 | D70: 2016011589 | E70: 77.24869888 | F70: 80.60489972 | G70: 87.83259441 | H70: 88.04289231 | I70: =F70+G70+H70 -> 256.4803864 | J70: =I70/$I$2*100 -> 75.98695089 | K70: =E70*0.7+0.2*J70 -> 69.2714794 | L70: 无 | M70: 无 | N70: 无 | O70: 有
A71: 70 | B71: 化工16-3班 | C71: 姚玮叶 | D71: 2016010475 | E71: 77.36958175 | F71: 86.62713221 | G71: 86.05057852 | H71: 81.22819608 | I71: =F71+G71+H71 -> 253.9059068 | J71: =I71/$I$2*100 -> 75.22421476 | K71: =E71*0.7+0.2*J71 -> 69.20355018 | L71: 有 | M71: 无 | N71: 无 | O71: 无
A72: 71 | B72: 化工16-2班 | C72: 韩子怡 | D72: 2016010433 | E72: 77.28212928 | F72: 83.82479467 | G72: 85.91637642 | H72: 84.51806818 | I72: =F72+G72+H72 -> 254.2592393 | J72: =I72/$I$2*100 -> 75.32889589 | K72: =E72*0.7+0.2*J72 -> 69.16326967 | L72: 有 | M72: 无 | N72: 无 | O72: 无
A73: 72 | B73: 化工16-3班 | C73: 谢雨燊 | D73: 2016010474 | E73: 77.29885932 | F73: 86.41059594 | G73: 84.00527809 | H73: 82.37505882 | I73: =F73+G73+H73 -> 252.7909329 | J73: =I73/$I$2*100 -> 74.89388357 | K73: =E73*0.7+0.2*J73 -> 69.08797824 | L73: 有 | M73: 无 | N73: 无 | O73: 无
A74: 73 | B74: 化工16-2班 | C74: 鲁颖科 | D74: 2016010454 | E74: 77.49353612 | F74: 83.70962196 | G74: 82.00679846 | H74: 81.3697973 | I74: =F74+G74+H74 -> 247.0862177 | J74: =I74/$I$2*100 -> 73.20375859 | K74: =E74*0.7+0.2*J74 -> 68.886227 | L74: 无 | M74: 无 | N74: 无 | O74: 无
A75: 74 | B75: 化工16-1班 | C75: 李飞扬 | D75: 2016010418 | E75: 77.37642586 | F75: 86.84288506 | G75: 80.85037251 | H75: 78.55331368 | I75: =F75+G75+H75 -> 246.2465712 | J75: =I75/$I$2*100 -> 72.95499814 | K75: =E75*0.7+0.2*J75 -> 68.75449773 | L75: 有 | M75: 无 | N75: 有 | O75: 无
A76: 75 | B76: 化工16-4班 | C76: 柏亚 | D76: 2016010615 | E76: 76.3 | F76: 87.67266657 | G76: 88.33730372 | H76: 82.6884 | I76: =F76+G76+H76 -> 258.6983703 | J76: =I76/$I$2*100 -> 76.6440687 | K76: =E76*0.7+0.2*J76 -> 68.73881374 | L76: 无 | M76: 无 | N76: 无 | O76: 无
A77: 76 | B77: 化工16-3班 | C77: 颜小岷 | D77: 2016010493 | E77: 76.36882129 | F77: 89.80135808 | G77: 81.16904293 | H77: 83.96890014 | I77: =F77+G77+H77 -> 254.9393011 | J77: =I77/$I$2*100 -> 75.53037652 | K77: =E77*0.7+0.2*J77 -> 68.56425021 | L77: 有 | M77: 无 | N77: 无 | O77: 无
A78: 77 | B78: 化工16-1班 | C78: 冯晨 | D78: 2016010412 | E78: 76.72015209 | F78: 84.58077586 | G78: 83.32512519 | H78: 82.46593939 | I78: =F78+G78+H78 -> 250.3718404 | J78: =I78/$I$2*100 -> 74.17718372 | K78: =E78*0.7+0.2*J78 -> 68.53954321 | L78: 有 | M78: 无 | N78: 无 | O78: 无
A79: 78 | B79: 化工16-3班 | C79: 武旺 | D79: 2016010488 | E79: 76.93003802 | F79: 83.02259639 | G79: 80.48591723 | H79: 83.93074321 | I79: =F79+G79+H79 -> 247.4392568 | J79: =I79/$I$2*100 -> 73.30835281 | K79: =E79*0.7+0.2*J79 -> 68.51269718 | L79: 有 | M79: 无 | N79: 无 | O79: 有
A80: 79 | B80: 化工16-1班 | C80: 王超男 | D80: 2016010408 | E80: 76.07908745 | F80: 84.89613218 | G80: 86.26669509 | H80: 85.99236364 | I80: =F80+G80+H80 -> 257.1551909 | J80: =I80/$I$2*100 -> 76.18687391 | K80: =E80*0.7+0.2*J80 -> 68.492736 | L80: 有 | M80: 无 | N80: 无 | O80: 无
A81: 80 | B81: 化工16-1班 | C81: 高浩然 | D81: 2016010413 | E81: 75.88745247 | F81: 84.11713218 | G81: 83.91820046 | H81: 87.17939037 | I81: =F81+G81+H81 -> 255.214723 | J81: =I81/$I$2*100 -> 75.61197523 | K81: =E81*0.7+0.2*J81 -> 68.24361178 | L81: 有 | M81: 无 | N81: 无 | O81: 无
A82: 81 | B82: 化工16-3班 | C82: 闫伟俊 | D82: 2016010491 | E82: 76.29353612 | F82: 81.16809639 | G82: 80.28017798 | H82: 85.29917647 | I82: =F82+G82+H82 -> 246.7474508 | J82: =I82/$I$2*100 -> 73.10339278 | K82: =E82*0.7+0.2*J82 -> 68.02615384 | L82: 有 | M82: 无 | N82: 有 | O82: 无
A83: 82 | B83: 化工16-1班 | C83: 黄鑫 | D83: 2016010415 | E83: 76.42813688 | F83: 78.62858621 | G83: 81.56501767 | H83: 81.13043478 | I83: =F83+G83+H83 -> 241.3240387 | J83: =I83/$I$2*100 -> 71.49660888 | K83: =E83*0.7+0.2*J83 -> 67.79901759 | L83: 有 | M83: 有 | N83: 无 | O83: 无
A84: 83 | B84: 化工16-1班 | C84: 农谨毓 | D84: 2016010420 | E84: 76.18250951 | F84: 84.80111494 | G84: 77.11146928 | H84: 81.78290909 | I84: =F84+G84+H84 -> 243.6954933 | J84: =I84/$I$2*100 -> 72.19919519 | K84: =E84*0.7+0.2*J84 -> 67.76759569 | L84: 无 | M84: 有 | N84: 无 | O84: 无
A85: 84 | B85: 化工16-2班 | C85: 梁恒睿 | D85: 2016010451 | E85: 75.65551331 | F85: 80.06770331 | G85: 84.08002427 | H85: 81.33736862 | I85: =F85+G85+H85 -> 245.4850962 | J85: =I85/$I$2*100 -> 72.72939739 | K85: =E85*0.7+0.2*J85 -> 67.50473879 | L85: 有 | M85: 无 | N85: 无 | O85: 无
A86: 85 | B86: 化工16-3班 | C86: 王亚平 | D86: 2016010487 | E86: 75.18326996 | F86: 78.96554084 | G86: 81.72750594 | H86: 84.31033824 | I86: =F86+G86+H86 -> 245.003385 | J86: =I86/$I$2*100 -> 72.58668175 | K86: =E86*0.7+0.2*J86 -> 67.14562532 | L86: 有 | M86: 无 | N86: 无 | O86: 有
A87: 86 | B87: 化工16-1班 | C87: 李江 | D87: 2016010863 | E87: 74.57768924 | F87: 85.61422542 | G87: 83.31478111 | H87: 81.43550303 | I87: =SUM(F87:H87) -> 250.3645096 | J87: =I87/$I$2*100 -> 74.17501181 | K87: =J87*0.2+E87*0.7 -> 67.03938483 | L87: 有 | M87: 无 | N87: 无 | O87: 无
A88: 87 | B88: 化工16-1班 | C88: 安毅帆 | D88: 2016010410 | E88: 74.90874525 | F88: 79.9078908 | G88: 79.90903917 | H88: 81.57313582 | I88: =F88+G88+H88 -> 241.3900658 | J88: =I88/$I$2*100 -> 71.51617061 | K88: =E88*0.7+0.2*J88 -> 66.7393558 | L88: 有 | M88: 无 | N88: 无 | O88: 无
A89: 88 | B89: 化工16-2班 | C89: 杨電 | D89: 2016010461 | E89: 74.53003802 | F89: 80.9628293 | G89: 80.84246513 | H89: 79.01439569 | I89: =F89+G89+H89 -> 240.8196901 | J89: =I89/$I$2*100 -> 71.34718651 | K89: =E89*0.7+0.2*J89 -> 66.44046392 | L89: 有 | M89: 无 | N89: 有 | O89: 无
A90: 89 | B90: 化工16-2班 | C90: 王宇超 | D90: 2016010457 | E90: 74.13992395 | F90: 79.86086997 | G90: 82.6838576 | H90: 80.12492568 | I90: =F90+G90+H90 -> 242.6696532 | J90: =I90/$I$2*100 -> 71.89527153 | K90: =E90*0.7+0.2*J90 -> 66.27700107 | L90: 有 | M90: 无 | N90: 有 | O90: 有
A91: 90 | B91: 化工16-2班 | C91: 寇晓玮 | D91: 2016010435 | E91: 74.14068441 | F91: 83.80295534 | G91: 81.1543791 | H91: 76.97260532 | I91: =F91+G91+H91 -> 241.9299398 | J91: =I91/$I$2*100 -> 71.67611803 | K91: =E91*0.7+0.2*J91 -> 66.23370269 | L91: 有 | M91: 无 | N91: 无 | O91: 无
A92: 91 | B92: 化工16-3班 | C92: 邢皓为 | D92: 2016010490 | E92: 73.87148289 | F92: 83.34274515 | G92: 81.73890379 | H92: 79.63435483 | I92: =F92+G92+H92 -> 244.7160038 | J92: =I92/$I$2*100 -> 72.50153986 | K92: =E92*0.7+0.2*J92 -> 66.21034599 | L92: 有 | M92: 无 | N92: 无 | O92: 无
A93: 92 | B93: 化工16-1班 | C93: 王浩程 | D93: 2016010422 | E93: 73.78555133 | F93: 76.26520685 | G93: 78.26110369 | H93: 79.3160895 | I93: =F93+G93+H93 -> 233.8424 | J93: =I93/$I$2*100 -> 69.28003819 | K93: =E93*0.7+0.2*J93 -> 65.50589357 | L93: 有 | M93: 有 | N93: 无 | O93: 无
A94: 93 | B94: 化工16-2班 | C94: 王孟轩 | D94: 2016010439 | E94: 72.16958175 | F94: 83.95316217 | G94: 85.54389792 | H94: 80.67836378 | I94: =F94+G94+H94 -> 250.1754239 | J94: =I94/$I$2*100 -> 74.11899176 | K94: =E94*0.7+0.2*J94 -> 65.34250558 | L94: 有 | M94: 无 | N94: 无 | O94: 无
A95: 94 | B95: 化工16-3班 | C95: 张旭斌 | D95: 2015010465 | E95: 72.01639752 | F95: 85.61422542 | G95: 86.70278466 | H95: 78.67607021 | I95: =SUM(F95:H95) -> 250.9930803 | J95: =I95/$I$2*100 -> 74.36123725 | K95: =J95*0.2+E95*0.7 -> 65.28372571
A96: 95 | B96: 化工16-1班 | C96: 王昊天 | D96: 2016010554 | E96: 72.20190114 | F96: 81.93582926 | G96: 87.35358227 | H96: 76.25763636 | I96: =F96+G96+H96 -> 245.5470479 | J96: =I96/$I$2*100 -> 72.74775171 | K96: =E96*0.7+0.2*J96 -> 65.09088114 | L96: 有 | M96: 无 | N96: 无 | O96: 无
A97: 96 | B97: 化工16-1班 | C97: 张创杰 | D97: 2016010427 | E97: 72.75285171 | F97: 82.19908046 | G97: 80.380245 | H97: 76.31122522 | I97: =F97+G97+H97 -> 238.8905507 | J97: =I97/$I$2*100 -> 70.77564408 | K97: =E97*0.7+0.2*J97 -> 65.08212501 | L97: 有 | M97: 无 | N97: 有 | O97: 无
A98: 97 | B98: 化工16-3班 | C98: 吴昊 | D98: 2015010493 | E98: 71.40689655 | F98: 85.61422542 | G98: 86.70278466 | H98: 72.5789552 | I98: =SUM(F98:H98) -> 244.8959653 | J98: =I98/$I$2*100 -> 72.55485671 | K98: =J98*0.2+E98*0.7 -> 64.49579893
A99: 98 | B99: 化工16-3班 | C99: 刘梦凯 | D99: 2016010584 | E99: 72.43954373 | F99: 78.28539314 | G99: 79.52901669 | H99: 74.77031373 | I99: =F99+G99+H99 -> 232.5847236 | J99: =I99/$I$2*100 -> 68.9074288 | K99: =E99*0.7+0.2*J99 -> 64.48916637 | L99: 有 | M99: 有 | N99: 无 | O99: 无
A100: 99 | B100: 化工16-3班 | C100: 马小彩 | D100: 2016010471 | E100: 71.82281369 | F100: 82.96520987 | G100: 78.40296024 | H100: 76.31656209 | I100: =F100+G100+H100 -> 237.6847322 | J100: =I100/$I$2*100 -> 70.41839855 | K100: =E100*0.7+0.2*J100 -> 64.35964929 | L100: 有 | M100: 无 | N100: 无 | O100: 无
A101: 100 | B101: 化工16-3班 | C101: 曹成昆 | D101: 2016010477 | E101: 72.31558935 | F101: 74.82478097 | G101: 80.86333273 | H101: 75.95520907 | I101: =F101+G101+H101 -> 231.6433228 | J101: =I101/$I$2*100 -> 68.6285218 | K101: =E101*0.7+0.2*J101 -> 64.34661691 | L101: 有 | M101: 有 | N101: 有 | O101: 无
A102: 101 | B102: 化工16–2班 | C102: 张浩苏 | D102: 2016010463 | E102: 72.21825095 | F102: 80.67540676 | G102: 77.17815751 | H102: 72.55229293 | I102: =F102+G102+H102 -> 230.4058572 | J102: =I102/$I$2*100 -> 68.26190026 | K102: =E102*0.7+0.2*J102 -> 64.20515572 | L102: 有 | M102: 有 | N102: 无 | O102: 无
A103: 102 | B103: 化工16-3班 | C103: 刘思琦 | D103: 2016010470 | E103: 71.48593156 | F103: 78.50684017 | G103: 80.81496357 | H103: 78.57558056 | I103: =F103+G103+H103 -> 237.8973843 | J103: =I103/$I$2*100 -> 70.48140058 | K103: =E103*0.7+0.2*J103 -> 64.13643221 | L103: 有 | M103: 无 | N103: 无 | O103: 无
A104: 103 | B104: 化工16-2班 | C104: 肖雯婷 | D104: 2016010441 | E104: 71.71863118 | F104: 78.39665069 | G104: 78.63306728 | H104: 77.31074324 | I104: =F104+G104+H104 -> 234.3404612 | J104: =I104/$I$2*100 -> 69.42759782 | K104: =E104*0.7+0.2*J104 -> 64.08856139 | L104: 有 | M104: 无 | N104: 有 | O104: 无
A105: 104 | B105: 化工16-3班 | C105: 李品贤 | D105: 2016010481 | E105: 71.60076046 | F105: 78.40107848 | G105: 77.3696854 | H105: 77.52207315 | I105: =F105+G105+H105 -> 233.292837 | J105: =I105/$I$2*100 -> 69.11722022 | K105: =E105*0.7+0.2*J105 -> 63.94397636 | L105: 有 | M105: 无 | N105: 无 | O105: 无
A106: 105 | B106: 化工16-2班 | C106: 张家祺 | D106: 2016010464 | E106: 71.40608365 | F106: 74.65407778 | G106: 79.68115751 | H106: 76.80644919 | I106: =F106+G106+H106 -> 231.1416845 | J106: =I106/$I$2*100 -> 68.47990239 | K106: =E106*0.7+0.2*J106 -> 63.68023903 | L106: 有 | M106: 有 | N106: 无 | O106: 无
A107: 106 | B107: 化工16-3班 | C107: 江方圆 | D107: 2016010479 | E107: 71.09809886 | F107: 79.85826306 | G107: 78.50756239 | H107: 75.78778122 | I107: =F107+G107+H107 -> 234.1536067 | J107: =I107/$I$2*100 -> 69.37223878 | K107: =E107*0.7+0.2*J107 -> 63.64311696 | L107: 有 | M107: 无 | N107: 无 | O107: 无
A108: 107 | B108: 化工16–2班 | C108: 周敬泽 | D108: 2016010158 | E108: 69.56781609 | F108: 85.61422542 | G108: 71.74712642 | H108: 87.98675709 | I108: =SUM(F108:H108) -> 245.3481089 | J108: =I108/$I$2*100 -> 72.68881244 | K108: =J108*0.2+E108*0.7 -> 63.23523375 | L108: 有 | M108: 有 | N108: 有 | O108: 无
A109: 108 | B109: 化工16-3班 | C109: 汤宝林 | D109: 2015010491 | E109: 69.42089552 | F109: 85.61422542 | G109: 86.70278466 | H109: 70.81869862 | I109: =SUM(F109:H109) -> 243.1357087 | J109: =I109/$I$2*100 -> 72.03334888 | K109: =J109*0.2+E109*0.7 -> 63.00129664
A110: 109 | B110: 化工16–2班 | C110: 陈龙 | D110: 2016010104 | E110: 69.38423237 | F110: 85.61422542 | G110: 74.77025614 | H110: 75.56988941 | I110: =SUM(F110:H110) -> 235.954371 | J110: =I110/$I$2*100 -> 69.90574776 | K110: =J110*0.2+E110*0.7 -> 62.55011221 | L110: 有 | M110: 无 | N110: 有 | O110: 有
A111: 110 | B111: 化工16-3班 | C111: 曹文都 | D111: 2015010445 | E111: 69.82129278 | F111: 79.29707848 | G111: 79.75974134 | H111: 71.52960784 | I111: =F111+G111+H111 -> 230.5864277 | J111: =I111/$I$2*100 -> 68.31539752 | K111: =E111*0.7+0.2*J111 -> 62.53798445 | L111: 有 | M111: 无 | N111: 有 | O111: 无
A112: 111 | B112: 化工16-1班 | C112: 孙维峰 | D112: 2016010421 | E112: 69.87452471 | F112: 72.96431609 | G112: 81.13433102 | H112: 74.42014973 | I112: =F112+G112+H112 -> 228.5187968 | J112: =I112/$I$2*100 -> 67.70282451 | K112: =E112*0.7+0.2*J112 -> 62.4527322 | L112: 有 | M112: 无 | N112: 有 | O112: 无
A113: 112 | B113: 化工16-1班 | C113: 江俊懿 | D113: 2016010416 | E113: 69.32319392 | F113: 76.35556322 | G113: 76.76549079 | H113: 75.06269697 | I113: =F113+G113+H113 -> 228.183751 | J113: =I113/$I$2*100 -> 67.60356112 | K113: =E113*0.7+0.2*J113 -> 62.04694796 | L113: 有 | M113: 有 | N113: 有 | O113: 无
A114: 113 | B114: 化工16-2班 | C114: 杨天宇 | D114: 2016010462 | E114: 69.99657795 | F114: 68.41711354 | G114: 78.97266558 | H114: 71.39325 | I114: =F114+G114+H114 -> 218.7830291 | J114: =I114/$I$2*100 -> 64.81842733 | K114: =E114*0.7+0.2*J114 -> 61.96129003 | L114: 有 | M114: 有 | N114: 无 | O114: 无
A115: 114 | B115: 化工16-3班 | C115: 谷嘉伟 | D115: 2016010478 | E115: 68.49657795 | F115: 75.9708939 | G115: 80.49242798 | H115: 73.64761037 | I115: =F115+G115+H115 -> 230.1109323 | J115: =I115/$I$2*100 -> 68.17452341 | K115: =E115*0.7+0.2*J115 -> 61.58250924 | L115: 有 | M115: 无 | N115: 无 | O115: 无
A116: 115 | B116: 化工16-1班 | C116: 乔丹 | D116: 2015010471 | E116: 67.68516129 | F116: 85.61422542 | G116: 86.70278466 | H116: 65.2631348 | I116: =SUM(F116:H116) -> 237.5801449 | J116: =I116/$I$2*100 -> 70.38741267 | K116: =J116*0.2+E116*0.7 -> 61.45709544 | L116: 有 | M116: 有 | N116: 无 | O116: 无
A117: 116 | B117: 化工16-1班 | C117: 李彬 | D117: 2016010417 | E117: 68.68060837 | F117: 75.61598276 | G117: 77.16719124 | H117: 72.95018494 | I117: =F117+G117+H117 -> 225.7333589 | J117: =I117/$I$2*100 -> 66.87758818 | K117: =E117*0.7+0.2*J117 -> 61.45194349 | L117: 有 | M117: 无 | N117: 无 | O117: 无
A118: 117 | B118: 化工16-2班 | C118: 付严 | D118: 2016010448 | E118: 69.20304183 | F118: 78.37974444 | G118: 70.10348125 | H118: 71.03831369 | I118: =F118+G118+H118 -> 219.5215394 | J118: =I118/$I$2*100 -> 65.03722434 | K118: =E118*0.7+0.2*J118 -> 61.44957415 | L118: 有 | M118: 无 | N118: 有 | O118: 无
A119: 118 | B119: 化工16-1班 | C119: 刘展 | D119: 2016010419 | E119: 68.28897338 | F119: 80.24344828 | G119: 75.78910369 | H119: 72.94742091 | I119: =F119+G119+H119 -> 228.9799729 | J119: =I119/$I$2*100 -> 67.83945625 | K119: =E119*0.7+0.2*J119 -> 61.37017262 | L119: 有 | M119: 有 | N119: 无 | O119: 无
A120: 119 | B120: 化工16-2班 | C120: 林甘棠 | D120: 2016010437 | E120: 68.4851711 | F120: 76.6535689 | G120: 78.63922203 | H120: 70.79994231 | I120: =F120+G120+H120 -> 226.0927332 | J120: =I120/$I$2*100 -> 66.98405931 | K120: =E120*0.7+0.2*J120 -> 61.33643163 | L120: 有 | M120: 有 | N120: 无 | O120: 无
A121: 120 | B121: 化工16-3班 | C121: 王本颖 | D121: 2016010485 | E121: 68.79087452 | F121: 73.27626306 | G121: 75.29470217 | H121: 72.72288958 | I121: =F121+G121+H121 -> 221.2938548 | J121: =I121/$I$2*100 -> 65.56230483 | K121: =E121*0.7+0.2*J121 -> 61.26607313 | L121: 有 | M121: 有 | N121: 有 | O121: 无
A122: 121 | B122: 化工16-1班 | C122: 王筝 | D122: 2016010409 | E122: 68.01901141 | F122: 75.3483908 | G122: 79.40615745 | H122: 72.40601243 | I122: =F122+G122+H122 -> 227.1605607 | J122: =I122/$I$2*100 -> 67.3004225 | K122: =E122*0.7+0.2*J122 -> 61.07339248 | L122: 有 | M122: 无 | N122: 有 | O122: 无
A123: 122 | B123: 化工16-3班 | C123: 王宁 | D123: 2016010486 | E123: 67.30190114 | F123: 74.1426143 | G123: 75.93359733 | H123: 72.93579876 | I123: =F123+G123+H123 -> 223.0120104 | J123: =I123/$I$2*100 -> 66.07133948 | K123: =E123*0.7+0.2*J123 -> 60.32559869 | L123: 有 | M123: 无 | N123: 有 | O123: 无
A124: 123 | B124: 化工16–2班 | C124: 万振扬 | D124: 2015010841 | E124: 64.2994709 | F124: 85.61422542 | G124: 86.70278466 | H124: 85.69421201 | I124: =SUM(F124:H124) -> 258.0112221 | J124: =I124/$I$2*100 -> 76.44048863 | K124: =J124*0.2+E124*0.7 -> 60.29772735 | L124: 有 | M124: 有 | N124: 无 | O124: 无
A125: 124 | B125: 化工16-3班 | C125: 张玉宝 | D125: 2016010497 | E125: 65.67376426 | F125: 76.47496555 | G125: 72.68989913 | H125: 69.8377262 | I125: =F125+G125+H125 -> 219.0025909 | J125: =I125/$I$2*100 -> 64.88347647 | K125: =E125*0.7+0.2*J125 -> 58.94833028 | L125: 有 | M125: 无 | N125: 有 | O125: 无
A126: 125 | B126: 化工16-3班 | C126: 张宇昂 | D126: 2016010496 | E126: 63.93307985 | F126: 75.61778097 | G126: 67.34960127 | H126: 67.80958524 | I126: =F126+G126+H126 -> 210.7769675 | J126: =I126/$I$2*100 -> 62.44648684 | K126: =E126*0.7+0.2*J126 -> 57.24245326 | L126: 有 | M126: 无 | N126: 无 | O126: 无
A127: 126 | B127: 化工16-3班 | C127: 朴俊浩 | D127: 2016010484 | E127: 62.06463878 | F127: 72.37893936 | G127: 73.23727091 | H127: 76.8509115 | I127: =F127+G127+H127 -> 222.4671218 | J127: =I127/$I$2*100 -> 65.90990637 | K127: =E127*0.7+0.2*J127 -> 56.62722842 | L127: 有 | M127: 无 | N127: 有 | O127: 无
A128: 127 | B128: 化工16-2班 | C128: 赵政棠 | D128: 2016010465 | E128: 62.82129278 | F128: 69.5877365 | G128: 74.37433224 | H128: 64.21431818 | I128: =F128+G128+H128 -> 208.1763869 | J128: =I128/$I$2*100 -> 61.67601784 | K128: =E128*0.7+0.2*J128 -> 56.31010851 | L128: 有 | M128: 无 | N128: 有 | O128: 有
A129: 128 | B129: 化工16-3班 | C129: 赵逸伦 | D129: 2016010498 | E129: 63.10114068 | F129: 75.11791181 | G129: 64.4390555 | H129: 62.75219608 | I129: =F129+G129+H129 -> 202.3091634 | J129: =I129/$I$2*100 -> 59.93774681 | K129: =E129*0.7+0.2*J129 -> 56.15834784 | L129: 有 | M129: 有 | N129: 无 | O129: 有
A130: 129 | B130: 化工16–2班 | C130: 郭昊钰 | D130: 2016010968 | E130: 56.67224335 | F130: 74.01463371 | G130: 70.26920975 | H130: 62.90334058 | I130: =F130+G130+H130 -> 207.187184 | J130: =I130/$I$2*100 -> 61.38294861 | K130: =E130*0.7+0.2*J130 -> 51.94716006 | L130: 有 | M130: 有 | N130: 无 | O130: 无

Sheet 化工16级必修课成绩
A1: 班级 | B1: 姓名 | C1: 学号 | D1: 挂科情况统计（填有或无） | H1: 英语班级统计（填A或B或C） | I1: 英语系数 | J1: 大一上学期 | U1: 大一下学期 | AG1: 大二上学期 | AU1: 大二下学期 | BH1: 大三上学期 | BP1: 大三下学期
J2: 大学体育1 | K2: 大学英语1 | L2: 英语乘系数 | M2: 高等数学(1) | N2: 化工导论 | O2: 军事训练1 | P2: 入学教育与安全教育 | Q2: 思想道德修养与法律基础 | R2: 无机化学与分析化学 | S2: 中国近现代史纲要 | U2: VB程序设计（A） | V2: 大学体育（2） | W2: 大学物理C（1) | X2: 大学物理A(1) | Y2: 大学英语（2） | Z2: 英语乘系数 | AA2: 高等数学B（2） | AB2: 高等数学A(2) | AC2: 无机与分析化学实验（1） | AD2: 有机化学 | AE2: 金工实习 | AG2: 大学体育（3） | AH2: 大学物理C（2） | AI2: 大学物理A(2) | AJ2: 大学物理实验（1） | AK2: 大学英语（3） | AL2: 英语乘系数 | AM2: 马克思主义基本原理概论 | AN2: 毛泽东思想和中国特色主义理论体系概论（1） | AO2: 生物化学 | AP2: 无机与分析化学实验（2） | AQ2: 物理化学（1） | AR2: 线性代数 | AS2: 有机化学实验 | AU2: 大学体育（4） | AV2: 大学物理实验（2） | AW2: 大学英语（4） | AY2: 电工学及实验 | AZ2: 概率统计基础 | BA2: 化工原理（1） | BB2: 机械制图 | BC2: 计算机辅助绘图 | BD2: 毛泽东思想和中国特色主义理论体系概论（2） | BE2: 物理化学（2） | BF2: 物理化学实验（1） | BH2: 化工认识实习 | BI2: 化工安全与环境 | BJ2: 化工热力学 | BK2: 化工热力学实验 | BL2: 化工原理（2） | BM2: 化工原理实验（1） | BN2: 物理化学实验（2） | BP2: 化工装备与控制 | BQ2: 化学反应工程（双语） | BR2: 石油加工工程 | BS2: 化工原理课程设计 | BT2: 化工原理实验（II） | BU2: 化工设计概论 | BV2: 污染控制工程 | BW2: 化工应用软件 | BX2: 就业指导
D3: 必修课挂科 | E3: 选修课挂科 | F3: 四级至今没过 | G3: 体测至今没过 | J3: 1 | K3: 4 | L3: 4 | M3: 6 | N3: 1 | O3: 2 | P3: 1 | Q3: 2 | R3: 4.5 | S3: 2 | U3: 3 | V3: 1 | W3: 3 | X3: 4 | Y3: 4 | Z3: 4 | AA3: 5 | AB3: 6 | AC3: 2.5 | AD3: 4 | AE3: 2 | AG3: 1 | AH3: 3 | AI3: 4 | AJ3: 2 | AK3: 2 | AL3: 2 | AM3: 2 | AN3: 2 | AO3: 2.5 | AP3: 1 | AQ3: 3 | AR3: 3 | AS3: 2 | AU3: 1 | AV3: 1.5 | AW3: 2 | AX3: 2 | AY3: 2 | AZ3: 3 | BA3: 4 | BB3: 2.5 | BC3: 1 | BD3: 2 | BE3: 3 | BF3: 1 | BH3: 2 | BI3: 2 | BJ3: 3.5 | BK3: 0.5 | BL3: 4 | BM3: 1 | BN3: 1.5 | BP3: 3 | BQ3: 3.5 | BR3: 4.5 | BS3: 4 | BT3: 1 | BU3: 2 | BV3: 2 | BW3: 1.5 | BX3: 1
BY4: 必修课成绩 | EP4: 优良科目数 | EQ4: 优良率（超过70%具有保研资格）
A5: 化工16-1班 | B5: 丁婉艳 | C5: 2016010400 | D5: 无 | E5: 无 | F5: 无 | G5: 无 | H5: B | I5: 1.1 | J5: 86 | K5: 80 | L5: =K5*I5 -> 88 | M5: 88 | N5: 90 | O5: 92 | P5: 88 | Q5: 85 | R5: 85 | S5: 84 | U5: 82 | V5: 93 | W5: 88 | Y5: 90 | Z5: =Y5*I5 -> 99 | AA5: 98 | AC5: 92 | AD5: 81 | AE5: 90 | AG5: 95 | AH5: 78 | AJ5: 83 | AK5: 82 | AL5: =AK5*I5 -> 90.2 | AM5: 80 | AN5: 93 | AO5: 87 | AP5: 90 | AQ5: 85 | AR5: 88 | AS5: 87 | AU5: 77 | AV5: 90 | AW5: 82 | AX5: =AW5*I5 -> 90.2 | AY5: 84 | AZ5: 82 | BA5: 80 | BB5: 88 | BC5: 81 | BD5: 90 | BE5: 97 | BF5: 92 | BH5: 90 | BI5: 96 | BJ5: 85 | BK5: 87 | BL5: 90 | BM5: 86 | BN5: 86 | BP5: 91 | BQ5: 86 | BR5: 86 | BS5: 89 | BT5: 94 | BU5: 95 | BV5: 93 | BW5: 81 | BX5: 98 | BY5: 88.04790875 | CA5: =IF(J5>=80,1,0) -> 1 | CB5: =IF(K5>=80,1,0) -> 1 | CD5: 1 | CE5: 1 | CF5: 1 | CG5: 1 | CH5: 1 | CI5: 1 | CJ5: 1 | CL5: 1 | CM5: 1 | CN5: 1 | CO5: 0 | CP5: 1 | CR5: 1 | CS5: 0 | CT5: 1 | CU5: 1 | CV5: 1 | CX5: 1 | CY5: 0 | CZ5: 0 | DA5: 1 | DB5: 1 | DD5: 1 | DE5: 1 | DF5: 1 | DG5: 1 | DH5: 1 | DI5: 1 | DJ5: 1 | DL5: 0 | DM5: 1 | DN5: 1 | DP5: =IF(AY5>=80,1,0) -> 1 | DQ5: =IF(AZ5>=80,1,0) -> 1 | DR5: =IF(BA5>=80,1,0) -> 1 | DS5: =IF(BB5>=80,1,0) -> 1 | DT5: =IF(BC5>=80,1,0) -> 1 | DU5: =IF(BD5>=80,1,0) -> 1 | DV5: =IF(BE5>=80,1,0) -> 1 | DW5: =IF(BF5>=80,1,0) -> 1 | DY5: =IF(BH5>=80,1,0) -> 1 | DZ5: =IF(BI5>=80,1,0) -> 1 | EA5: =IF(BJ5>=80,1,0) -> 1 | EB5: =IF(BK5>=80,1,0) -> 1 | EC5: =IF(BL5>=80,1,0) -> 1 | ED5: =IF(BM5>=80,1,0) -> 1 | EE5: =IF(BN5>=80,1,0) -> 1 | EG5: =IF(BP5>=80,1,0) -> 1 | EH5: =IF(BQ5>=80,1,0) -> 1 | EI5: =IF(BR5>=80,1,0) -> 1 | EJ5: =IF(BS5>=80,1,0) -> 1 | EK5: =IF(BT5>=80,1,0) -> 1 | EL5: =IF(BU5>=80,1,0) -> 1 | EM5: =IF(BV5>=80,1,0) -> 1 | EN5: =IF(BW5>=80,1,0) -> 1 | EO5: =IF(BX5>=80,1,0) -> 1 | EP5: =SUM(CA5:EO5) -> 53 | EQ5: =EP5/55 -> 96.36%
A6: 化工16-1班 | B6: 冯江丽 | C6: 2016010401 | D6: 无 | E6: 无 | F6: 无 | G6: 无 | H6: B | I6: 1.1 | J6: 85 | K6: 82 | L6: 90.2 | M6: 87 | N6: 93 | O6: 90 | P6: 77 | Q6: 96 | R6: 94 | S6: 87 | U6: 83 | V6: 84 | W6: 89 | Y6: 88 | Z6: 96.8 | AA6: 83 | AC6: 93 | AD6: 78 | AE6: 88 | AG6: 83 | AH6: 85 | AJ6: 84 | AK6: 85 | AL6: 93.5 | AM6: 76 | AN6: 92 | AO6: 88 | AP6: 90 | AQ6: 89 | AR6: 87 | AS6: 87 | AU6: 86 | AV6: 87 | AW6: 85 | AX6: 93.5 | AY6: 87 | AZ6: 77 | BA6: 74 | BB6: 87 | BC6: 83 | BD6: 85 | BE6: 97 | BF6: 92 | BH6: 96 | BI6: 94 | BJ6: 90 | BK6: 90 | BL6: 97 | BM6: 91 | BN6: 85 | BP6: 91 | BQ6: 88 | BR6: 89 | BS6: 89 | BT6: 93 | BU6: 97 | BV6: 92 | BW6: 84 | BX6: 92 | BY6: 88.2243346 | CA6: =IF(J6>=80,1,0) -> 1 | CB6: =IF(K6>=80,1,0) -> 1 | CD6: =IF(M6>=80,1,0) -> 1 | CE6: =IF(N6>=80,1,0) -> 1 | CF6: =IF(O6>=80,1,0) -> 1 | CG6: =IF(P6>=80,1,0) -> 0 | CH6: =IF(Q6>=80,1,0) -> 1 | CI6: =IF(R6>=80,1,0) -> 1 | CJ6: =IF(S6>=80,1,0) -> 1 | CL6: =IF(U6>=80,1,0) -> 1 | CM6: =IF(V6>=80,1,0) -> 1 | CN6: =IF(W6>=80,1,0) -> 1 | CO6: =IF(X6>=80,1,0) -> 0 | CP6: =IF(Y6>=80,1,0) -> 1 | CR6: =IF(AA6>=80,1,0) -> 1 | CS6: =IF(AB6>=80,1,0) -> 0 | CT6: =IF(AC6>=80,1,0) -> 1 | CU6: =IF(AD6>=80,1,0) -> 0 | CV6: =IF(AE6>=80,1,0) -> 1 | CX6: =IF(AG6>=80,1,0) -> 1 | CY6: =IF(AH6>=80,1,0) -> 1 | CZ6: =IF(AI6>=80,1,0) -> 0 | DA6: =IF(AJ6>=80,1,0) -> 1 | DB6: =IF(AK6>=80,1,0) -> 1 | DD6: =IF(AM6>=80,1,0) -> 0 | DE6: =IF(AN6>=80,1,0) -> 1 | DF6: =IF(AO6>=80,1,0) -> 1 | DG6: =IF(AP6>=80,1,0) -> 1 | DH6: =IF(AQ6>=80,1,0) -> 1 | DI6: =IF(AR6>=80,1,0) -> 1 | DJ6: =IF(AS6>=80,1,0) -> 1 | DL6: =IF(AU6>=80,1,0) -> 1 | DM6: =IF(AV6>=80,1,0) -> 1 | DN6: =IF(AW6>=80,1,0) -> 1 | DP6: =IF(AY6>=80,1,0) -> 1 | DQ6: =IF(AZ6>=80,1,0) -> 0 | DR6: =IF(BA6>=80,1,0) -> 0 | DS6: =IF(BB6>=80,1,0) -> 1 | DT6: =IF(BC6>=80,1,0) -> 1 | DU6: =IF(BD6>=80,1,0) -> 1 | DV6: =IF(BE6>=80,1,0) -> 1 | DW6: =IF(BF6>=80,1,0) -> 1 | DY6: =IF(BH6>=80,1,0) -> 1 | DZ6: =IF(BI6>=80,1,0) -> 1 | EA6: =IF(BJ6>=80,1,0) -> 1 | EB6: =IF(BK6>=80,1,0) -> 1 | EC6: =IF(BL6>=80,1,0) -> 1 | ED6: =IF(BM6>=80,1,0) -> 1 | EE6: =IF(BN6>=80,1,0) -> 1 | EG6: =IF(BP6>=80,1,0) -> 1 | EH6: =IF(BQ6>=80,1,0) -> 1 | EI6: =IF(BR6>=80,1,0) -> 1 | EJ6: =IF(BS6>=80,1,0) -> 1 | EK6: =IF(BT6>=80,1,0) -> 1 | EL6: =IF(BU6>=80,1,0) -> 1 | EM6: =IF(BV6>=80,1,0) -> 1 | EN6: =IF(BW6>=80,1,0) -> 1 | EO6: =IF(BX6>=80,1,0) -> 1 | EP6: =SUM(CA6:EO6) -> 50 | EQ6: =EP6/55 -> 90.91%
A7: 化工16-1班 | B7: 林润丹 | C7: 2016010402 | D7: 无 | E7: 无 | F7: 无 | G7: 无 | H7: B | I7: 1.1 | J7: 78 | K7: 81 | L7: 89.1 | M7: 77 | N7: 76 | O7: 93 | P7: 74 | Q7: 86 | R7: 80 | S7: 80 | U7: 78 | V7: 94 | W7: 85 | Y7: 86 | Z7: 94.6 | AA7: 85 | AC7: 88 | AD7: 65 | AE7: 91 | AG7: 91 | AH7: 73 | AJ7: 79 | AK7: 85 | AL7: 93.5 | AM7: 75 | AN7: 92 | AO7: 72 | AP7: 87 | AQ7: 79 | AR7: 81 | AS7: 81 | AU7: 86 | AV7: 87 | AW7: 82 | AX7: 90.2 | AY7: 75 | AZ7: 72 | BA7: 60 | BB7: 82 | BC7: 72 | BD7: 82 | BE7: 80 | BF7: 86 | BH7: 81 | BI7: 85 | BJ7: 71 | BK7: 78 | BL7: 74 | BM7: 80 | BN7: 85 | BP7: 93 | BQ7: 77 | BR7: 81 | BS7: 85 | BT7: 80 | BU7: 91 | BV7: 77 | BW7: 78 | BX7: 95 | BY7: 80.94828897 | CA7: 0 | CB7: 1 | CD7: 0 | CE7: 0 | CF7: 1 | CG7: 0 | CH7: 1 | CI7: 1 | CJ7: 1 | CL7: 0 | CM7: 1 | CN7: 1 | CO7: 0 | CP7: 1 | CR7: 1 | CS7: 0 | CT7: 1 | CU7: 0 | CV7: 1 | CX7: 1 | CY7: 0 | CZ7: 0 | DA7: 0 | DB7: 1 | DD7: 0 | DE7: 1 | DF7: 0 | DG7: 1 | DH7: 0 | DI7: 1 | DJ7: 1 | DL7: 1 | DM7: 1 | DN7: 1 | DP7: 0 | DQ7: 0 | DR7: 0 | DS7: 1 | DT7: 0 | DU7: 1 | DV7: 1 | DW7: 1 | DY7: 1 | DZ7: 1 | EA7: 0 | EB7: 0 | EC7: 0 | ED7: 1 | EE7: 1 | EG7: 1 | EH7: 0 | EI7: 1 | EJ7: 1 | EK7: 1 | EL7: 1 | EM7: 0 | EN7: 0 | EO7: 1 | EP7: 34 | EQ7: 61.82%
A8: 化工16-1班 | B8: 刘婉琪 | C8: 2016010403 | D8: 无 | E8: 无 | F8: 无 | G8: 无 | H8: A | I8: 1.15 | J8: 87 | K8: 92 | L8: 105.8 | M8: 64 | N8: 92 | O8: 87 | P8: 78 | Q8: 93 | R8: 91 | S8: 85 | U8: 77 | V8: 88 | W8: 77 | Y8: 87 | Z8: 100.05 | AA8: 71 | AC8: 92 | AD8: 76 | AE8: 88 | AG8: 95 | AH8: 66 | AJ8: 78 | AK8: 90 | AL8: 103.5 | AM8: 78 | AN8: 93 | AO8: 83 | AP8: 88 | AQ8: 74 | AR8: 76 | AS8: 87 | AU8: 70 | AV8: 89 | AW8: 83 | AX8: 95.45 | AY8: 84 | AZ8: 78 | BA8: 66 | BB8: 78 | BC8: 85 | BD8: 90 | BE8: 89 | BF8: 89 | BH8: 82 | BI8: 92 | BJ8: 82 | BK8: 84 | BL8: 86 | BM8: 81 | BN8: 86 | BP8: 85 | BQ8: 77 | BR8: 82 | BS8: 92 | BT8: 95 | BU8: 85 | BV8: 83 | BW8: 77 | BX8: 98 | BY8: 83.26844106 | CA8: 1 | CB8: 1 | CD8: 0 | CE8: 1 | CF8: 1 | CG8: 0 | CH8: 1 | CI8: 1 | CJ8: 1 | CL8: 0 | CM8: 1 | CN8: 0 | CO8: 0 | CP8: 1 | CR8: 0 | CS8: 0 | CT8: 1 | CU8: 0 | CV8: 1 | CX8: 1 | CY8: 0 | CZ8: 0 | DA8: 0 | DB8: 1 | DD8: 0 | DE8: 1 | DF8: 1 | DG8: 1 | DH8: 0 | DI8: 0 | DJ8: 1 | DL8: 0 | DM8: 1 | DN8: 1 | DP8: 1 | DQ8: 0 | DR8: 0 | DS8: 0 | DT8: 1 | DU8: 1 | DV8: 1 | DW8: 1 | DY8: 1 | DZ8: 1 | EA8: 1 | EB8: 1 | EC8: 1 | ED8: 1 | EE8: 1 | EG8: 1 | EH8: 0 | EI8: 1 | EJ8: 1 | EK8: 1 | EL8: 1 | EM8: 1 | EN8: 0 | EO8: 1 | EP8: 38 | EQ8: 69.09%
A9: 化工16-1班 | B9: 毛姣 | C9: 2016010404 | D9: 无 | E9: 无 | F9: 无 | G9: 无 | H9: B | I9: 1.1 | J9: 72 | K9: 75 | L9: 82.5 | M9: 80 | N9: 81 | O9: 88 | P9: 83 | Q9: 92 | R9: 74 | S9: 83 | U9: 80 | V9: 88 | W9: 77 | Y9: 83 | Z9: 91.3 | AA9: 81 | AC9: 85 | AD9: 71 | AE9: 92 | AG9: 91 | AH9: 76 | AJ9: 74 | AK9: 77 | AL9: 84.7 | AM9: 76 | AN9: 92 | AO9: 77 | AP9: 87 | AQ9: 83 | AR9: 87 | AS9: 83 | AU9: 81 | AV9: 88 | AW9: 85 | AX9: 93.5 | AY9: 86 | AZ9: 84 | BA9: 73 | BB9: 81 | BC9: 88 | BD9: 84 | BE9: 97 | BF9: 89 | BH9: 87 | BI9: 85 | BJ9: 86 | BK9: 88 | BL9: 89 | BM9: 84 | BN9: 87 | BP9: 82 | BQ9: 73 | BR9: 81 | BS9: 87 | BT9: 90 | BU9: 90 | BV9: 73 | BW9: 91 | BX9: 94 | BY9: 83.01977186 | CA9: 0 | CB9: 0 | CD9: 1 | CE9: 1 | CF9: 1 | CG9: 1 | CH9: 1 | CI9: 0 | CJ9: 1 | CL9: 1 | CM9: 1 | CN9: 0 | CO9: 0 | CP9: 1 | CR9: 1 | CS9: 0 | CT9: 1 | CU9: 0 | CV9: 1 | CX9: 1 | CY9: 0 | CZ9: 0 | DA9: 0 | DB9: 0 | DD9: 0 | DE9: 1 | DF9: 0 | DG9: 1 | DH9: 1 | DI9: 1 | DJ9: 1 | DL9: 1 | DM9: 1 | DN9: 1 | DP9: 1 | DQ9: 1 | DR9: 0 | DS9: 1 | DT9: 1 | DU9: 1 | DV9: 1 | DW9: 1 | DY9: 1 | DZ9: 1 | EA9: 1 | EB9: 1 | EC9: 1 | ED9: 1 | EE9: 1 | EG9: 1 | EH9: 0 | EI9: 1 | EJ9: 1 | EK9: 1 | EL9: 1 | EM9: 0 | EN9: 1 | EO9: 1 | EP9: 42 | EQ9: 76.36%
A10: 化工16-1班 | B10: 裴红静 | C10: 2016010405 | D10: 有 | E10: 无 | F10: 无 | G10: 无 | H10: B | I10: 1.1 | J10: 77 | K10: 82 | L10: 90.2 | M10: 81 | N10: 81 | O10: 90 | P10: 64 | Q10: 83 | R10: 77 | S10: 86 | U10: 72 | V10: 89 | W10: 70 | Y10: 84 | Z10: 92.4 | AA10: 82 | AC10: 87 | AD10: 62 | AE10: 91 | AG10: 86 | AH10: 71 | AJ10: 81 | AK10: 81 | AL10: 89.1 | AM10: 77 | AN10: 91 | AO10: 65 | AP10: 86 | AQ10: 67 | AR10: 71 | AS10: 82 | AU10: 80 | AV10: 86 | AW10: 76 | AX10: 83.6 | AY10: 71 | AZ10: 78 | BA10: 68 | BB10: 83 | BC10: 75 | BD10: 84 | BE10: 71 | BF10: 86 | BH10: 67 | BI10: 91 | BJ10: 55 | BK10: 82 | BL10: 81 | BM10: 77 | BN10: 86 | BP10: 82 | BQ10: 80 | BR10: 77 | BS10: 83 | BT10: 84 | BU10: 90 | BV10: 82 | BW10: 75 | BX10: 86 | BY10: 78.79315589 | CA10: 0 | CB10: 1 | CD10: 1 | CE10: 1 | CF10: 1 | CG10: 0 | CH10: 1 | CI10: 0 | CJ10: 1 | CL10: 0 | CM10: 1 | CN10: 0 | CO10: 0 | CP10: 1 | CR10: 1 | CS10: 0 | CT10: 1 | CU10: 0 | CV10: 1 | CX10: 1 | CY10: 0 | CZ10: 0 | DA10: 1 | DB10: 1 | DD10: 0 | DE10: 1 | DF10: 0 | DG10: 1 | DH10: 0 | DI10: 0 | DJ10: 1 | DL10: 1 | DM10: 1 | DN10: 0 | DP10: 0 | DQ10: 0 | DR10: 0 | DS10: 1 | DT10: 0 | DU10: 1 | DV10: 0 | DW10: 1 | DY10: 0 | DZ10: 1 | EA10: 0 | EB10: 1 | EC10: 1 | ED10: 0 | EE10: 1 | EG10: 1 | EH10: 1 | EI10: 0 | EJ10: 1 | EK10: 1 | EL10: 1 | EM10: 1 | EN10: 0 | EO10: 1 | EP10: 33 | EQ10: 60.00%
A11: 化工16-1班 | B11: 盛奕琪 | C11: 2016010406 | D11: 无 | E11: 无 | F11: 无 | G11: 无 | H11: B | I11: 1.1 | J11: 74 | K11: 73 | L11: 80.3 | M11: 88 | N11: 88 | O11: 96 | P11: 90 | Q11: 83 | R11: 84 | S11: 89 | U11: 92 | V11: 90 | W11: 90 | Y11: 81 | Z11: 89.1 | AA11: 94 | AC11: 90 | AD11: 83 | AE11: 92 | AG11: 92 | AH11: 94 | AJ11: 88 | AK11: 86 | AL11: 94.6 | AM11: 77 | AN11: 94 | AO11: 79 | AP11: 86 | AQ11: 79 | AR11: 89 | AS11: 84 | AU11: 88 | AV11: 87 | AW11: 84 | AX11: 92.4 | AY11: 87 | AZ11: 87 | BA11: 74 | BB11: 88 | BC11: 91 | BD11: 85 | BE11: 89 | BF11: 89 | BH11: 75 | BI11: 90 | BJ11: 76 | BK11: 85 | BL11: 89 | BM11: 80 | BN11: 86 | BP11: 92 | BQ11: 91 | BR11: 85 | BS11: 85 | BT11: 90 | BU11: 93 | BV11: 88 | BW11: 94 | BX11: 94 | BY11: 86.9513308 | CA11: 0 | CB11: 0 | CD11: 1 | CE11: 1 | CF11: 1 | CG11: 1 | CH11: 1 | CI11: 1 | CJ11: 1 | CL11: 1 | CM11: 1 | CN11: 1 | CO11: 0 | CP11: 1 | CR11: 1 | CS11: 0 | CT11: 1 | CU11: 1 | CV11: 1 | CX11: 1 | CY11: 1 | CZ11: 0 | DA11: 1 | DB11: 1 | DD11: 0 | DE11: 1 | DF11: 0 | DG11: 1 | DH11: 0 | DI11: 1 | DJ11: 1 | DL11: 1 | DM11: 1 | DN11: 1 | DP11: 1 | DQ11: 1 | DR11: 0 | DS11: 1 | DT11: 1 | DU11: 1 | DV11: 1 | DW11: 1 | DY11: 0 | DZ11: 1 | EA11: 0 | EB11: 1 | EC11: 1 | ED11: 1 | EE11: 1 | EG11: 1 | EH11: 1 | EI11: 1 | EJ11: 1 | EK11: 1 | EL11: 1 | EM11: 1 | EN11: 1 | EO11: 1 | EP11: 47 | EQ11: 85.45%
A12: 化工16-1班 | B12: 塔娜 | C12: 2016010407 | D12: 有 | E12: 无 | F12: 无 | G12: 无 | H12: B | I12: 1.1 | J12: 75 | K12: 70 | L12: 77 | M12: 69 | N12: 81 | O12: 97 | P12: 72 | Q12: 81 | R12: 64 | S12: 83 | U12: 75 | V12: 92 | W12: 63 | Y12: 75 | Z12: 82.5 | AA12: 78 | AC12: 85 | AD12: 64 | AE12: 90 | AG12: 90 | AH12: 80 | AJ12: 81 | AK12: 73 | AL12: 80.3 | AM12: 84 | AN12: 93 | AO12: 74 | AP12: 86 | AQ12: 61 | AR12: 79 | AS12: 85 | AU12: 88 | AV12: 89 | AW12: 78 | AX12: 85.8 | AY12: 73 | AZ12: 71 | BA12: 60 | BB12: 81 | BC12: 94 | BD12: 90 | BE12: 87 | BF12: 87 | BH12: 83 | BI12: 87 | BJ12: 66 | BK12: 81 | BL12: 81 | BM12: 82 | BN12: 84 | BP12: 85 | BQ12: 84 | BR12: 75 | BS12: 91 | BT12: 90 | BU12: 83 | BV12: 77 | BW12: 80 | BX12: 97 | BY12: 78.62889734 | CA12: 0 | CB12: 0 | CD12: 0 | CE12: 1 | CF12: 1 | CG12: 0 | CH12: 1 | CI12: 0 | CJ12: 1 | CL12: 0 | CM12: 1 | CN12: 0 | CO12: 0 | CP12: 0 | CR12: 0 | CS12: 0 | CT12: 1 | CU12: 0 | CV12: 1 | CX12: 1 | CY12: 1 | CZ12: 0 | DA12: 1 | DB12: 0 | DD12: 1 | DE12: 1 | DF12: 0 | DG12: 1 | DH12: 0 | DI12: 0 | DJ12: 1 | DL12: 1 | DM12: 1 | DN12: 0 | DP12: 0 | DQ12: 0 | DR12: 0 | DS12: 1 | DT12: 1 | DU12: 1 | DV12: 1 | DW12: 1 | DY12: 1 | DZ12: 1 | EA12: 0 | EB12: 1 | EC12: 1 | ED12: 1 | EE12: 1 | EG12: 1 | EH12: 1 | EI12: 0 | EJ12: 1 | EK12: 1 | EL12: 1 | EM12: 0 | EN12: 1 | EO12: 1 | EP12: 34 | EQ12: 61.82%
A13: 化工16-1班 | B13: 王超男 | C13: 2016010408 | D13: 有 | E13: 无 | F13: 无 | G13: 无 | H13: B | I13: 1.1 | J13: 83 | K13: 70 | L13: 77 | M13: 65 | N13: 77 | O13: 95 | P13: 81 | Q13: 77 | R13: 62 | S13: 79 | U13: 69 | V13: 80 | W13: 68 | Y13: 76 | Z13: 83.6 | AA13: 73 | AC13: 85 | AD13: 61 | AE13: 91 | AG13: 88 | AH13: 70 | AJ13: 80 | AK13: 77 | AL13: 84.7 | AM13: 72 | AN13: 92 | AO13: 72 | AP13: 88 | AQ13: 60 | AR13: 68 | AS13: 84 | AU13: 94 | AV13: 86 | AW13: 83 | AX13: 91.3 | AY13: 69 | AZ13: 72 | BA13: 60 | BB13: 76 | BC13: 78 | BD13: 90 | BE13: 75 | BF13: 91 | BH13: 81 | BI13: 85 | BJ13: 63 | BK13: 76 | BL13: 78 | BM13: 82 | BN13: 87 | BP13: 74 | BQ13: 73 | BR13: 73 | BS13: 90 | BT13: 87 | BU13: 86 | BV13: 86 | BW13: 75 | BX13: 92 | BY13: 76.07908745 | CA13: 1 | CB13: 0 | CD13: 0 | CE13: 0 | CF13: 1 | CG13: 1 | CH13: 0 | CI13: 0 | CJ13: 0 | CL13: 0 | CM13: 1 | CN13: 0 | CO13: 0 | CP13: 0 | CR13: 0 | CS13: 0 | CT13: 1 | CU13: 0 | CV13: 1 | CX13: 1 | CY13: 0 | CZ13: 0 | DA13: 1 | DB13: 0 | DD13: 0 | DE13: 1 | DF13: 0 | DG13: 1 | DH13: 0 | DI13: 0 | DJ13: 1 | DL13: 1 | DM13: 1 | DN13: 1 | DP13: 0 | DQ13: 0 | DR13: 0 | DS13: 0 | DT13: 0 | DU13: 1 | DV13: 0 | DW13: 1 | DY13: 1 | DZ13: 1 | EA13: 0 | EB13: 0 | EC13: 0 | ED13: 1 | EE13: 1 | EG13: 0 | EH13: 0 | EI13: 0 | EJ13: 1 | EK13: 1 | EL13: 1 | EM13: 1 | EN13: 0 | EO13: 1 | EP13: 25 | EQ13: 45.45%
A14: 化工16-1班 | B14: 王筝 | C14: 2016010409 | D14: 有 | E14: 无 | F14: 有 | G14: 无 | H14: C | I14: 1 | J14: 67 | K14: 73 | L14: 73 | M14: 60 | N14: 71 | O14: 88 | P14: 80 | Q14: 81 | R14: 49 | S14: 81 | U14: 68 | V14: 86 | W14: 63 | Y14: 65 | Z14: 65 | AA14: 72 | AC14: 71 | AD14: 52 | AE14: 90 | AG14: 93 | AH14: 60 | AJ14: 69 | AK14: 63 | AL14: 63 | AM14: 67 | AN14: 91 | AO14: 64 | AP14: 86 | AQ14: 60 | AR14: 60 | AS14: 81 | AU14: 88 | AV14: 84 | AW14: 60 | AX14: 60 | AY14: 66 | AZ14: 60 | BA14: 36 | BB14: 69 | BC14: 73 | BD14: 85 | BE14: 68 | BF14: 85 | BH14: 70 | BI14: 70 | BJ14: 49 | BK14: 74 | BL14: 60 | BM14: 80 | BN14: 82 | BP14: 71 | BQ14: 69 | BR14: 62 | BS14: 81 | BT14: 87 | BU14: 76 | BV14: 76 | BW14: 74 | BX14: 83 | BY14: 68.01901141 | CA14: 0 | CB14: 0 | CD14: 0 | CE14: 0 | CF14: 1 | CG14: 1 | CH14: 1 | CI14: 0 | CJ14: 1 | CL14: 0 | CM14: 1 | CN14: 0 | CO14: 0 | CP14: 0 | CR14: 0 | CS14: 0 | CT14: 0 | CU14: 0 | CV14: 1 | CX14: 1 | CY14: 0 | CZ14: 0 | DA14: 0 | DB14: 0 | DD14: 0 | DE14: 1 | DF14: 0 | DG14: 1 | DH14: 0 | DI14: 0 | DJ14: 1 | DL14: 1 | DM14: 1 | DN14: 0 | DP14: 0 | DQ14: 0 | DR14: 0 | DS14: 0 | DT14: 0 | DU14: 1 | DV14: 0 | DW14: 1 | DY14: 0 | DZ14: 0 | EA14: 0 | EB14: 0 | EC14: 0 | ED14: 1 | EE14: 1 | EG14: 0 | EH14: 0 | EI14: 0 | EJ14: 1 | EK14: 1 | EL14: 0 | EM14: 0 | EN14: 0 | EO14: 1 | EP14: 19 | EQ14: 34.55%
A15: 化工16-1班 | B15: 安毅帆 | C15: 2016010410 | D15: 有 | E15: 无 | F15: 无 | G15: 无 | H15: B | I15: 1.1 | J15: 70 | K15: 65 | L15: 71.5 | M15: 71 | N15: 81 | O15: 90 | P15: 85 | Q15: 83 | R15: 60 | S15: 83 | U15: 65 | V15: 80 | W15: 60 | Y15: 74 | Z15: 81.4 | AA15: 75 | AC15: 87 | AD15: 65 | AE15: 84 | AG15: 81 | AH15: 71 | AJ15: 74 | AK15: 76 | AL15: 83.6 | AM15: 78 | AN15: 93 | AO15: 63 | AP15: 84 | AQ15: 62 | AR15: 63 | AS15: 70 | AU15: 86 | AV15: 84 | AW15: 66 | AX15: 72.6 | AY15: 69 | AZ15: 76 | BA15: 66 | BB15: 61 | BC15: 77 | BD15: 85 | BE15: 80 | BF15: 89 | BH15: 66 | BI15: 82 | BJ15: 68 | BK15: 82 | BL15: 83 | BM15: 82 | BN15: 88 | BP15: 82 | BQ15: 81 | BR15: 61 | BS15: 82 | BT15: 91 | BU15: 86 | BV15: 76 | BW15: 94 | BX15: 87 | BY15: 74.90874525 | CA15: 0 | CB15: 0 | CD15: 0 | CE15: 1 | CF15: 1 | CG15: 1 | CH15: 1 | CI15: 0 | CJ15: 1 | CL15: 0 | CM15: 1 | CN15: 0 | CO15: 0 | CP15: 0 | CR15: 0 | CS15: 0 | CT15: 1 | CU15: 0 | CV15: 1 | CX15: 1 | CY15: 0 | CZ15: 0 | DA15: 0 | DB15: 0 | DD15: 0 | DE15: 1 | DF15: 0 | DG15: 1 | DH15: 0 | DI15: 0 | DJ15: 0 | DL15: 1 | DM15: 1 | DN15: 0 | DP15: 0 | DQ15: 0 | DR15: 0 | DS15: 0 | DT15: 0 | DU15: 1 | DV15: 1 | DW15: 1 | DY15: 0 | DZ15: 1 | EA15: 0 | EB15: 1 | EC15: 1 | ED15: 1 | EE15: 1 | EG15: 1 | EH15: 1 | EI15: 0 | EJ15: 1 | EK15: 1 | EL15: 1 | EM15: 0 | EN15: 1 | EO15: 1 | EP15: 28 | EQ15: 50.91%
A16: 化工16-1班 | B16: 崔世彤 | C16: 2016010411 | D16: 无 | E16: 无 | F16: 无 | G16: 无 | H16: A | I16: 1.15 | J16: 61 | K16: 92 | L16: 105.8 | M16: 95 | N16: 92 | O16: 95 | P16: 88 | Q16: 89 | R16: 91 | S16: 89 | U16: 95 | V16: 80 | W16: 97 | Y16: 92 | Z16: 105.8 | AA16: 97 | AC16: 97 | AD16: 93 | AE16: 87 | AG16: 86 | AH16: 97 | AJ16: 84 | AK16: 96 | AL16: 110.4 | AM16: 83 | AN16: 92 | AO16: 92 | AP16: 87 | AQ16: 97 | AR16: 87 | AS16: 89 | AU16: 85 | AV16: 86 | AW16: 90 | AX16: 103.5 | AY16: 97 | AZ16: 86 | BA16: 91 | BB16: 85 | BC16: 83 | BD16: 90 | BE16: 97 | BF16: 91 | BH16: 95 | BI16: 96 | BJ16: 96 | BK16: 85 | BL16: 98 | BM16: 83 | BN16: 87 | BP16: 85 | BQ16: 93 | BR16: 89 | BS16: 92 | BT16: 93 | BU16: 94 | BV16: 85 | BW16: 99 | BX16: 97 | BY16: 92.8608365 | CA16: 0 | CB16: 1 | CD16: 1 | CE16: 1 | CF16: 1 | CG16: 1 | CH16: 1 | CI16: 1 | CJ16: 1 | CL16: 1 | CM16: 1 | CN16: 1 | CO16: 0 | CP16: 1 | CR16: 1 | CS16: 0 | CT16: 1 | CU16: 1 | CV16: 1 | CX16: 1 | CY16: 1 | CZ16: 0 | DA16: 1 | DB16: 1 | DD16: 1 | DE16: 1 | DF16: 1 | DG16: 1 | DH16: 1 | DI16: 1 | DJ16: 1 | DL16: 1 | DM16: 1 | DN16: 1 | DP16: 1 | DQ16: 1 | DR16: 1 | DS16: 1 | DT16: 1 | DU16: 1 | DV16: 1 | DW16: 1 | DY16: 1 | DZ16: 1 | EA16: 1 | EB16: 1 | EC16: 1 | ED16: 1 | EE16: 1 | EG16: 1 | EH16: 1 | EI16: 1 | EJ16: 1 | EK16: 1 | EL16: 1 | EM16: 1 | EN16: 1 | EO16: 1 | EP16: 54 | EQ16: 98.18%
A17: 化工16-1班 | B17: 冯晨 | C17: 2016010412 | D17: 有 | E17: 无 | F17: 无 | G17: 无 | H17: B | I17: 1.1 | J17: 78 | K17: 73 | L17: 80.3 | M17: 69 | N17: 84 | O17: 88 | P17: 83 | Q17: 85 | R17: 76 | S17: 79 | U17: 78 | V17: 93 | W17: 72 | Y17: 77 | Z17: 84.7 | AA17: 68 | AC17: 81 | AD17: 62 | AE17: 86 | AG17: 92 | AH17: 78 | AJ17: 78 | AK17: 74 | AL17: 81.4 | AM17: 77 | AN17: 94 | AO17: 68 | AP17: 85 | AQ17: 74 | AR17: 75 | AS17: 81 | AU17: 81 | AV17: 87 | AW17: 67 | AX17: 73.7 | AY17: 76 | AZ17: 69 | BA17: 60 | BB17: 73 | BC17: 71 | BD17: 79 | BE17: 83 | BF17: 89 | BH17: 69 | BI17: 80 | BJ17: 64 | BK17: 85 | BL17: 87 | BM17: 78 | BN17: 87 | BP17: 73 | BQ17: 84 | BR17: 74 | BS17: 74 | BT17: 90 | BU17: 78 | BV17: 69 | BW17: 84 | BX17: 87 | BY17: 76.72015209 | CA17: 0 | CB17: 0 | CD17: 0 | CE17: 1 | CF17: 1 | CG17: 1 | CH17: 1 | CI17: 0 | CJ17: 0 | CL17: 0 | CM17: 1 | CN17: 0 | CO17: 0 | CP17: 0 | CR17: 0 | CS17: 0 | CT17: 1 | CU17: 0 | CV17: 1 | CX17: 1 | CY17: 0 | CZ17: 0 | DA17: 0 | DB17: 0 | DD17: 0 | DE17: 1 | DF17: 0 | DG17: 1 | DH17: 0 | DI17: 0 | DJ17: 1 | DL17: 1 | DM17: 1 | DN17: 0 | DP17: 0 | DQ17: 0 | DR17: 0 | DS17: 0 | DT17: 0 | DU17: 0 | DV17: 1 | DW17: 1 | DY17: 0 | DZ17: 1 | EA17: 0 | EB17: 1 | EC17: 1 | ED17: 0 | EE17: 1 | EG17: 0 | EH17: 1 | EI17: 0 | EJ17: 0 | EK17: 1 | EL17: 0 | EM17: 0 | EN17: 1 | EO17: 1 | EP17: 23 | EQ17: 41.82%
A18: 化工16-1班 | B18: 高浩然 | C18: 2016010413 | D18: 有 | E18: 无 | F18: 无 | G18: 无 | H18: B | I18: 1.1 | J18: 72 | K18: 73 | L18: 80.3 | M18: 70 | N18: 85 | O18: 89 | P18: 83 | Q18: 82 | R18: 72 | S18: 88 | U18: 68 | V18: 81 | W18: 67 | Y18: 80 | Z18: 88 | AA18: 61 | AC18: 85 | AD18: 61 | AE18: 87 | AG18: 81 | AH18: 76 | AJ18: 69 | AK18: 84 | AL18: 92.4 | AM18: 77 | AN18: 96 | AO18: 71 | AP18: 86 | AQ18: 62 | AR18: 60 | AS18: 80 | AU18: 77 | AV18: 86 | AW18: 71 | AX18: 78.1 | AY18: 65 | AZ18: 64 | BA18: 60 | BB18: 71 | BC18: 84 | BD18: 91 | BE18: 78 | BF18: 86 | BH18: 84 | BI18: 82 | BJ18: 70 | BK18: 87 | BL18: 82 | BM18: 83 | BN18: 88 | BP18: 80 | BQ18: 69 | BR18: 72 | BS18: 84 | BT18: 91 | BU18: 83 | BV18: 80 | BW18: 79 | BX18: 87 | BY18: 75.88745247 | CA18: 0 | CB18: 0 | CD18: 0 | CE18: 1 | CF18: 1 | CG18: 1 | CH18: 1 | CI18: 0 | CJ18: 1 | CL18: 0 | CM18: 1 | CN18: 0 | CO18: 0 | CP18: 1 | CR18: 0 | CS18: 0 | CT18: 1 | CU18: 0 | CV18: 1 | CX18: 1 | CY18: 0 | CZ18: 0 | DA18: 0 | DB18: 1 | DD18: 0 | DE18: 1 | DF18: 0 | DG18: 1 | DH18: 0 | DI18: 0 | DJ18: 1 | DL18: 0 | DM18: 1 | DN18: 0 | DP18: 0 | DQ18: 0 | DR18: 0 | DS18: 0 | DT18: 1 | DU18: 1 | DV18: 0 | DW18: 1 | DY18: 1 | DZ18: 1 | EA18: 0 | EB18: 1 | EC18: 1 | ED18: 1 | EE18: 1 | EG18: 1 | EH18: 0 | EI18: 0 | EJ18: 1 | EK18: 1 | EL18: 1 | EM18: 1 | EN18: 0 | EO18: 1 | EP18: 30 | EQ18: 54.55%
A19: 化工16-1班 | B19: 韩博 | C19: 2016010414 | D19: 有 | E19: 无 | F19: 无 | G19: 无 | H19: B | I19: 1.1 | J19: 71 | K19: 80 | L19: 88 | M19: 83 | N19: 88 | O19: 90 | P19: 88 | Q19: 86 | R19: 75 | S19: 87 | U19: 74 | V19: 80 | W19: 93 | Y19: 85 | Z19: 93.5 | AA19: 93 | AC19: 81 | AD19: 62 | AE19: 91 | AG19: 87 | AH19: 92 | AJ19: 75 | AK19: 73 | AL19: 80.3 | AM19: 78 | AN19: 94 | AO19: 74 | AP19: 83 | AQ19: 79 | AR19: 86 | AS19: 83 | AU19: 68 | AV19: 92 | AW19: 68 | AX19: 74.8 | AY19: 66 | AZ19: 77 | BA19: 65 | BB19: 86 | BC19: 93 | BD19: 82 | BE19: 87 | BF19: 88 | BH19: 68 | BI19: 90 | BJ19: 60 | BK19: 87 | BL19: 80 | BM19: 72 | BN19: 86 | BP19: 70 | BQ19: 83 | BR19: 69 | BS19: 63 | BT19: 82 | BU19: 87 | BV19: 77 | BW19: 84 | BX19: 92 | BY19: 80.15741445 | CA19: 0 | CB19: 1 | CD19: 1 | CE19: 1 | CF19: 1 | CG19: 1 | CH19: 1 | CI19: 0 | CJ19: 1 | CL19: 0 | CM19: 1 | CN19: 1 | CO19: 0 | CP19: 1 | CR19: 1 | CS19: 0 | CT19: 1 | CU19: 0 | CV19: 1 | CX19: 1 | CY19: 1 | CZ19: 0 | DA19: 0 | DB19: 0 | DD19: 0 | DE19: 1 | DF19: 0 | DG19: 1 | DH19: 0 | DI19: 1 | DJ19: 1 | DL19: 0 | DM19: 1 | DN19: 0 | DP19: 0 | DQ19: 0 | DR19: 0 | DS19: 1 | DT19: 1 | DU19: 1 | DV19: 1 | DW19: 1 | DY19: 0 | DZ19: 1 | EA19: 0 | EB19: 1 | EC19: 1 | ED19: 0 | EE19: 1 | EG19: 0 | EH19: 1 | EI19: 0 | EJ19: 0 | EK19: 1 | EL19: 1 | EM19: 0 | EN19: 1 | EO19: 1 | EP19: 34 | EQ19: 61.82%
A20: 化工16-1班 | B20: 黄鑫 | C20: 2016010415 | D20: 有 | E20: 有 | F20: 无 | G20: 无 | H20: B | I20: 1.1 | J20: 79 | K20: 67 | L20: 73.7 | M20: 85 | N20: 88 | O20: 80 | P20: 84 | Q20: 84 | R20: 79 | S20: 84 | U20: 60 | V20: 85 | W20: 92 | Y20: 62 | Z20: 68.2 | AA20: 71 | AC20: 83 | AD20: 62 | AE20: 84 | AG20: 89 | AH20: 63 | AJ20: 77 | AK20: 71 | AL20: 78.1 | AM20: 70 | AN20: 92 | AO20: 63 | AP20: 85 | AQ20: 60 | AR20: 90 | AS20: 86 | AU20: 77 | AV20: 88 | AW20: 75 | AX20: 82.5 | AY20: 76 | AZ20: 78 | BA20: 66 | BB20: 75 | BC20: 85 | BD20: 84 | BE20: 77 | BF20: 89 | BH20: 66 | BI20: 75 | BJ20: 33 | BK20: 78 | BL20: 73 | BM20: 76 | BN20: 88 | BP20: 75 | BQ20: 81 | BR20: 74 | BS20: 87 | BT20: 82 | BU20: 90 | BV20: 82 | BW20: 95 | BX20: 95 | BY20: 76.42813688 | CA20: 0 | CB20: 0 | CD20: 1 | CE20: 1 | CF20: 1 | CG20: 1 | CH20: 1 | CI20: 0 | CJ20: 1 | CL20: 0 | CM20: 1 | CN20: 1 | CO20: 0 | CP20: 0 | CR20: 0 | CS20: 0 | CT20: 1 | CU20: 0 | CV20: 1 | CX20: 1 | CY20: 0 | CZ20: 0 | DA20: 0 | DB20: 0 | DD20: 0 | DE20: 1 | DF20: 0 | DG20: 1 | DH20: 0 | DI20: 1 | DJ20: 1 | DL20: 0 | DM20: 1 | DN20: 0 | DP20: 0 | DQ20: 0 | DR20: 0 | DS20: 0 | DT20: 1 | DU20: 1 | DV20: 0 | DW20: 1 | DY20: 0 | DZ20: 0 | EA20: 0 | EB20: 0 | EC20: 0 | ED20: 0 | EE20: 1 | EG20: 0 | EH20: 1 | EI20: 0 | EJ20: 1 | EK20: 1 | EL20: 1 | EM20: 1 | EN20: 1 | EO20: 1 | EP20: 27 | EQ20: 49.09%
A21: 化工16-1班 | B21: 江俊懿 | C21: 2016010416 | D21: 有 | E21: 有 | F21: 有 | G21: 无 | H21: B | I21: 1.1 | J21: 71 | K21: 74 | L21: 81.4 | M21: 60 | N21: 79 | O21: 86 | P21: 74 | Q21: 86 | R21: 63 | S21: 85 | U21: 60 | V21: 81 | W21: 68 | Y21: 70 | Z21: 77 | AA21: 60 | AC21: 73 | AD21: 60 | AE21: 86 | AG21: 89 | AH21: 60 | AJ21: 66 | AK21: 69 | AL21: 75.9 | AM21: 85 | AN21: 91 | AO21: 65 | AP21: 81 | AQ21: 60 | AR21: 60 | AS21: 73 | AU21: 69 | AV21: 83 | AW21: 63 | AX21: 69.3 | AY21: 69 | AZ21: 81 | BA21: 29 | BB21: 62 | BC21: 60 | BD21: 85 | BE21: 68 | BF21: 84 | BH21: 72 | BI21: 77 | BJ21: 53 | BK21: 72 | BL21: 75 | BM21: 71 | BN21: 81 | BP21: 74 | BQ21: 67 | BR21: 61 | BS21: 72 | BT21: 75 | BU21: 82 | BV21: 64 | BW21: 76 | BX21: 73 | BY21: 69.32319392 | CA21: 0 | CB21: 0 | CD21: 0 | CE21: 0 | CF21: 1 | CG21: 0 | CH21: 1 | CI21: 0 | CJ21: 1 | CL21: 0 | CM21: 1 | CN21: 0 | CO21: 0 | CP21: 0 | CR21: 0 | CS21: 0 | CT21: 0 | CU21: 0 | CV21: 1 | CX21: 1 | CY21: 0 | CZ21: 0 | DA21: 0 | DB21: 0 | DD21: 1 | DE21: 1 | DF21: 0 | DG21: 1 | DH21: 0 | DI21: 0 | DJ21: 0 | DL21: 0 | DM21: 1 | DN21: 0 | DP21: 0 | DQ21: 1 | DR21: 0 | DS21: 0 | DT21: 0 | DU21: 1 | DV21: 0 | DW21: 1 | DY21: 0 | DZ21: 0 | EA21: 0 | EB21: 0 | EC21: 0 | ED21: 0 | EE21: 1 | EG21: 0 | EH21: 0 | EI21: 0 | EJ21: 0 | EK21: 0 | EL21: 1 | EM21: 0 | EN21: 0 | EO21: 0 | EP21: 15 | EQ21: 27.27%
A22: 化工16-1班 | B22: 李彬 | C22: 2016010417 | D22: 有 | E22: 无 | F22: 无 | G22: 无 | H22: B | I22: 1.1 | J22: 77 | K22: 64 | L22: 70.4 | M22: 60 | N22: 79 | O22: 90 | P22: 69 | Q22: 85 | R22: 50 | S22: 85 | U22: 62 | V22: 88 | W22: 60 | Y22: 74 | Z22: 81.4 | AA22: 60 | AC22: 77 | AD22: 49 | AE22: 85 | AG22: 91 | AH22: 70 | AJ22: 68 | AK22: 65 | AL22: 71.5 | AM22: 80 | AN22: 93 | AO22: 70 | AP22: 84 | AQ22: 61 | AR22: 60 | AS22: 78 | AU22: 61 | AV22: 83 | AW22: 64 | AX22: 70.4 | AY22: 62 | AZ22: 69 | BA22: 61 | BB22: 61 | BC22: 65 | BD22: 82 | BE22: 63 | BF22: 88 | BH22: 51 | BI22: 82 | BJ22: 55 | BK22: 74 | BL22: 60 | BM22: 80 | BN22: 85 | BP22: 67 | BQ22: 74 | BR22: 62 | BS22: 71 | BT22: 80 | BU22: 72 | BV22: 72 | BW22: 68 | BX22: 82 | BY22: 68.68060837 | CA22: 0 | CB22: 0 | CD22: 0 | CE22: 0 | CF22: 1 | CG22: 0 | CH22: 1 | CI22: 0 | CJ22: 1 | CL22: 0 | CM22: 1 | CN22: 0 | CO22: 0 | CP22: 0 | CR22: 0 | CS22: 0 | CT22: 0 | CU22: 0 | CV22: 1 | CX22: 1 | CY22: 0 | CZ22: 0 | DA22: 0 | DB22: 0 | DD22: 1 | DE22: 1 | DF22: 0 | DG22: 1 | DH22: 0 | DI22: 0 | DJ22: 0 | DL22: 0 | DM22: 1 | DN22: 0 | DP22: 0 | DQ22: 0 | DR22: 0 | DS22: 0 | DT22: 0 | DU22: 1 | DV22: 0 | DW22: 1 | DY22: 0 | DZ22: 1 | EA22: 0 | EB22: 0 | EC22: 0 | ED22: 1 | EE22: 1 | EG22: 0 | EH22: 0 | EI22: 0 | EJ22: 0 | EK22: 1 | EL22: 0 | EM22: 0 | EN22: 0 | EO22: 1 | EP22: 17 | EQ22: 30.91%
A23: 化工16-1班 | B23: 李飞扬 | C23: 2016010418 | D23: 有 | E23: 无 | F23: 有 | G23: 无 | H23: B | I23: 1.1 | J23: 75 | K23: 73 | L23: 80.3 | M23: 84 | N23: 90 | O23: 93 | P23: 90 | Q23: 85 | R23: 82 | S23: 84 | U23: 76 | V23: 83 | W23: 81 | Y23: 78 | Z23: 85.8 | AA23: 92 | AC23: 82 | AD23: 63 | AE23: 84 | AG23: 77 | AH23: 76 | AJ23: 76 | AK23: 72 | AL23: 79.2 | AM23: 90 | AN23: 92 | AO23: 68 | AP23: 85 | AQ23: 75 | AR23: 77 | AS23: 78 | AU23: 64 | AV23: 83 | AW23: 71 | AX23: 78.1 | AY23: 62 | AZ23: 75 | BA23: 60 | BB23: 66 | BC23: 70 | BD23: 85 | BE23: 85 | BF23: 88 | BH23: 77 | BI23: 70 | BJ23: 60 | BK23: 74 | BL23: 73 | BM23: 76 | BN23: 84 | BP23: 61 | BQ23: 80 | BR23: 67 | BS23: 78 | BT23: 80 | BU23: 78 | BV23: 65 | BW23: 84 | BX23: 88 | BY23: 77.37642586 | CA23: 0 | CB23: 0 | CD23: 1 | CE23: 1 | CF23: 1 | CG23: 1 | CH23: 1 | CI23: 1 | CJ23: 1 | CL23: 0 | CM23: 1 | CN23: 1 | CO23: 0 | CP23: 0 | CR23: 1 | CS23: 0 | CT23: 1 | CU23: 0 | CV23: 1 | CX23: 0 | CY23: 0 | CZ23: 0 | DA23: 0 | DB23: 0 | DD23: 1 | DE23: 1 | DF23: 0 | DG23: 1 | DH23: 0 | DI23: 0 | DJ23: 0 | DL23: 0 | DM23: 1 | DN23: 0 | DP23: 0 | DQ23: 0 | DR23: 0 | DS23: 0 | DT23: 0 | DU23: 1 | DV23: 1 | DW23: 1 | DY23: 0 | DZ23: 0 | EA23: 0 | EB23: 0 | EC23: 0 | ED23: 0 | EE23: 1 | EG23: 0 | EH23: 1 | EI23: 0 | EJ23: 0 | EK23: 1 | EL23: 0 | EM23: 0 | EN23: 1 | EO23: 1 | EP23: 24 | EQ23: 43.64%
A24: 化工16-1班 | B24: 刘展 | C24: 2016010419 | D24: 有 | E24: 有 | F24: 无 | G24: 无 | H24: C | I24: 1 | J24: 77 | K24: 75 | L24: 75 | M24: 60 | N24: 85 | O24: 94 | P24: 81 | Q24: 81 | R24: 68 | S24: 86 | U24: 60 | V24: 84 | W24: 60 | Y24: 70 | Z24: 70 | AA24: 60 | AC24: 78 | AD24: 64 | AE24: 87 | AG24: 84 | AH24: 60 | AJ24: 71 | AK24: 66 | AL24: 66 | AM24: 75 | AN24: 91 | AO24: 66 | AP24: 84 | AQ24: 66 | AR24: 60 | AS24: 82 | AU24: 78 | AV24: 83 | AW24: 61 | AX24: 61 | AY24: 67 | AZ24: 61 | BA24: 46 | BB24: 46 | BC24: 60 | BD24: 82 | BE24: 77 | BF24: 87 | BH24: 52 | BI24: 78 | BJ24: 60 | BK24: 75 | BL24: 67 | BM24: 78 | BN24: 85 | BP24: 60 | BQ24: 65 | BR24: 61 | BS24: 70 | BT24: 74 | BU24: 64 | BV24: 63 | BW24: 71 | BX24: 79 | BY24: 68.28897338 | CA24: 0 | CB24: 0 | CD24: 0 | CE24: 1 | CF24: 1 | CG24: 1 | CH24: 1 | CI24: 0 | CJ24: 1 | CL24: 0 | CM24: 1 | CN24: 0 | CO24: 0 | CP24: 0 | CR24: 0 | CS24: 0 | CT24: 0 | CU24: 0 | CV24: 1 | CX24: 1 | CY24: 0 | CZ24: 0 | DA24: 0 | DB24: 0 | DD24: 0 | DE24: 1 | DF24: 0 | DG24: 1 | DH24: 0 | DI24: 0 | DJ24: 1 | DL24: 0 | DM24: 1 | DN24: 0 | DP24: 0 | DQ24: 0 | DR24: 0 | DS24: 0 | DT24: 0 | DU24: 1 | DV24: 0 | DW24: 1 | DY24: 0 | DZ24: 0 | EA24: 0 | EB24: 0 | EC24: 0 | ED24: 0 | EE24: 1 | EG24: 0 | EH24: 0 | EI24: 0 | EJ24: 0 | EK24: 0 | EL24: 0 | EM24: 0 | EN24: 0 | EO24: 0 | EP24: 15 | EQ24: 27.27%
A25: 化工16-1班 | B25: 农谨毓 | C25: 2016010420 | D25: 无 | E25: 有 | F25: 无 | G25: 无 | H25: B | I25: 1.1 | J25: 77 | K25: 66 | L25: 72.6 | M25: 73 | N25: 83 | O25: 95 | P25: 90 | Q25: 87 | R25: 68 | S25: 89 | U25: 60 | V25: 74 | W25: 83 | Y25: 81 | Z25: 89.1 | AA25: 77 | AC25: 82 | AD25: 69 | AE25: 85 | AG25: 96 | AH25: 72 | AJ25: 76 | AK25: 82 | AL25: 90.2 | AM25: 81 | AN25: 92 | AO25: 72 | AP25: 80 | AQ25: 75 | AR25: 76 | AS25: 82 | AU25: 78 | AV25: 83 | AW25: 74 | AX25: 81.4 | AY25: 66 | AZ25: 60 | BA25: 63 | BB25: 64 | BC25: 85 | BD25: 86 | BE25: 74 | BF25: 85 | BH25: 81 | BI25: 78 | BJ25: 60 | BK25: 80 | BL25: 74 | BM25: 80 | BN25: 81 | BP25: 77 | BQ25: 83 | BR25: 70 | BS25: 78 | BT25: 88 | BU25: 66 | BV25: 75 | BW25: 73 | BX25: 82 | BY25: 76.18250951 | CA25: 0 | CB25: 0 | CD25: 0 | CE25: 1 | CF25: 1 | CG25: 1 | CH25: 1 | CI25: 0 | CJ25: 1 | CL25: 0 | CM25: 0 | CN25: 1 | CO25: 0 | CP25: 1 | CR25: 0 | CS25: 0 | CT25: 1 | CU25: 0 | CV25: 1 | CX25: 1 | CY25: 0 | CZ25: 0 | DA25: 0 | DB25: 1 | DD25: 1 | DE25: 1 | DF25: 0 | DG25: 1 | DH25: 0 | DI25: 0 | DJ25: 1 | DL25: 0 | DM25: 1 | DN25: 0 | DP25: 0 | DQ25: 0 | DR25: 0 | DS25: 0 | DT25: 1 | DU25: 1 | DV25: 0 | DW25: 1 | DY25: 1 | DZ25: 0 | EA25: 0 | EB25: 1 | EC25: 0 | ED25: 1 | EE25: 1 | EG25: 0 | EH25: 1 | EI25: 0 | EJ25: 0 | EK25: 1 | EL25: 0 | EM25: 0 | EN25: 0 | EO25: 1 | EP25: 26 | EQ25: 47.27%
A26: 化工16-1班 | B26: 孙维峰 | C26: 2016010421 | D26: 有 | E26: 无 | F26: 有 | G26: 无 | H26: C | I26: 1 | J26: 74 | K26: 60 | L26: 60 | M26: 60 | N26: 84 | O26: 76 | P26: 74 | Q26: 82 | R26: 50 | S26: 85 | U26: 67 | V26: 82 | W26: 61 | Y26: 61 | Z26: 61 | AA26: 60 | AC26: 83 | AD26: 62 | AE26: 89 | AG26: 76 | AH26: 63 | AJ26: 69 | AK26: 73 | AL26: 73 | AM26: 67 | AN26: 91 | AO26: 65 | AP26: 83 | AQ26: 63 | AR26: 69 | AS26: 80 | AU26: 70 | AV26: 85 | AW26: 61 | AX26: 61 | AY26: 69 | AZ26: 72 | BA26: 75 | BB26: 80 | BC26: 75 | BD26: 85 | BE26: 89 | BF26: 86 | BH26: 86 | BI26: 76 | BJ26: 54 | BK26: 73 | BL26: 68 | BM26: 75 | BN26: 87 | BP26: 60 | BQ26: 65 | BR26: 67 | BS26: 72 | BT26: 86 | BU26: 66 | BV26: 71 | BW26: 66 | BX26: 81 | BY26: 69.87452471 | CA26: 0 | CB26: 0 | CD26: 0 | CE26: 1 | CF26: 0 | CG26: 0 | CH26: 1 | CI26: 0 | CJ26: 1 | CL26: 0 | CM26: 1 | CN26: 0 | CO26: 0 | CP26: 0 | CR26: 0 | CS26: 0 | CT26: 1 | CU26: 0 | CV26: 1 | CX26: 0 | CY26: 0 | CZ26: 0 | DA26: 0 | DB26: 0 | DD26: 0 | DE26: 1 | DF26: 0 | DG26: 1 | DH26: 0 | DI26: 0 | DJ26: 1 | DL26: 0 | DM26: 1 | DN26: 0 | DP26: 0 | DQ26: 0 | DR26: 0 | DS26: 1 | DT26: 0 | DU26: 1 | DV26: 1 | DW26: 1 | DY26: 1 | DZ26: 0 | EA26: 0 | EB26: 0 | EC26: 0 | ED26: 0 | EE26: 1 | EG26: 0 | EH26: 0 | EI26: 0 | EJ26: 0 | EK26: 1 | EL26: 0 | EM26: 0 | EN26: 0 | EO26: 1 | EP26: 18 | EQ26: 32.73%
A27: 化工16-1班 | B27: 王浩程 | C27: 2016010422 | D27: 有 | E27: 有 | F27: 无 | G27: 无 | H27: A | I27: 1.15 | J27: 76 | K27: 80 | L27: 92 | M27: 68 | N27: 78 | O27: 92 | P27: 73 | Q27: 78 | R27: 60 | S27: 89 | U27: 65 | V27: 86 | X27: 62 | Y27: 68 | Z27: 78.2 | AB27: 60 | AC27: 66 | AD27: 60 | AE27: 83 | AG27: 80 | AI27: 71 | AJ27: 77 | AK27: 72 | AL27: 82.8 | AM27: 74 | AN27: 95 | AO27: 70 | AP27: 84 | AQ27: 64 | AR27: 60 | AS27: 80 | AU27: 74 | AV27: 83 | AW27: 63 | AX27: 72.45 | AY27: 66 | AZ27: 71 | BA27: 53 | BB27: 66 | BC27: 78 | BD27: 85 | BE27: 72 | BF27: 84 | BH27: 81 | BI27: 77 | BJ27: 60 | BK27: 70 | BL27: 76 | BM27: 74 | BN27: 84 | BP27: 70 | BQ27: 62 | BR27: 71 | BS27: 78 | BT27: 76 | BU27: 78 | BV27: 71 | BW27: 85 | BX27: 88 | BY27: 73.78555133 | CA27: 0 | CB27: 1 | CD27: 0 | CE27: 0 | CF27: 1 | CG27: 0 | CH27: 0 | CI27: 0 | CJ27: 1 | CL27: 0 | CM27: 1 | CN27: 0 | CO27: 0 | CP27: 0 | CR27: 0 | CS27: 0 | CT27: 0 | CU27: 0 | CV27: 1 | CX27: 1 | CY27: 0 | CZ27: 0 | DA27: 0 | DB27: 0 | DD27: 0 | DE27: 1 | DF27: 0 | DG27: 1 | DH27: 0 | DI27: 0 | DJ27: 1 | DL27: 0 | DM27: 1 | DN27: 0 | DP27: 0 | DQ27: 0 | DR27: 0 | DS27: 0 | DT27: 0 | DU27: 1 | DV27: 0 | DW27: 1 | DY27: 1 | DZ27: 0 | EA27: 0 | EB27: 0 | EC27: 0 | ED27: 0 | EE27: 1 | EG27: 0 | EH27: 0 | EI27: 0 | EJ27: 0 | EK27: 0 | EL27: 0 | EM27: 0 | EN27: 1 | EO27: 1 | EP27: 16 | EQ27: 29.09%
A28: 化工16-1班 | B28: 杨浩轩 | C28: 2016010424 | D28: 无 | E28: 无 | F28: 无 | G28: 无 | H28: B | I28: 1.1 | J28: 68 | K28: 73 | L28: 80.3 | M28: 87 | N28: 83 | O28: 93 | P28: 90 | Q28: 78 | R28: 74 | S28: 90 | U28: 76 | V28: 78 | W28: 88 | Y28: 86 | Z28: 94.6 | AA28: 91 | AC28: 84 | AD28: 66 | AE28: 85 | AG28: 78 | AH28: 84 | AJ28: 80 | AK28: 80 | AL28: 88 | AM28: 86 | AN28: 90 | AO28: 73 | AP28: 82 | AQ28: 83 | AR28: 79 | AS28: 88 | AU28: 82 | AV28: 81 | AW28: 80 | AX28: 88 | AY28: 66 | AZ28: 78 | BA28: 82 | BB28: 87 | BC28: 75 | BD28: 81 | BE28: 91 | BF28: 88 | BH28: 77 | BI28: 82 | BJ28: 70 | BK28: 84 | BL28: 93 | BM28: 82 | BN28: 90 | BP28: 87 | BQ28: 81 | BR28: 83 | BS28: 80 | BT28: 83 | BU28: 93 | BV28: 81 | BW28: 82 | BX28: 97 | BY28: 82.91330798 | CA28: 0 | CB28: 0 | CD28: 1 | CE28: 1 | CF28: 1 | CG28: 1 | CH28: 0 | CI28: 0 | CJ28: 1 | CL28: 0 | CM28: 0 | CN28: 1 | CO28: 0 | CP28: 1 | CR28: 1 | CS28: 0 | CT28: 1 | CU28: 0 | CV28: 1 | CX28: 0 | CY28: 1 | CZ28: 0 | DA28: 1 | DB28: 1 | DD28: 1 | DE28: 1 | DF28: 0 | DG28: 1 | DH28: 1 | DI28: 0 | DJ28: 1 | DL28: 1 | DM28: 1 | DN28: 1 | DP28: 0 | DQ28: 0 | DR28: 1 | DS28: 1 | DT28: 0 | DU28: 1 | DV28: 1 | DW28: 1 | DY28: 0 | DZ28: 1 | EA28: 0 | EB28: 1 | EC28: 1 | ED28: 1 | EE28: 1 | EG28: 1 | EH28: 1 | EI28: 1 | EJ28: 1 | EK28: 1 | EL28: 1 | EM28: 1 | EN28: 1 | EO28: 1 | EP28: 40 | EQ28: 72.73%
A29: 化工16-1班 | B29: 袁俊涛 | C29: 2016010425 | D29: 无 | E29: 无 | F29: 无 | G29: 无 | H29: B | I29: 1.1 | J29: 80 | K29: 86 | L29: 94.6 | M29: 89 | N29: 94 | O29: 91 | P29: 86 | Q29: 89 | R29: 90 | S29: 81 | U29: 77 | V29: 90 | W29: 89 | Y29: 82 | Z29: 90.2 | AA29: 91 | AC29: 87 | AD29: 73 | AE29: 84 | AG29: 87 | AH29: 72 | AJ29: 79 | AK29: 83 | AL29: 91.3 | AM29: 80 | AN29: 93 | AO29: 76 | AP29: 86 | AQ29: 81 | AR29: 80 | AS29: 86 | AU29: 60 | AV29: 86 | AW29: 81 | AX29: 89.1 | AY29: 88 | AZ29: 82 | BA29: 75 | BB29: 70 | BC29: 74 | BD29: 86 | BE29: 98 | BF29: 89 | BH29: 79 | BI29: 88 | BJ29: 80 | BK29: 83 | BL29: 93 | BM29: 84 | BN29: 90 | BP29: 79 | BQ29: 91 | BR29: 83 | BS29: 89 | BT29: 90 | BU29: 92 | BV29: 83 | BW29: 81 | BX29: 82 | BY29: 84.9391635 | CA29: 1 | CB29: 1 | CD29: 1 | CE29: 1 | CF29: 1 | CG29: 1 | CH29: 1 | CI29: 1 | CJ29: 1 | CL29: 0 | CM29: 1 | CN29: 1 | CO29: 0 | CP29: 1 | CR29: 1 | CS29: 0 | CT29: 1 | CU29: 0 | CV29: 1 | CX29: 1 | CY29: 0 | CZ29: 0 | DA29: 0 | DB29: 1 | DD29: 1 | DE29: 1 | DF29: 0 | DG29: 1 | DH29: 1 | DI29: 1 | DJ29: 1 | DL29: 0 | DM29: 1 | DN29: 1 | DP29: 1 | DQ29: 1 | DR29: 0 | DS29: 0 | DT29: 0 | DU29: 1 | DV29: 1 | DW29: 1 | DY29: 0 | DZ29: 1 | EA29: 1 | EB29: 1 | EC29: 1 | ED29: 1 | EE29: 1 | EG29: 0 | EH29: 1 | EI29: 1 | EJ29: 1 | EK29: 1 | EL29: 1 | EM29: 1 | EN29: 1 | EO29: 1 | EP29: 44 | EQ29: 80.00%
A30: 化工16-1班 | B30: 张成霄 | C30: 2016010426 | D30: 无 | E30: 无 | F30: 无 | G30: 无 | H30: B | I30: 1.1 | J30: 67 | K30: 84 | L30: 92.4 | M30: 93 | N30: 91 | O30: 91 | P30: 83 | Q30: 86 | R30: 87 | S30: 84 | U30: 83 | V30: 81 | W30: 82 | Y30: 83 | Z30: 91.3 | AA30: 84 | AC30: 88 | AD30: 63 | AE30: 88 | AG30: 83 | AH30: 75 | AJ30: 78 | AK30: 80 | AL30: 88 | AM30: 86 | AN30: 92 | AO30: 81 | AP30: 86 | AQ30: 82 | AR30: 73 | AS30: 88 | AU30: 82 | AV30: 84 | AW30: 80 | AX30: 88 | AY30: 82 | AZ30: 79 | BA30: 81 | BB30: 96 | BC30: 94 | BD30: 84 | BE30: 96 | BF30: 88 | BH30: 82 | BI30: 89 | BJ30: 90 | BK30: 90 | BL30: 90 | BM30: 85 | BN30: 87 | BP30: 83 | BQ30: 87 | BR30: 81 | BS30: 86 | BT30: 85 | BU30: 90 | BV30: 84 | BW30: 85 | BX30: 96 | BY30: 85.16958175 | CA30: 0 | CB30: 1 | CD30: 1 | CE30: 1 | CF30: 1 | CG30: 1 | CH30: 1 | CI30: 1 | CJ30: 1 | CL30: 1 | CM30: 1 | CN30: 1 | CO30: 0 | CP30: 1 | CR30: 1 | CS30: 0 | CT30: 1 | CU30: 0 | CV30: 1 | CX30: 1 | CY30: 0 | CZ30: 0 | DA30: 0 | DB30: 1 | DD30: 1 | DE30: 1 | DF30: 1 | DG30: 1 | DH30: 1 | DI30: 0 | DJ30: 1 | DL30: 1 | DM30: 1 | DN30: 1 | DP30: 1 | DQ30: 0 | DR30: 1 | DS30: 1 | DT30: 1 | DU30: 1 | DV30: 1 | DW30: 1 | DY30: 1 | DZ30: 1 | EA30: 1 | EB30: 1 | EC30: 1 | ED30: 1 | EE30: 1 | EG30: 1 | EH30: 1 | EI30: 1 | EJ30: 1 | EK30: 1 | EL30: 1 | EM30: 1 | EN30: 1 | EO30: 1 | EP30: 49 | EQ30: 89.09%
A31: 化工16-1班 | B31: 张创杰 | C31: 2016010427 | D31: 有 | E31: 无 | F31: 有 | G31: 无 | H31: C | I31: 1 | J31: 76 | K31: 81 | L31: 81 | M31: 60 | N31: 92 | O31: 92 | P31: 73 | Q31: 91 | R31: 66 | S31: 84 | U31: 65 | V31: 92 | W31: 60 | Y31: 86 | Z31: 86 | AA31: 60 | AC31: 92 | AD31: 63 | AE31: 90 | AG31: 95 | AH31: 78 | AJ31: 71 | AK31: 70 | AL31: 70 | AM31: 77 | AN31: 92 | AO31: 64 | AP31: 86 | AQ31: 60 | AR31: 65 | AS31: 86 | AU31: 80 | AV31: 90 | AW31: 80 | AX31: 80 | AY31: 76 | AZ31: 60 | BA31: 49 | BB31: 80 | BC31: 60 | BD31: 91 | BE31: 84 | BF31: 89 | BH31: 75 | BI31: 73 | BJ31: 53 | BK31: 78 | BL31: 69 | BM31: 80 | BN31: 88 | BP31: 60 | BQ31: 64 | BR31: 62 | BS31: 85 | BT31: 82 | BU31: 77 | BV31: 78 | BW31: 71 | BX31: 80 | BY31: 72.75285171 | CA31: 0 | CB31: 1 | CD31: 0 | CE31: 1 | CF31: 1 | CG31: 0 | CH31: 1 | CI31: 0 | CJ31: 1 | CL31: 0 | CM31: 1 | CN31: 0 | CO31: 0 | CP31: 1 | CR31: 0 | CS31: 0 | CT31: 1 | CU31: 0 | CV31: 1 | CX31: 1 | CY31: 0 | CZ31: 0 | DA31: 0 | DB31: 0 | DD31: 0 | DE31: 1 | DF31: 0 | DG31: 1 | DH31: 0 | DI31: 0 | DJ31: 1 | DL31: 1 | DM31: 1 | DN31: 1 | DP31: 0 | DQ31: 0 | DR31: 0 | DS31: 1 | DT31: 0 | DU31: 1 | DV31: 1 | DW31: 1 | DY31: 0 | DZ31: 0 | EA31: 0 | EB31: 0 | EC31: 0 | ED31: 1 | EE31: 1 | EG31: 0 | EH31: 0 | EI31: 0 | EJ31: 1 | EK31: 1 | EL31: 0 | EM31: 0 | EN31: 0 | EO31: 1 | EP31: 25 | EQ31: 45.45%
A32: 化工16-1班 | B32: 张帅 | C32: 2016010428 | D32: 无 | E32: 无 | F32: 有 | G32: 无 | H32: C | I32: 1 | J32: 69 | K32: 66 | L32: 66 | M32: 76 | N32: 88 | O32: 89 | P32: 69 | Q32: 84 | R32: 67 | S32: 88 | U32: 77 | V32: 79 | W32: 85 | Y32: 66 | Z32: 66 | AA32: 88 | AC32: 78 | AD32: 62 | AE32: 89 | AG32: 77 | AH32: 70 | AJ32: 80 | AK32: 60 | AL32: 60 | AM32: 72 | AN32: 93 | AO32: 64 | AP32: 86 | AQ32: 64 | AR32: 82 | AS32: 83 | AU32: 77 | AV32: 83 | AW32: 67 | AX32: 67 | AY32: 80 | AZ32: 85 | BA32: 81 | BB32: 80 | BC32: 95 | BD32: 86 | BE32: 87 | BF32: 87 | BH32: 77 | BI32: 90 | BJ32: 72 | BK32: 86 | BL32: 89 | BM32: 85 | BN32: 86 | BP32: 76 | BQ32: 79 | BR32: 74 | BS32: 86 | BT32: 80 | BU32: 68 | BV32: 67 | BW32: 97 | BX32: 84 | BY32: 77.99239544 | CA32: 0 | CB32: 0 | CD32: 0 | CE32: 1 | CF32: 1 | CG32: 0 | CH32: 1 | CI32: 0 | CJ32: 1 | CL32: 0 | CM32: 0 | CN32: 1 | CO32: 0 | CP32: 0 | CR32: 1 | CS32: 0 | CT32: 0 | CU32: 0 | CV32: 1 | CX32: 0 | CY32: 0 | CZ32: 0 | DA32: 1 | DB32: 0 | DD32: 0 | DE32: 1 | DF32: 0 | DG32: 1 | DH32: 0 | DI32: 1 | DJ32: 1 | DL32: 0 | DM32: 1 | DN32: 0 | DP32: 1 | DQ32: 1 | DR32: 1 | DS32: 1 | DT32: 1 | DU32: 1 | DV32: 1 | DW32: 1 | DY32: 0 | DZ32: 1 | EA32: 0 | EB32: 1 | EC32: 1 | ED32: 1 | EE32: 1 | EG32: 0 | EH32: 0 | EI32: 0 | EJ32: 1 | EK32: 1 | EL32: 0 | EM32: 0 | EN32: 1 | EO32: 1 | EP32: 30 | EQ32: 54.55%
A33: 化工16-1班 | B33: 张文静 | C33: 2016010429 | D33: 有 | E33: 无 | F33: 无 | G33: 无 | H33: B | I33: 1.1 | J33: 89 | K33: 75 | L33: 82.5 | M33: 62 | N33: 90 | O33: 92 | P33: 79 | Q33: 85 | R33: 77 | S33: 87 | U33: 75 | V33: 93 | W33: 79 | Y33: 80 | Z33: 88 | AA33: 89 | AC33: 86 | AD33: 72 | AE33: 92 | AG33: 93 | AH33: 80 | AJ33: 82 | AK33: 82 | AL33: 90.2 | AM33: 70 | AN33: 93 | AO33: 75 | AP33: 87 | AQ33: 71 | AR33: 77 | AS33: 82 | AU33: 89 | AV33: 86 | AW33: 65 | AX33: 71.5 | AY33: 83 | AZ33: 81 | BA33: 62 | BB33: 68 | BC33: 60 | BD33: 89 | BE33: 84 | BF33: 87 | BH33: 75 | BI33: 84 | BJ33: 74 | BK33: 83 | BL33: 73 | BM33: 80 | BN33: 84 | BP33: 75 | BQ33: 74 | BR33: 75 | BS33: 78 | BT33: 91 | BU33: 87 | BV33: 84 | BW33: 75 | BX33: 87 | BY33: 79.13992395 | CA33: 1 | CB33: 0 | CD33: 0 | CE33: 1 | CF33: 1 | CG33: 0 | CH33: 1 | CI33: 0 | CJ33: 1 | CL33: 0 | CM33: 1 | CN33: 0 | CO33: 0 | CP33: 1 | CR33: 1 | CS33: 0 | CT33: 1 | CU33: 0 | CV33: 1 | CX33: 1 | CY33: 1 | CZ33: 0 | DA33: 1 | DB33: 1 | DD33: 0 | DE33: 1 | DF33: 0 | DG33: 1 | DH33: 0 | DI33: 0 | DJ33: 1 | DL33: 1 | DM33: 1 | DN33: 0 | DP33: 1 | DQ33: 1 | DR33: 0 | DS33: 0 | DT33: 0 | DU33: 1 | DV33: 1 | DW33: 1 | DY33: 0 | DZ33: 1 | EA33: 0 | EB33: 1 | EC33: 0 | ED33: 1 | EE33: 1 | EG33: 0 | EH33: 0 | EI33: 0 | EJ33: 0 | EK33: 1 | EL33: 1 | EM33: 1 | EN33: 0 | EO33: 1 | EP33: 32 | EQ33: 58.18%
A34: 化工16-1班 | B34: 张新意 | C34: 2016010431 | D34: 无 | E34: 无 | F34: 无 | G34: 无 | H34: B | I34: 1.1 | J34: 71 | K34: 78 | L34: 85.8 | M34: 98 | N34: 89 | O34: 95 | P34: 78 | Q34: 87 | R34: 88 | S34: 94 | U34: 86 | V34: 83 | W34: 93 | Y34: 84 | Z34: 92.4 | AA34: 94 | AC34: 88 | AD34: 85 | AE34: 93 | AG34: 80 | AH34: 90 | AJ34: 82 | AK34: 88 | AL34: 96.8 | AM34: 80 | AN34: 93 | AO34: 79 | AP34: 87 | AQ34: 92 | AR34: 95 | AS34: 87 | AU34: 80 | AV34: 88 | AW34: 78 | AX34: 85.8 | AY34: 91 | AZ34: 93 | BA34: 71 | BB34: 80 | BC34: 90 | BD34: 86 | BE34: 90 | BF34: 84 | BH34: 95 | BI34: 88 | BJ34: 83 | BK34: 83 | BL34: 84 | BM34: 80 | BN34: 88 | BP34: 89 | BQ34: 93 | BR34: 84 | BS34: 80 | BT34: 87 | BU34: 79 | BV34: 89 | BW34: 96 | BX34: 91 | BY34: 87.71863118 | CA34: 0 | CB34: 0 | CD34: 1 | CE34: 1 | CF34: 1 | CG34: 0 | CH34: 1 | CI34: 1 | CJ34: 1 | CL34: 1 | CM34: 1 | CN34: 1 | CO34: 0 | CP34: 1 | CR34: 1 | CS34: 0 | CT34: 1 | CU34: 1 | CV34: 1 | CX34: 1 | CY34: 1 | CZ34: 0 | DA34: 1 | DB34: 1 | DD34: 1 | DE34: 1 | DF34: 0 | DG34: 1 | DH34: 1 | DI34: 1 | DJ34: 1 | DL34: 1 | DM34: 1 | DN34: 0 | DP34: 1 | DQ34: 1 | DR34: 0 | DS34: 1 | DT34: 1 | DU34: 1 | DV34: 1 | DW34: 1 | DY34: 1 | DZ34: 1 | EA34: 1 | EB34: 1 | EC34: 1 | ED34: 1 | EE34: 1 | EG34: 1 | EH34: 1 | EI34: 1 | EJ34: 1 | EK34: 1 | EL34: 0 | EM34: 1 | EN34: 1 | EO34: 1 | EP34: 48 | EQ34: 87.27%
A35: 化工16-1班 | B35: 左长江 | C35: 2016010432 | D35: 无 | E35: 无 | F35: 无 | G35: 无 | H35: B | I35: 1.1 | J35: 69 | K35: 80 | L35: 88 | M35: 88 | N35: 84 | O35: 95 | P35: 78 | Q35: 84 | R35: 79 | S35: 86 | U35: 80 | V35: 82 | W35: 90 | Y35: 84 | Z35: 92.4 | AA35: 84 | AC35: 83 | AD35: 93 | AE35: 92 | AG35: 86 | AH35: 89 | AJ35: 86 | AK35: 90 | AL35: 99 | AM35: 79 | AN35: 92 | AO35: 85 | AP35: 86 | AQ35: 92 | AR35: 97 | AS35: 88 | AU35: 82 | AV35: 85 | AW35: 82 | AX35: 90.2 | AY35: 88 | AZ35: 84 | BA35: 86 | BB35: 85 | BC35: 63 | BD35: 90 | BE35: 79 | BF35: 87 | BH35: 86 | BI35: 85 | BJ35: 93 | BK35: 86 | BL35: 95 | BM35: 84 | BN35: 88 | BP35: 90 | BQ35: 83 | BR35: 86 | BS35: 89 | BT35: 88 | BU35: 82 | BV35: 86 | BW35: 72 | BX35: 97 | BY35: 86.90874525 | CA35: 0 | CB35: 1 | CD35: 1 | CE35: 1 | CF35: 1 | CG35: 0 | CH35: 1 | CI35: 0 | CJ35: 1 | CL35: 1 | CM35: 1 | CN35: 1 | CO35: 0 | CP35: 1 | CR35: 1 | CS35: 0 | CT35: 1 | CU35: 1 | CV35: 1 | CX35: 1 | CY35: 1 | CZ35: 0 | DA35: 1 | DB35: 1 | DD35: 0 | DE35: 1 | DF35: 1 | DG35: 1 | DH35: 1 | DI35: 1 | DJ35: 1 | DL35: 1 | DM35: 1 | DN35: 1 | DP35: 1 | DQ35: 1 | DR35: 1 | DS35: 1 | DT35: 0 | DU35: 1 | DV35: 0 | DW35: 1 | DY35: 1 | DZ35: 1 | EA35: 1 | EB35: 1 | EC35: 1 | ED35: 1 | EE35: 1 | EG35: 1 | EH35: 1 | EI35: 1 | EJ35: 1 | EK35: 1 | EL35: 1 | EM35: 1 | EN35: 0 | EO35: 1 | EP35: 48 | EQ35: 87.27%
A36: 化工16-1班 | B36: 王昊天 | C36: 2016010554 | D36: 有 | E36: 无 | F36: 无 | G36: 无 | H36: A | I36: 1.15 | J36: 60 | K36: 75 | L36: 86.25 | M36: 60 | N36: 80 | O36: 89 | P36: 77 | Q36: 80 | R36: 66 | S36: 91 | U36: 65 | V36: 76 | X36: 60 | Y36: 81 | Z36: 93.15 | AB36: 64 | AC36: 78 | AD36: 60 | AE36: 85 | AG36: 84 | AI36: 62 | AJ36: 80 | AK36: 84 | AL36: 96.6 | AM36: 78 | AN36: 91 | AO36: 74 | AP36: 86 | AQ36: 60 | AR36: 60 | AS36: 75 | AU36: 74 | AV36: 81.5 | AW36: 60 | AX36: 69 | AY36: 67 | AZ36: 60 | BA36: 60 | BB36: 69 | BC36: 67 | BD36: 83 | BE36: 65 | BF36: 86 | BH36: 70 | BI36: 70 | BJ36: 54 | BK36: 73 | BL36: 60 | BM36: 71 | BN36: 87 | BP36: 66 | BQ36: 61 | BR36: 70 | BS36: 76 | BT36: 84 | BU36: 69 | BV36: 69 | BW36: 61 | BX36: 75 | BY36: 72.20190114 | CA36: 0 | CB36: 0 | CD36: 0 | CE36: 1 | CF36: 1 | CG36: 0 | CH36: 1 | CI36: 0 | CJ36: 1 | CL36: 0 | CM36: 0 | CN36: 0 | CO36: 0 | CP36: 1 | CR36: 0 | CS36: 0 | CT36: 0 | CU36: 0 | CV36: 1 | CX36: 1 | CY36: 0 | CZ36: 0 | DA36: 1 | DB36: 1 | DD36: 0 | DE36: 1 | DF36: 0 | DG36: 1 | DH36: 0 | DI36: 0 | DJ36: 0 | DL36: 0 | DM36: 1 | DN36: 0 | DP36: 0 | DQ36: 0 | DR36: 0 | DS36: 0 | DT36: 0 | DU36: 1 | DV36: 0 | DW36: 1 | DY36: 0 | DZ36: 0 | EA36: 0 | EB36: 0 | EC36: 0 | ED36: 0 | EE36: 1 | EG36: 0 | EH36: 0 | EI36: 0 | EJ36: 0 | EK36: 1 | EL36: 0 | EM36: 0 | EN36: 0 | EO36: 0 | EP36: 16 | EQ36: 29.09%
A37: 化工16-2班 | B37: 韩子怡 | C37: 2016010433 | D37: 有 | E37: 无 | F37: 无 | G37: 无 | H37: B | I37: 1.1 | J37: 79 | K37: 76 | L37: 83.6 | M37: 60 | N37: 95 | O37: 92 | P37: 88 | Q37: 83 | R37: 77 | S37: 80 | U37: 73 | V37: 95 | W37: 72 | Y37: 85 | Z37: 93.5 | AA37: 60 | AC37: 77 | AD37: 60 | AE37: 92 | AG37: 87 | AH37: 72 | AJ37: 72 | AK37: 86 | AL37: 94.6 | AM37: 81 | AN37: 94 | AO37: 67 | AP37: 86 | AQ37: 70 | AR37: 81 | AS37: 81 | AU37: 91 | AV37: 86 | AW37: 85 | AX37: 93.5 | AY37: 73 | AZ37: 60 | BA37: 60 | BB37: 78 | BC37: 82 | BD37: 86 | BE37: 81 | BF37: 87 | BH37: 72 | BI37: 86 | BJ37: 70 | BK37: 76 | BL37: 72 | BM37: 77 | BN37: 85 | BP37: 75 | BQ37: 76 | BR37: 79 | BS37: 92 | BT37: 83 | BU37: 86 | BV37: 83 | BW37: 69 | BX37: 92 | BY37: 77.28212928 | CA37: 0 | CB37: 0 | CD37: 0 | CE37: 1 | CF37: 1 | CG37: 1 | CH37: 1 | CI37: 0 | CJ37: 1 | CL37: 0 | CM37: 1 | CN37: 0 | CO37: 0 | CP37: 1 | CR37: 0 | CS37: 0 | CT37: 0 | CU37: 0 | CV37: 1 | CX37: 1 | CY37: 0 | CZ37: 0 | DA37: 0 | DB37: 1 | DD37: 1 | DE37: 1 | DF37: 0 | DG37: 1 | DH37: 0 | DI37: 1 | DJ37: 1 | DL37: 1 | DM37: 1 | DN37: 1 | DP37: 0 | DQ37: 0 | DR37: 0 | DS37: 0 | DT37: 1 | DU37: 1 | DV37: 1 | DW37: 1 | DY37: 0 | DZ37: 1 | EA37: 0 | EB37: 0 | EC37: 0 | ED37: 0 | EE37: 1 | EG37: 0 | EH37: 0 | EI37: 0 | EJ37: 1 | EK37: 1 | EL37: 1 | EM37: 1 | EN37: 0 | EO37: 1 | EP37: 29 | EQ37: 52.73%
A38: 化工16-2班 | B38: 胡淑文 | C38: 2016010434 | D38: 无 | E38: 无 | F38: 无 | G38: 无 | H38: B | I38: 1.1 | J38: 81 | K38: 68 | L38: 74.8 | M38: 60 | N38: 92 | O38: 91 | P38: 83 | Q38: 90 | R38: 68 | S38: 82 | U38: 63 | V38: 88 | W38: 77 | Y38: 75 | Z38: 82.5 | AA38: 70 | AC38: 85 | AD38: 64 | AE38: 90 | AG38: 84 | AH38: 61 | AJ38: 79 | AK38: 86 | AL38: 94.6 | AM38: 78 | AN38: 92 | AO38: 75 | AP38: 85 | AQ38: 65 | AR38: 68 | AS38: 80 | AU38: 91 | AV38: 86 | AW38: 82 | AX38: 90.2 | AY38: 66 | AZ38: 71 | BA38: 66 | BB38: 81 | BC38: 66 | BD38: 86 | BE38: 84 | BF38: 88 | BH38: 85 | BI38: 89 | BJ38: 70 | BK38: 85 | BL38: 88 | BM38: 75 | BN38: 84 | BP38: 84 | BQ38: 86 | BR38: 83 | BS38: 91 | BT38: 81 | BU38: 82 | BV38: 91 | BW38: 79 | BX38: 93 | BY38: 78.15057034 | CA38: 1 | CB38: 0 | CD38: 0 | CE38: 1 | CF38: 1 | CG38: 1 | CH38: 1 | CI38: 0 | CJ38: 1 | CL38: 0 | CM38: 1 | CN38: 0 | CO38: 0 | CP38: 0 | CR38: 0 | CS38: 0 | CT38: 1 | CU38: 0 | CV38: 1 | CX38: 1 | CY38: 0 | CZ38: 0 | DA38: 0 | DB38: 1 | DD38: 0 | DE38: 1 | DF38: 0 | DG38: 1 | DH38: 0 | DI38: 0 | DJ38: 1 | DL38: 1 | DM38: 1 | DN38: 1 | DP38: 0 | DQ38: 0 | DR38: 0 | DS38: 1 | DT38: 0 | DU38: 1 | DV38: 1 | DW38: 1 | DY38: 1 | DZ38: 1 | EA38: 0 | EB38: 1 | EC38: 1 | ED38: 0 | EE38: 1 | EG38: 1 | EH38: 1 | EI38: 1 | EJ38: 1 | EK38: 1 | EL38: 1 | EM38: 1 | EN38: 0 | EO38: 1 | EP38: 34 | EQ38: 61.82%
A39: 化工16-2班 | B39: 寇晓玮 | C39: 2016010435 | D39: 有 | E39: 无 | F39: 无 | G39: 无 | H39: B | I39: 1.1 | J39: 74 | K39: 78 | L39: 85.8 | M39: 66 | N39: 85 | O39: 95 | P39: 73 | Q39: 87 | R39: 69 | S39: 85 | U39: 65 | V39: 89 | W39: 70 | Y39: 78 | Z39: 85.8 | AA39: 66 | AC39: 79 | AD39: 64 | AE39: 88 | AG39: 86 | AH39: 70 | AJ39: 73 | AK39: 75 | AL39: 82.5 | AM39: 73 | AN39: 90 | AO39: 68 | AP39: 86 | AQ39: 68 | AR39: 60 | AS39: 83 | AU39: 88 | AV39: 85 | AW39: 78 | AX39: 85.8 | AY39: 75 | AZ39: 67 | BA39: 47 | BB39: 69 | BC39: 77 | BD39: 85 | BE39: 68 | BF39: 89 | BH39: 80 | BI39: 87 | BJ39: 60 | BK39: 81 | BL39: 73 | BM39: 76 | BN39: 86 | BP39: 73 | BQ39: 72 | BR39: 63 | BS39: 83 | BT39: 83 | BU39: 80 | BV39: 77 | BW39: 77 | BX39: 79 | BY39: 74.14068441 | CA39: 0 | CB39: 0 | CD39: 0 | CE39: 1 | CF39: 1 | CG39: 0 | CH39: 1 | CI39: 0 | CJ39: 1 | CL39: 0 | CM39: 1 | CN39: 0 | CO39: 0 | CP39: 0 | CR39: 0 | CS39: 0 | CT39: 0 | CU39: 0 | CV39: 1 | CX39: 1 | CY39: 0 | CZ39: 0 | DA39: 0 | DB39: 0 | DD39: 0 | DE39: 1 | DF39: 0 | DG39: 1 | DH39: 0 | DI39: 0 | DJ39: 1 | DL39: 1 | DM39: 1 | DN39: 0 | DP39: 0 | DQ39: 0 | DR39: 0 | DS39: 0 | DT39: 0 | DU39: 1 | DV39: 0 | DW39: 1 | DY39: 1 | DZ39: 1 | EA39: 0 | EB39: 1 | EC39: 0 | ED39: 0 | EE39: 1 | EG39: 0 | EH39: 0 | EI39: 0 | EJ39: 1 | EK39: 1 | EL39: 1 | EM39: 0 | EN39: 0 | EO39: 0 | EP39: 21 | EQ39: 38.18%
A40: 化工16-2班 | B40: 林甘棠 | C40: 2016010437 | D40: 有 | E40: 有 | F40: 无 | G40: 无 | H40: B | I40: 1.1 | J40: 81 | K40: 60 | L40: 66 | M40: 60 | N40: 79 | O40: 94 | P40: 86 | Q40: 84 | R40: 59 | S40: 79 | U40: 66 | V40: 85 | W40: 61 | Y40: 70 | Z40: 77 | AA40: 60 | AC40: 81 | AD40: 60 | AE40: 89 | AG40: 88 | AH40: 81 | AJ40: 62 | AK40: 65 | AL40: 71.5 | AM40: 72 | AN40: 93 | AO40: 64 | AP40: 85 | AQ40: 60 | AR40: 75 | AS40: 80 | AU40: 82 | AV40: 85 | AW40: 64 | AX40: 70.4 | AY40: 67 | AZ40: 60 | BA40: 34 | BB40: 60 | BC40: 64 | BD40: 66 | BE40: 74 | BF40: 86 | BH40: 70 | BI40: 71 | BJ40: 63 | BK40: 63 | BL40: 60 | BM40: 77 | BN40: 84 | BP40: 64 | BQ40: 52 | BR40: 61 | BS40: 79 | BT40: 79 | BU40: 73 | BV40: 65 | BW40: 60 | BX40: 83 | BY40: 68.4851711 | CA40: 1 | CB40: 0 | CD40: 0 | CE40: 0 | CF40: 1 | CG40: 1 | CH40: 1 | CI40: 0 | CJ40: 0 | CL40: 0 | CM40: 1 | CN40: 0 | CO40: 0 | CP40: 0 | CR40: 0 | CS40: 0 | CT40: 1 | CU40: 0 | CV40: 1 | CX40: 1 | CY40: 1 | CZ40: 0 | DA40: 0 | DB40: 0 | DD40: 0 | DE40: 1 | DF40: 0 | DG40: 1 | DH40: 0 | DI40: 0 | DJ40: 1 | DL40: 1 | DM40: 1 | DN40: 0 | DP40: 0 | DQ40: 0 | DR40: 0 | DS40: 0 | DT40: 0 | DU40: 0 | DV40: 0 | DW40: 1 | DY40: 0 | DZ40: 0 | EA40: 0 | EB40: 0 | EC40: 0 | ED40: 0 | EE40: 1 | EG40: 0 | EH40: 0 | EI40: 0 | EJ40: 0 | EK40: 0 | EL40: 0 | EM40: 0 | EN40: 0 | EO40: 1 | EP40: 17 | EQ40: 30.91%
A41: 化工16-2班 | B41: 王璧琮 | C41: 2016010438 | D41: 无 | E41: 无 | F41: 无 | G41: 无 | H41: B | I41: 1.1 | J41: 67 | K41: 80 | L41: 88 | M41: 93 | N41: 89 | O41: 98 | P41: 87 | Q41: 88 | R41: 82 | S41: 76 | U41: 78 | V41: 89 | W41: 91 | Y41: 84 | Z41: 92.4 | AA41: 99 | AC41: 86 | AD41: 73 | AE41: 89 | AG41: 90 | AH41: 96 | AJ41: 88 | AK41: 86 | AL41: 94.6 | AM41: 81 | AN41: 94 | AO41: 94 | AP41: 87 | AQ41: 92 | AR41: 100 | AS41: 88 | AU41: 85 | AV41: 85 | AW41: 73 | AX41: 80.3 | AY41: 90 | AZ41: 84 | BA41: 83 | BB41: 87 | BC41: 94 | BD41: 85 | BE41: 96 | BF41: 90 | BH41: 90 | BI41: 93 | BJ41: 81 | BK41: 85 | BL41: 97 | BM41: 75 | BN41: 83 | BP41: 89 | BQ41: 86 | BR41: 82 | BS41: 94 | BT41: 88 | BU41: 89 | BV41: 85 | BW41: 86 | BX41: 89 | BY41: 88.22737643 | CA41: 0 | CB41: 1 | CD41: 1 | CE41: 1 | CF41: 1 | CG41: 1 | CH41: 1 | CI41: 1 | CJ41: 0 | CL41: 0 | CM41: 1 | CN41: 1 | CO41: 0 | CP41: 1 | CR41: 1 | CS41: 0 | CT41: 1 | CU41: 0 | CV41: 1 | CX41: 1 | CY41: 1 | CZ41: 0 | DA41: 1 | DB41: 1 | DD41: 1 | DE41: 1 | DF41: 1 | DG41: 1 | DH41: 1 | DI41: 1 | DJ41: 1 | DL41: 1 | DM41: 1 | DN41: 0 | DP41: 1 | DQ41: 1 | DR41: 1 | DS41: 1 | DT41: 1 | DU41: 1 | DV41: 1 | DW41: 1 | DY41: 1 | DZ41: 1 | EA41: 1 | EB41: 1 | EC41: 1 | ED41: 0 | EE41: 1 | EG41: 1 | EH41: 1 | EI41: 1 | EJ41: 1 | EK41: 1 | EL41: 1 | EM41: 1 | EN41: 1 | EO41: 1 | EP41: 49 | EQ41: 89.09%
A42: 化工16-2班 | B42: 王孟轩 | C42: 2016010439 | D42: 有 | E42: 无 | F42: 无 | G42: 无 | H42: B | I42: 1.1 | J42: 74 | K42: 67 | L42: 73.7 | M42: 60 | N42: 86 | O42: 92 | P42: 82 | Q42: 93 | R42: 61 | S42: 82 | U42: 71 | V42: 86 | W42: 62 | Y42: 83 | Z42: 91.3 | AA42: 67 | AC42: 79 | AD42: 70 | AE42: 90 | AG42: 90 | AH42: 60 | AJ42: 67 | AK42: 74 | AL42: 81.4 | AM42: 77 | AN42: 94 | AO42: 75 | AP42: 86 | AQ42: 64 | AR42: 60 | AS42: 80 | AU42: 94 | AV42: 86 | AW42: 70 | AX42: 77 | AY42: 61 | AZ42: 61 | BA42: 60 | BB42: 69 | BC42: 75 | BD42: 86 | BE42: 60 | BF42: 87 | BH42: 80 | BI42: 81 | BJ42: 56 | BK42: 76 | BL42: 60 | BM42: 78 | BN42: 83 | BP42: 65 | BQ42: 64 | BR42: 67 | BS42: 85 | BT42: 85 | BU42: 63 | BV42: 76 | BW42: 77 | BX42: 82 | BY42: 72.16958175 | CA42: 0 | CB42: 0 | CD42: 0 | CE42: 1 | CF42: 1 | CG42: 1 | CH42: 1 | CI42: 0 | CJ42: 1 | CL42: 0 | CM42: 1 | CN42: 0 | CO42: 0 | CP42: 1 | CR42: 0 | CS42: 0 | CT42: 0 | CU42: 0 | CV42: 1 | CX42: 1 | CY42: 0 | CZ42: 0 | DA42: 0 | DB42: 0 | DD42: 0 | DE42: 1 | DF42: 0 | DG42: 1 | DH42: 0 | DI42: 0 | DJ42: 1 | DL42: 1 | DM42: 1 | DN42: 0 | DP42: 0 | DQ42: 0 | DR42: 0 | DS42: 0 | DT42: 0 | DU42: 1 | DV42: 0 | DW42: 1 | DY42: 1 | DZ42: 1 | EA42: 0 | EB42: 0 | EC42: 0 | ED42: 0 | EE42: 1 | EG42: 0 | EH42: 0 | EI42: 0 | EJ42: 1 | EK42: 1 | EL42: 0 | EM42: 0 | EN42: 0 | EO42: 1 | EP42: 22 | EQ42: 40.00%
A43: 化工16-2班 | B43: 肖雯婷 | C43: 2016010441 | D43: 有 | E43: 无 | F43: 有 | G43: 无 | H43: B | I43: 1.1 | J43: 74 | K43: 63 | L43: 69.3 | M43: 60 | N43: 75 | O43: 92 | P43: 80 | Q43: 83 | R43: 60 | S43: 88 | U43: 77 | V43: 83 | W43: 70 | Y43: 72 | Z43: 79.2 | AA43: 69 | AC43: 77 | AD43: 61 | AE43: 88 | AG43: 65 | AH43: 64 | AJ43: 69 | AK43: 65 | AL43: 71.5 | AM43: 78 | AN43: 95 | AO43: 75 | AP43: 88 | AQ43: 69 | AR43: 60 | AS43: 77 | AU43: 88 | AV43: 87 | AW43: 70 | AX43: 77 | AY43: 64 | AZ43: 64 | BA43: 52 | BB43: 69 | BC43: 65 | BD43: 93 | BE43: 65 | BF43: 86 | BH43: 73 | BI43: 73 | BJ43: 60 | BK43: 76 | BL43: 69 | BM43: 69 | BN43: 84 | BP43: 77 | BQ43: 62 | BR43: 63 | BS43: 83 | BT43: 82 | BU43: 72 | BV43: 80 | BW43: 83 | BX43: 80 | BY43: 71.71863118 | CA43: 0 | CB43: 0 | CD43: 0 | CE43: 0 | CF43: 1 | CG43: 1 | CH43: 1 | CI43: 0 | CJ43: 1 | CL43: 0 | CM43: 1 | CN43: 0 | CO43: 0 | CP43: 0 | CR43: 0 | CS43: 0 | CT43: 0 | CU43: 0 | CV43: 1 | CX43: 0 | CY43: 0 | CZ43: 0 | DA43: 0 | DB43: 0 | DD43: 0 | DE43: 1 | DF43: 0 | DG43: 1 | DH43: 0 | DI43: 0 | DJ43: 0 | DL43: 1 | DM43: 1 | DN43: 0 | DP43: 0 | DQ43: 0 | DR43: 0 | DS43: 0 | DT43: 0 | DU43: 1 | DV43: 0 | DW43: 1 | DY43: 0 | DZ43: 0 | EA43: 0 | EB43: 0 | EC43: 0 | ED43: 0 | EE43: 1 | EG43: 0 | EH43: 0 | EI43: 0 | EJ43: 1 | EK43: 1 | EL43: 0 | EM43: 1 | EN43: 1 | EO43: 1 | EP43: 18 | EQ43: 32.73%
A44: 化工16-2班 | B44: 许龄月 | C44: 2016010442 | D44: 有 | E44: 无 | F44: 无 | G44: 无 | H44: B | I44: 1.1 | J44: 62 | K44: 80 | L44: 88 | M44: 73 | N44: 87 | O44: 78 | P44: 79 | Q44: 80 | R44: 62 | S44: 78 | U44: 92 | V44: 84 | W44: 80 | Y44: 84 | Z44: 92.4 | AA44: 87 | AC44: 88 | AD44: 83 | AE44: 87 | AG44: 90 | AH44: 92 | AJ44: 74 | AK44: 90 | AL44: 99 | AM44: 80 | AN44: 92 | AO44: 86 | AP44: 80 | AQ44: 86 | AR44: 91 | AS44: 86 | AU44: 80 | AV44: 88 | AW44: 83 | AX44: 91.3 | AY44: 89 | AZ44: 90 | BA44: 75 | BB44: 60 | BC44: 60 | BD44: 67 | BE44: 90 | BF44: 89 | BH44: 93 | BI44: 82 | BJ44: 66 | BK44: 84 | BL44: 75 | BM44: 77 | BN44: 85 | BP44: 55 | BQ44: 38 | BR44: 54 | BS44: 68 | BT44: 89 | BU44: 71 | BV44: 84 | BW44: 78 | BX44: 92 | BY44: 78.68973384 | CA44: 0 | CB44: 1 | CD44: 0 | CE44: 1 | CF44: 0 | CG44: 0 | CH44: 1 | CI44: 0 | CJ44: 0 | CL44: 1 | CM44: 1 | CN44: 1 | CO44: 0 | CP44: 1 | CR44: 1 | CS44: 0 | CT44: 1 | CU44: 1 | CV44: 1 | CX44: 1 | CY44: 1 | CZ44: 0 | DA44: 0 | DB44: 1 | DD44: 1 | DE44: 1 | DF44: 1 | DG44: 1 | DH44: 1 | DI44: 1 | DJ44: 1 | DL44: 1 | DM44: 1 | DN44: 1 | DP44: 1 | DQ44: 1 | DR44: 0 | DS44: 0 | DT44: 0 | DU44: 0 | DV44: 1 | DW44: 1 | DY44: 1 | DZ44: 1 | EA44: 0 | EB44: 1 | EC44: 0 | ED44: 0 | EE44: 1 | EG44: 0 | EH44: 0 | EI44: 0 | EJ44: 0 | EK44: 1 | EL44: 0 | EM44: 1 | EN44: 0 | EO44: 1 | EP44: 35 | EQ44: 63.64%
A45: 化工16-2班 | B45: 蔡进 | C45: 2016010444 | D45: 有 | E45: 无 | F45: 无 | G45: 有 | H45: B | I45: 1.1 | J45: 60 | K45: 82 | L45: 90.2 | M45: 85 | N45: 95 | O45: 95 | P45: 78 | Q45: 86 | R45: 93 | S45: 85 | U45: 75 | V45: 76 | W45: 89 | Y45: 90 | Z45: 99 | AA45: 92 | AC45: 87 | AD45: 75 | AE45: 87 | AG45: 71 | AH45: 84 | AJ45: 68 | AK45: 86 | AL45: 94.6 | AM45: 75 | AN45: 90 | AO45: 79 | AP45: 85 | AQ45: 89 | AR45: 81 | AS45: 81 | AU45: 76 | AV45: 80 | AW45: 84 | AX45: 92.4 | AY45: 77 | AZ45: 74 | BA45: 76 | BB45: 62 | BC45: 77 | BD45: 86 | BE45: 97 | BF45: 86 | BH45: 83 | BI45: 82 | BJ45: 87 | BK45: 81 | BL45: 88 | BM45: 74 | BN45: 83 | BP45: 77 | BQ45: 88 | BR45: 78 | BS45: 71 | BT45: 84 | BU45: 86 | BV45: 80 | BW45: 79 | BX45: 81 | BY45: 83.34068441 | CA45: 0 | CB45: 1 | CD45: 1 | CE45: 1 | CF45: 1 | CG45: 0 | CH45: 1 | CI45: 1 | CJ45: 1 | CL45: 0 | CM45: 0 | CN45: 1 | CO45: 0 | CP45: 1 | CR45: 1 | CS45: 0 | CT45: 1 | CU45: 0 | CV45: 1 | CX45: 0 | CY45: 1 | CZ45: 0 | DA45: 0 | DB45: 1 | DD45: 0 | DE45: 1 | DF45: 0 | DG45: 1 | DH45: 1 | DI45: 1 | DJ45: 1 | DL45: 0 | DM45: 1 | DN45: 1 | DP45: 0 | DQ45: 0 | DR45: 0 | DS45: 0 | DT45: 0 | DU45: 1 | DV45: 1 | DW45: 1 | DY45: 1 | DZ45: 1 | EA45: 1 | EB45: 1 | EC45: 1 | ED45: 0 | EE45: 1 | EG45: 0 | EH45: 1 | EI45: 0 | EJ45: 0 | EK45: 1 | EL45: 1 | EM45: 1 | EN45: 0 | EO45: 1 | EP45: 35 | EQ45: 63.64%
A46: 化工16-2班 | B46: 操泰格 | C46: 2016010445 | D46: 有 | E46: 无 | F46: 无 | G46: 无 | H46: B | I46: 1.1 | J46: 65 | K46: 78 | L46: 85.8 | M46: 64 | N46: 80 | O46: 91 | P46: 75 | Q46: 82 | R46: 69 | S46: 81 | U46: 60 | V46: 86 | W46: 60 | Y46: 87 | Z46: 95.7 | AA46: 65 | AC46: 88 | AD46: 66 | AE46: 88 | AG46: 86 | AH46: 77 | AJ46: 78 | AK46: 90 | AL46: 99 | AM46: 75 | AN46: 95 | AO46: 85 | AP46: 93 | AQ46: 72 | AR46: 73 | AS46: 89 | AU46: 80 | AV46: 86 | AW46: 84 | AX46: 92.4 | AY46: 76 | AZ46: 71 | BA46: 81 | BB46: 82 | BC46: 98 | BD46: 91 | BE46: 84 | BF46: 89 | BH46: 95 | BI46: 89 | BJ46: 72 | BK46: 90 | BL46: 88 | BM46: 82 | BN46: 83 | BP46: 87 | BQ46: 91 | BR46: 83 | BS46: 96 | BT46: 92 | BU46: 92 | BV46: 90 | BW46: 85 | BX46: 87 | BY46: 80.97946768 | CA46: 0 | CB46: 0 | CD46: 0 | CE46: 1 | CF46: 1 | CG46: 0 | CH46: 1 | CI46: 0 | CJ46: 1 | CL46: 0 | CM46: 1 | CN46: 0 | CO46: 0 | CP46: 1 | CR46: 0 | CS46: 0 | CT46: 1 | CU46: 0 | CV46: 1 | CX46: 1 | CY46: 0 | CZ46: 0 | DA46: 0 | DB46: 1 | DD46: 0 | DE46: 1 | DF46: 1 | DG46: 1 | DH46: 0 | DI46: 0 | DJ46: 1 | DL46: 1 | DM46: 1 | DN46: 1 | DP46: 0 | DQ46: 0 | DR46: 1 | DS46: 1 | DT46: 1 | DU46: 1 | DV46: 1 | DW46: 1 | DY46: 1 | DZ46: 1 | EA46: 0 | EB46: 1 | EC46: 1 | ED46: 1 | EE46: 1 | EG46: 1 | EH46: 1 | EI46: 1 | EJ46: 1 | EK46: 1 | EL46: 1 | EM46: 1 | EN46: 1 | EO46: 1 | EP46: 38 | EQ46: 69.09%
A47: 化工16-2班 | B47: 程小杰 | C47: 2016010446 | D47: 无 | E47: 无 | F47: 无 | G47: 无 | H47: B | I47: 1.1 | J47: 71 | K47: 87 | L47: 95.7 | M47: 87 | N47: 89 | O47: 92 | P47: 80 | Q47: 93 | R47: 97 | S47: 83 | U47: 90 | V47: 87 | W47: 93 | Y47: 90 | Z47: 99 | AA47: 98 | AC47: 93 | AD47: 93 | AE47: 87 | AG47: 87 | AH47: 97 | AJ47: 88 | AK47: 87 | AL47: 95.7 | AM47: 85 | AN47: 90 | AO47: 90 | AP47: 87 | AQ47: 87 | AR47: 86 | AS47: 82 | AU47: 80 | AV47: 86 | AW47: 93 | AX47: 102.3 | AY47: 87 | AZ47: 79 | BA47: 77 | BB47: 91 | BC47: 77 | BD47: 86 | BE47: 93 | BF47: 88 | BH47: 85 | BI47: 92 | BJ47: 80 | BK47: 83 | BL47: 94 | BM47: 77 | BN47: 87 | BP47: 88 | BQ47: 77 | BR47: 86 | BS47: 84 | BT47: 88 | BU47: 91 | BV47: 84 | BW47: 72 | BX47: 92 | BY47: 88.50038023 | CA47: 0 | CB47: 1 | CD47: 1 | CE47: 1 | CF47: 1 | CG47: 1 | CH47: 1 | CI47: 1 | CJ47: 1 | CL47: 1 | CM47: 1 | CN47: 1 | CO47: 0 | CP47: 1 | CR47: 1 | CS47: 0 | CT47: 1 | CU47: 1 | CV47: 1 | CX47: 1 | CY47: 1 | CZ47: 0 | DA47: 1 | DB47: 1 | DD47: 1 | DE47: 1 | DF47: 1 | DG47: 1 | DH47: 1 | DI47: 1 | DJ47: 1 | DL47: 1 | DM47: 1 | DN47: 1 | DP47: 1 | DQ47: 0 | DR47: 0 | DS47: 1 | DT47: 0 | DU47: 1 | DV47: 1 | DW47: 1 | DY47: 1 | DZ47: 1 | EA47: 1 | EB47: 1 | EC47: 1 | ED47: 0 | EE47: 1 | EG47: 1 | EH47: 0 | EI47: 1 | EJ47: 1 | EK47: 1 | EL47: 1 | EM47: 1 | EN47: 0 | EO47: 1 | EP47: 48 | EQ47: 87.27%
A48: 化工16-2班 | B48: 方正 | C48: 2016010447 | D48: 有 | E48: 无 | F48: 无 | G48: 无 | H48: A | I48: 1.15 | J48: 68 | K48: 75 | L48: 86.25 | M48: 74 | N48: 95 | O48: 92 | P48: 88 | Q48: 96 | R48: 79 | S48: 94 | U48: 77 | V48: 85 | W48: 88 | Y48: 77 | Z48: 88.55 | AA48: 68 | AC48: 91 | AD48: 65 | AE48: 88 | AG48: 84 | AH48: 80 | AJ48: 76 | AK48: 84 | AL48: 96.6 | AM48: 85 | AN48: 95 | AO48: 76 | AP48: 87 | AQ48: 74 | AR48: 74 | AS48: 84 | AU48: 72 | AV48: 86 | AW48: 90 | AX48: 103.5 | AY48: 71 | AZ48: 65 | BA48: 74 | BB48: 87 | BC48: 92 | BD48: 87 | BE48: 95 | BF48: 88 | BH48: 91 | BI48: 90 | BJ48: 60 | BK48: 80 | BL48: 72 | BM48: 76 | BN48: 87 | BP48: 73 | BQ48: 75 | BR48: 73 | BS48: 89 | BT48: 79 | BU48: 82 | BV48: 74 | BW48: 78 | BX48: 88 | BY48: 80.46692015 | CA48: 0 | CB48: 0 | CD48: 0 | CE48: 1 | CF48: 1 | CG48: 1 | CH48: 1 | CI48: 0 | CJ48: 1 | CL48: 0 | CM48: 1 | CN48: 1 | CO48: 0 | CP48: 0 | CR48: 0 | CS48: 0 | CT48: 1 | CU48: 0 | CV48: 1 | CX48: 1 | CY48: 1 | CZ48: 0 | DA48: 0 | DB48: 1 | DD48: 1 | DE48: 1 | DF48: 0 | DG48: 1 | DH48: 0 | DI48: 0 | DJ48: 1 | DL48: 0 | DM48: 1 | DN48: 1 | DP48: 0 | DQ48: 0 | DR48: 0 | DS48: 1 | DT48: 1 | DU48: 1 | DV48: 1 | DW48: 1 | DY48: 1 | DZ48: 1 | EA48: 0 | EB48: 1 | EC48: 0 | ED48: 0 | EE48: 1 | EG48: 0 | EH48: 0 | EI48: 0 | EJ48: 1 | EK48: 0 | EL48: 1 | EM48: 0 | EN48: 0 | EO48: 1 | EP48: 30 | EQ48: 54.55%
A49: 化工16-2班 | B49: 付严 | C49: 2016010448 | D49: 有 | E49: 无 | F49: 有 | G49: 无 | H49: B | I49: 1.1 | J49: 64 | K49: 63 | L49: 69.3 | M49: 74 | N49: 82 | O49: 85 | P49: 80 | Q49: 87 | R49: 60 | S49: 84 | U49: 63 | V49: 61 | W49: 71 | Y49: 73 | Z49: 80.3 | AA49: 63 | AC49: 75 | AD49: 61 | AE49: 87 | AG49: 81 | AH49: 60 | AJ49: 57 | AK49: 70 | AL49: 77 | AM49: 74 | AN49: 93 | AO49: 64 | AP49: 80 | AQ49: 64 | AR49: 51 | AS49: 74 | AU49: 82 | AV49: 76 | AW49: 64 | AX49: 70.4 | AY49: 61 | AZ49: 67 | BA49: 56 | BB49: 61 | BC49: 60 | BD49: 86 | BE49: 71 | BF49: 82 | BH49: 67 | BI49: 61 | BJ49: 54 | BK49: 73 | BL49: 69 | BM49: 61 | BN49: 85 | BP49: 56 | BQ49: 62 | BR49: 71 | BS49: 75 | BT49: 73 | BU49: 77 | BV49: 64 | BW49: 73 | BX49: 92 | BY49: 69.20304183 | CA49: 0 | CB49: 0 | CD49: 0 | CE49: 1 | CF49: 1 | CG49: 1 | CH49: 1 | CI49: 0 | CJ49: 1 | CL49: 0 | CM49: 0 | CN49: 0 | CO49: 0 | CP49: 0 | CR49: 0 | CS49: 0 | CT49: 0 | CU49: 0 | CV49: 1 | CX49: 1 | CY49: 0 | CZ49: 0 | DA49: 0 | DB49: 0 | DD49: 0 | DE49: 1 | DF49: 0 | DG49: 1 | DH49: 0 | DI49: 0 | DJ49: 0 | DL49: 1 | DM49: 0 | DN49: 0 | DP49: 0 | DQ49: 0 | DR49: 0 | DS49: 0 | DT49: 0 | DU49: 1 | DV49: 0 | DW49: 1 | DY49: 0 | DZ49: 0 | EA49: 0 | EB49: 0 | EC49: 0 | ED49: 0 | EE49: 1 | EG49: 0 | EH49: 0 | EI49: 0 | EJ49: 0 | EK49: 0 | EL49: 0 | EM49: 0 | EN49: 0 | EO49: 1 | EP49: 14 | EQ49: 25.45%
A50: 化工16-2班 | B50: 胡浩杰 | C50: 2016010449 | D50: 无 | E50: 无 | F50: 无 | G50: 无 | H50: B | I50: 1.1 | J50: 83 | K50: 78 | L50: 85.8 | M50: 80 | N50: 90 | O50: 95 | P50: 93 | Q50: 83 | R50: 80 | S50: 90 | U50: 82 | V50: 89 | W50: 84 | Y50: 88 | Z50: 96.8 | AA50: 91 | AC50: 93 | AD50: 73 | AE50: 87 | AG50: 88 | AH50: 87 | AJ50: 81 | AK50: 81 | AL50: 89.1 | AM50: 77 | AN50: 94 | AO50: 82 | AP50: 88 | AQ50: 83 | AR50: 93 | AS50: 87 | AU50: 91 | AV50: 89 | AW50: 72 | AX50: 79.2 | AY50: 84 | AZ50: 79 | BA50: 87 | BB50: 92 | BC50: 94 | BD50: 86 | BE50: 95 | BF50: 89 | BH50: 84 | BI50: 96 | BJ50: 77 | BK50: 85 | BL50: 82 | BM50: 78 | BN50: 82 | BP50: 91 | BQ50: 85 | BR50: 85 | BS50: 89 | BT50: 88 | BU50: 91 | BV50: 90 | BW50: 79 | BX50: 99 | BY50: 86.1026616 | CA50: 1 | CB50: 0 | CD50: 1 | CE50: 1 | CF50: 1 | CG50: 1 | CH50: 1 | CI50: 1 | CJ50: 1 | CL50: 1 | CM50: 1 | CN50: 1 | CO50: 0 | CP50: 1 | CR50: 1 | CS50: 0 | CT50: 1 | CU50: 0 | CV50: 1 | CX50: 1 | CY50: 1 | CZ50: 0 | DA50: 1 | DB50: 1 | DD50: 0 | DE50: 1 | DF50: 1 | DG50: 1 | DH50: 1 | DI50: 1 | DJ50: 1 | DL50: 1 | DM50: 1 | DN50: 0 | DP50: 1 | DQ50: 0 | DR50: 1 | DS50: 1 | DT50: 1 | DU50: 1 | DV50: 1 | DW50: 1 | DY50: 1 | DZ50: 1 | EA50: 0 | EB50: 1 | EC50: 1 | ED50: 0 | EE50: 1 | EG50: 1 | EH50: 1 | EI50: 1 | EJ50: 1 | EK50: 1 | EL50: 1 | EM50: 1 | EN50: 0 | EO50: 1 | EP50: 47 | EQ50: 85.45%
A51: 化工16-2班 | B51: 黄游晟 | C51: 2016010450 | D51: 无 | E51: 无 | F51: 无 | G51: 无 | H51: B | I51: 1.1 | J51: 86 | K51: 73 | L51: 80.3 | M51: 74 | N51: 94 | O51: 91 | P51: 83 | Q51: 88 | R51: 88 | S51: 86 | U51: 61 | V51: 97 | W51: 75 | Y51: 78 | Z51: 85.8 | AA51: 85 | AC51: 93 | AD51: 77 | AE51: 90 | AG51: 96 | AH51: 63 | AJ51: 81 | AK51: 61 | AL51: 67.1 | AM51: 78 | AN51: 93 | AO51: 82 | AP51: 90 | AQ51: 73 | AR51: 72 | AS51: 85 | AU51: 94 | AV51: 89 | AW51: 71 | AX51: 78.1 | AY51: 70 | AZ51: 72 | BA51: 64 | BB51: 83 | BC51: 84 | BD51: 86 | BE51: 82 | BF51: 88 | BH51: 78 | BI51: 87 | BJ51: 76 | BK51: 88 | BL51: 72 | BM51: 77 | BN51: 90 | BP51: 78 | BQ51: 75 | BR51: 69 | BS51: 85 | BT51: 90 | BU51: 76 | BV51: 81 | BW51: 76 | BX51: 84 | BY51: 79.49277567 | CA51: 1 | CB51: 0 | CD51: 0 | CE51: 1 | CF51: 1 | CG51: 1 | CH51: 1 | CI51: 1 | CJ51: 1 | CL51: 0 | CM51: 1 | CN51: 0 | CO51: 0 | CP51: 0 | CR51: 1 | CS51: 0 | CT51: 1 | CU51: 0 | CV51: 1 | CX51: 1 | CY51: 0 | CZ51: 0 | DA51: 1 | DB51: 0 | DD51: 0 | DE51: 1 | DF51: 1 | DG51: 1 | DH51: 0 | DI51: 0 | DJ51: 1 | DL51: 1 | DM51: 1 | DN51: 0 | DP51: 0 | DQ51: 0 | DR51: 0 | DS51: 1 | DT51: 1 | DU51: 1 | DV51: 1 | DW51: 1 | DY51: 0 | DZ51: 1 | EA51: 0 | EB51: 1 | EC51: 0 | ED51: 0 | EE51: 1 | EG51: 0 | EH51: 0 | EI51: 0 | EJ51: 1 | EK51: 1 | EL51: 0 | EM51: 1 | EN51: 0 | EO51: 1 | EP51: 31 | EQ51: 56.36%
A52: 化工16-2班 | B52: 梁恒睿 | C52: 2016010451 | D52: 有 | E52: 无 | F52: 无 | G52: 无 | H52: B | I52: 1.1 | J52: 72 | K52: 72 | L52: 79.2 | M52: 71 | N52: 84 | O52: 91 | P52: 87 | Q52: 81 | R52: 70 | S52: 88 | U52: 69 | V52: 88 | W52: 60 | Y52: 81 | Z52: 89.1 | AA52: 64 | AC52: 79 | AD52: 63 | AE52: 86 | AG52: 92 | AH52: 60 | AJ52: 76 | AK52: 89 | AL52: 97.9 | AM52: 76 | AN52: 95 | AO52: 77 | AP52: 87 | AQ52: 63 | AR52: 70 | AS52: 82 | AU52: 89 | AV52: 87 | AW52: 61 | AX52: 67.1 | AY52: 63 | AZ52: 70 | BA52: 60 | BB52: 72 | BC52: 94 | BD52: 90 | BE52: 82 | BF52: 87 | BH52: 83 | BI52: 85 | BJ52: 66 | BK52: 85 | BL52: 81 | BM52: 74 | BN52: 87 | BP52: 73 | BQ52: 71 | BR52: 74 | BS52: 77 | BT52: 84 | BU52: 77 | BV52: 72 | BW52: 79 | BX52: 87 | BY52: 75.65551331 | CA52: 0 | CB52: 0 | CD52: 0 | CE52: 1 | CF52: 1 | CG52: 1 | CH52: 1 | CI52: 0 | CJ52: 1 | CL52: 0 | CM52: 1 | CN52: 0 | CO52: 0 | CP52: 1 | CR52: 0 | CS52: 0 | CT52: 0 | CU52: 0 | CV52: 1 | CX52: 1 | CY52: 0 | CZ52: 0 | DA52: 0 | DB52: 1 | DD52: 0 | DE52: 1 | DF52: 0 | DG52: 1 | DH52: 0 | DI52: 0 | DJ52: 1 | DL52: 1 | DM52: 1 | DN52: 0 | DP52: 0 | DQ52: 0 | DR52: 0 | DS52: 0 | DT52: 1 | DU52: 1 | DV52: 1 | DW52: 1 | DY52: 1 | DZ52: 1 | EA52: 0 | EB52: 1 | EC52: 1 | ED52: 0 | EE52: 1 | EG52: 0 | EH52: 0 | EI52: 0 | EJ52: 0 | EK52: 1 | EL52: 0 | EM52: 0 | EN52: 0 | EO52: 1 | EP52: 26 | EQ52: 47.27%
A53: 化工16-2班 | B53: 刘盛琨 | C53: 2016010452 | D53: 无 | E53: 无 | F53: 无 | G53: 无 | H53: B | I53: 1.1 | J53: 75 | K53: 68 | L53: 74.8 | M53: 93 | N53: 89 | O53: 93 | P53: 85 | Q53: 86 | R53: 92 | S53: 85 | U53: 85 | V53: 87 | W53: 97 | Y53: 86 | Z53: 94.6 | AA53: 87 | AC53: 94 | AD53: 84 | AE53: 88 | AG53: 89 | AH53: 90 | AJ53: 91 | AK53: 81 | AL53: 89.1 | AM53: 83 | AN53: 93 | AO53: 85 | AP53: 89 | AQ53: 88 | AR53: 92 | AS53: 89 | AU53: 80 | AV53: 86 | AW53: 71 | AX53: 78.1 | AY53: 79 | AZ53: 85 | BA53: 65 | BB53: 90 | BC53: 71 | BD53: 87 | BE53: 96 | BF53: 90 | BH53: 88 | BI53: 92 | BJ53: 82 | BK53: 91 | BL53: 85 | BM53: 86 | BN53: 86 | BP53: 85 | BQ53: 84 | BR53: 81 | BS53: 90 | BT53: 95 | BU53: 85 | BV53: 90 | BW53: 78 | BX53: 86 | BY53: 86.59695817 | CA53: 0 | CB53: 0 | CD53: 1 | CE53: 1 | CF53: 1 | CG53: 1 | CH53: 1 | CI53: 1 | CJ53: 1 | CL53: 1 | CM53: 1 | CN53: 1 | CO53: 0 | CP53: 1 | CR53: 1 | CS53: 0 | CT53: 1 | CU53: 1 | CV53: 1 | CX53: 1 | CY53: 1 | CZ53: 0 | DA53: 1 | DB53: 1 | DD53: 1 | DE53: 1 | DF53: 1 | DG53: 1 | DH53: 1 | DI53: 1 | DJ53: 1 | DL53: 1 | DM53: 1 | DN53: 0 | DP53: 0 | DQ53: 1 | DR53: 0 | DS53: 1 | DT53: 0 | DU53: 1 | DV53: 1 | DW53: 1 | DY53: 1 | DZ53: 1 | EA53: 1 | EB53: 1 | EC53: 1 | ED53: 1 | EE53: 1 | EG53: 1 | EH53: 1 | EI53: 1 | EJ53: 1 | EK53: 1 | EL53: 1 | EM53: 1 | EN53: 0 | EO53: 1 | EP53: 48 | EQ53: 87.27%
A54: 化工16-2班 | B54: 刘旭 | C54: 2016010453 | D54: 无 | E54: 无 | F54: 无 | G54: 无 | H54: B | I54: 1.1 | J54: 69 | K54: 75 | L54: 82.5 | M54: 77 | N54: 87 | O54: 91 | P54: 83 | Q54: 80 | R54: 70 | S54: 87 | U54: 72 | V54: 76 | W54: 87 | Y54: 75 | Z54: 82.5 | AA54: 73 | AC54: 86 | AD54: 61 | AE54: 86 | AG54: 82 | AH54: 77 | AJ54: 80 | AK54: 72 | AL54: 79.2 | AM54: 89 | AN54: 92 | AO54: 75 | AP54: 88 | AQ54: 66 | AR54: 83 | AS54: 86 | AU54: 84 | AV54: 84 | AW54: 67 | AX54: 73.7 | AY54: 71 | AZ54: 68 | BA54: 60 | BB54: 71 | BC54: 82 | BD54: 85 | BE54: 87 | BF54: 87 | BH54: 78 | BI54: 92 | BJ54: 80 | BK54: 90 | BL54: 61 | BM54: 74 | BN54: 85 | BP54: 80 | BQ54: 82 | BR54: 80 | BS54: 82 | BT54: 88 | BU54: 91 | BV54: 76 | BW54: 76 | BX54: 93 | BY54: 78.35969582 | CA54: 0 | CB54: 0 | CD54: 0 | CE54: 1 | CF54: 1 | CG54: 1 | CH54: 1 | CI54: 0 | CJ54: 1 | CL54: 0 | CM54: 0 | CN54: 1 | CO54: 0 | CP54: 0 | CR54: 0 | CS54: 0 | CT54: 1 | CU54: 0 | CV54: 1 | CX54: 1 | CY54: 0 | CZ54: 0 | DA54: 1 | DB54: 0 | DD54: 1 | DE54: 1 | DF54: 0 | DG54: 1 | DH54: 0 | DI54: 1 | DJ54: 1 | DL54: 1 | DM54: 1 | DN54: 0 | DP54: 0 | DQ54: 0 | DR54: 0 | DS54: 0 | DT54: 1 | DU54: 1 | DV54: 1 | DW54: 1 | DY54: 0 | DZ54: 1 | EA54: 1 | EB54: 1 | EC54: 0 | ED54: 0 | EE54: 1 | EG54: 1 | EH54: 1 | EI54: 1 | EJ54: 1 | EK54: 1 | EL54: 1 | EM54: 0 | EN54: 0 | EO54: 1 | EP54: 32 | EQ54: 58.18%
A55: 化工16-2班 | B55: 鲁颖科 | C55: 2016010454 | D55: 无 | E55: 无 | F55: 无 | G55: 无 | H55: B | I55: 1.1 | J55: 64 | K55: 73 | L55: 80.3 | M55: 72 | N55: 91 | O55: 90 | P55: 85 | Q55: 84 | R55: 71 | S55: 86 | U55: 75 | V55: 78 | W55: 82 | Y55: 80 | Z55: 88 | AA55: 74 | AC55: 83 | AD55: 63 | AE55: 82 | AG55: 76 | AH55: 81 | AJ55: 78 | AK55: 77 | AL55: 84.7 | AM55: 79 | AN55: 93 | AO55: 80 | AP55: 87 | AQ55: 69 | AR55: 69 | AS55: 82 | AU55: 80 | AV55: 83 | AW55: 74 | AX55: 81.4 | AY55: 79 | AZ55: 64 | BA55: 64 | BB55: 64 | BC55: 76 | BD55: 84 | BE55: 88 | BF55: 86 | BH55: 70 | BI55: 85 | BJ55: 73 | BK55: 81 | BL55: 83 | BM55: 74 | BN55: 87 | BP55: 76 | BQ55: 77 | BR55: 72 | BS55: 89 | BT55: 87 | BU55: 66 | BV55: 72 | BW55: 75 | BX55: 87 | BY55: 77.49353612 | CA55: 0 | CB55: 0 | CD55: 0 | CE55: 1 | CF55: 1 | CG55: 1 | CH55: 1 | CI55: 0 | CJ55: 1 | CL55: 0 | CM55: 0 | CN55: 1 | CO55: 0 | CP55: 1 | CR55: 0 | CS55: 0 | CT55: 1 | CU55: 0 | CV55: 1 | CX55: 0 | CY55: 1 | CZ55: 0 | DA55: 0 | DB55: 0 | DD55: 0 | DE55: 1 | DF55: 1 | DG55: 1 | DH55: 0 | DI55: 0 | DJ55: 1 | DL55: 1 | DM55: 1 | DN55: 0 | DP55: 0 | DQ55: 0 | DR55: 0 | DS55: 0 | DT55: 0 | DU55: 1 | DV55: 1 | DW55: 1 | DY55: 0 | DZ55: 1 | EA55: 0 | EB55: 1 | EC55: 1 | ED55: 0 | EE55: 1 | EG55: 0 | EH55: 0 | EI55: 0 | EJ55: 1 | EK55: 1 | EL55: 0 | EM55: 0 | EN55: 0 | EO55: 1 | EP55: 26 | EQ55: 47.27%
A56: 化工16-2班 | B56: 司道润 | C56: 2016010455 | D56: 无 | E56: 无 | F56: 无 | G56: 无 | H56: A | I56: 1.15 | J56: 80 | K56: 85 | L56: 97.75 | M56: 86 | N56: 92 | O56: 91 | P56: 77 | Q56: 85 | R56: 78 | S56: 89 | U56: 87 | V56: 84 | W56: 87 | Y56: 86 | Z56: 98.9 | AA56: 86 | AC56: 89 | AD56: 74 | AE56: 87 | AG56: 85 | AH56: 83 | AJ56: 70 | AK56: 73 | AL56: 83.95 | AM56: 81 | AN56: 94 | AO56: 78 | AP56: 89 | AQ56: 83 | AR56: 81 | AS56: 84 | AU56: 85 | AV56: 85 | AW56: 80 | AX56: 92 | AY56: 76 | AZ56: 75 | BA56: 71 | BB56: 76 | BC56: 85 | BD56: 86 | BE56: 91 | BF56: 87 | BH56: 80 | BI56: 90 | BJ56: 80 | BK56: 88 | BL56: 80 | BM56: 83 | BN56: 87 | BP56: 82 | BQ56: 94 | BR56: 84 | BS56: 86 | BT56: 90 | BU56: 92 | BV56: 82 | BW56: 76 | BX56: 97 | BY56: 84.4486692 | CA56: 1 | CB56: 1 | CD56: 1 | CE56: 1 | CF56: 1 | CG56: 0 | CH56: 1 | CI56: 0 | CJ56: 1 | CL56: 1 | CM56: 1 | CN56: 1 | CO56: 0 | CP56: 1 | CR56: 1 | CS56: 0 | CT56: 1 | CU56: 0 | CV56: 1 | CX56: 1 | CY56: 1 | CZ56: 0 | DA56: 0 | DB56: 0 | DD56: 1 | DE56: 1 | DF56: 0 | DG56: 1 | DH56: 1 | DI56: 1 | DJ56: 1 | DL56: 1 | DM56: 1 | DN56: 1 | DP56: 0 | DQ56: 0 | DR56: 0 | DS56: 0 | DT56: 1 | DU56: 1 | DV56: 1 | DW56: 1 | DY56: 1 | DZ56: 1 | EA56: 1 | EB56: 1 | EC56: 1 | ED56: 1 | EE56: 1 | EG56: 1 | EH56: 1 | EI56: 1 | EJ56: 1 | EK56: 1 | EL56: 1 | EM56: 1 | EN56: 0 | EO56: 1 | EP56: 44 | EQ56: 80.00%
A57: 化工16-2班 | B57: 苏小刚 | C57: 2016010456 | D57: 无 | E57: 无 | F57: 无 | G57: 无 | H57: C | I57: 1 | J57: 65 | K57: 78 | L57: 78 | M57: 80 | N57: 95 | O57: 88 | P57: 84 | Q57: 86 | R57: 87 | S57: 89 | U57: 84 | V57: 83 | W57: 84 | Y57: 80 | Z57: 80 | AA57: 88 | AC57: 93 | AD57: 78 | AE57: 86 | AG57: 86 | AH57: 91 | AJ57: 84 | AK57: 82 | AL57: 82 | AM57: 79 | AN57: 95 | AO57: 77 | AP57: 87 | AQ57: 89 | AR57: 89 | AS57: 88 | AU57: 79 | AV57: 91 | AW57: 85 | AX57: 85 | AY57: 85 | AZ57: 77 | BA57: 80 | BB57: 91 | BC57: 90 | BD57: 85 | BE57: 91 | BF57: 89 | BH57: 88 | BI57: 90 | BJ57: 76 | BK57: 86 | BL57: 83 | BM57: 82 | BN57: 88 | BP57: 84 | BQ57: 87 | BR57: 87 | BS57: 91 | BT57: 94 | BU57: 87 | BV57: 86 | BW57: 90 | BX57: 96 | BY57: 85.13688213 | CA57: 0 | CB57: 0 | CD57: 1 | CE57: 1 | CF57: 1 | CG57: 1 | CH57: 1 | CI57: 1 | CJ57: 1 | CL57: 1 | CM57: 1 | CN57: 1 | CO57: 0 | CP57: 1 | CR57: 1 | CS57: 0 | CT57: 1 | CU57: 0 | CV57: 1 | CX57: 1 | CY57: 1 | CZ57: 0 | DA57: 1 | DB57: 1 | DD57: 0 | DE57: 1 | DF57: 0 | DG57: 1 | DH57: 1 | DI57: 1 | DJ57: 1 | DL57: 0 | DM57: 1 | DN57: 1 | DP57: 1 | DQ57: 0 | DR57: 1 | DS57: 1 | DT57: 1 | DU57: 1 | DV57: 1 | DW57: 1 | DY57: 1 | DZ57: 1 | EA57: 0 | EB57: 1 | EC57: 1 | ED57: 1 | EE57: 1 | EG57: 1 | EH57: 1 | EI57: 1 | EJ57: 1 | EK57: 1 | EL57: 1 | EM57: 1 | EN57: 1 | EO57: 1 | EP57: 47 | EQ57: 85.45%
A58: 化工16-2班 | B58: 王宇超 | C58: 2016010457 | D58: 有 | E58: 无 | F58: 有 | G58: 有 | H58: B | I58: 1.1 | J58: 60 | K58: 63 | L58: 69.3 | M58: 60 | N58: 80 | O58: 88 | P58: 77 | Q58: 82 | R58: 68 | S58: 84 | U58: 67 | V58: 73 | W58: 75 | Y58: 81 | Z58: 89.1 | AA58: 72 | AC58: 79 | AD58: 65 | AE58: 83 | AG58: 76 | AH58: 76 | AJ58: 71 | AK58: 78 | AL58: 85.8 | AM58: 76 | AN58: 93 | AO58: 77 | AP58: 79 | AQ58: 72 | AR58: 63 | AS58: 75 | AU58: 76 | AV58: 86 | AW58: 76 | AX58: 83.6 | AY58: 65 | AZ58: 67 | BA58: 60 | BB58: 63 | BC58: 81 | BD58: 86 | BE58: 84 | BF58: 85 | BH58: 80 | BI58: 82 | BJ58: 72 | BK58: 80 | BL58: 80 | BM58: 72 | BN58: 85 | BP58: 66 | BQ58: 74 | BR58: 70 | BS58: 74 | BT58: 84 | BU58: 68 | BV58: 72 | BW58: 78 | BX58: 85 | BY58: 74.13992395 | CA58: 0 | CB58: 0 | CD58: 0 | CE58: 1 | CF58: 1 | CG58: 0 | CH58: 1 | CI58: 0 | CJ58: 1 | CL58: 0 | CM58: 0 | CN58: 0 | CO58: 0 | CP58: 1 | CR58: 0 | CS58: 0 | CT58: 0 | CU58: 0 | CV58: 1 | CX58: 0 | CY58: 0 | CZ58: 0 | DA58: 0 | DB58: 0 | DD58: 0 | DE58: 1 | DF58: 0 | DG58: 0 | DH58: 0 | DI58: 0 | DJ58: 0 | DL58: 0 | DM58: 1 | DN58: 0 | DP58: 0 | DQ58: 0 | DR58: 0 | DS58: 0 | DT58: 1 | DU58: 1 | DV58: 1 | DW58: 1 | DY58: 1 | DZ58: 1 | EA58: 0 | EB58: 1 | EC58: 1 | ED58: 0 | EE58: 1 | EG58: 0 | EH58: 0 | EI58: 0 | EJ58: 0 | EK58: 1 | EL58: 0 | EM58: 0 | EN58: 0 | EO58: 1 | EP58: 19 | EQ58: 34.55%
A59: 化工16-2班 | B59: 徐凡 | C59: 2016010459 | D59: 无 | E59: 无 | F59: 无 | G59: 无 | H59: B | I59: 1.1 | J59: 66 | K59: 80 | L59: 88 | M59: 92 | N59: 90 | O59: 94 | P59: 75 | Q59: 85 | R59: 75 | S59: 82 | U59: 75 | V59: 77 | W59: 89 | Y59: 84 | Z59: 92.4 | AA59: 92 | AC59: 82 | AD59: 77 | AE59: 82 | AG59: 79 | AH59: 93 | AJ59: 83 | AK59: 82 | AL59: 90.2 | AM59: 78 | AN59: 93 | AO59: 78 | AP59: 87 | AQ59: 85 | AR59: 75 | AS59: 81 | AU59: 78 | AV59: 85 | AW59: 76 | AX59: 83.6 | AY59: 88 | AZ59: 86 | BA59: 74 | BB59: 72 | BC59: 88 | BD59: 88 | BE59: 94 | BF59: 87 | BH59: 77 | BI59: 85 | BJ59: 80 | BK59: 88 | BL59: 88 | BM59: 75 | BN59: 88 | BP59: 91 | BQ59: 88 | BR59: 83 | BS59: 83 | BT59: 84 | BU59: 90 | BV59: 79 | BW59: 92 | BX59: 93 | BY59: 84.43117871 | CA59: 0 | CB59: 1 | CD59: 1 | CE59: 1 | CF59: 1 | CG59: 0 | CH59: 1 | CI59: 0 | CJ59: 1 | CL59: 0 | CM59: 0 | CN59: 1 | CO59: 0 | CP59: 1 | CR59: 1 | CS59: 0 | CT59: 1 | CU59: 0 | CV59: 1 | CX59: 0 | CY59: 1 | CZ59: 0 | DA59: 1 | DB59: 1 | DD59: 0 | DE59: 1 | DF59: 0 | DG59: 1 | DH59: 1 | DI59: 0 | DJ59: 1 | DL59: 0 | DM59: 1 | DN59: 0 | DP59: 1 | DQ59: 1 | DR59: 0 | DS59: 0 | DT59: 1 | DU59: 1 | DV59: 1 | DW59: 1 | DY59: 0 | DZ59: 1 | EA59: 1 | EB59: 1 | EC59: 1 | ED59: 0 | EE59: 1 | EG59: 1 | EH59: 1 | EI59: 1 | EJ59: 1 | EK59: 1 | EL59: 1 | EM59: 0 | EN59: 1 | EO59: 1 | EP59: 38 | EQ59: 69.09%
A60: 化工16-2班 | B60: 阳方喜 | C60: 2016010460 | D60: 有 | E60: 无 | F60: 无 | G60: 无 | H60: B | I60: 1.1 | J60: 82 | K60: 82 | L60: 90.2 | M60: 94 | N60: 88 | O60: 90 | P60: 69 | Q60: 80 | R60: 86 | S60: 89 | U60: 76 | V60: 92 | W60: 93 | Y60: 81 | Z60: 89.1 | AA60: 97 | AC60: 86 | AD60: 77 | AE60: 86 | AG60: 94 | AH60: 85 | AJ60: 74 | AK60: 76 | AL60: 83.6 | AM60: 79 | AN60: 93 | AO60: 72 | AP60: 86 | AQ60: 77 | AR60: 82 | AS60: 81 | AU60: 84 | AV60: 87 | AW60: 74 | AX60: 81.4 | AY60: 66 | AZ60: 70 | BA60: 63 | BB60: 60 | BC60: 60 | BD60: 83 | BE60: 82 | BF60: 87 | BH60: 71 | BI60: 77 | BJ60: 72 | BK60: 81 | BL60: 67 | BM60: 77 | BN60: 87 | BP60: 70 | BQ60: 84 | BR60: 67 | BS60: 83 | BT60: 92 | BU60: 77 | BV60: 72 | BW60: 81 | BX60: 76 | BY60: 80.50722433 | CA60: 1 | CB60: 1 | CD60: 1 | CE60: 1 | CF60: 1 | CG60: 0 | CH60: 1 | CI60: 1 | CJ60: 1 | CL60: 0 | CM60: 1 | CN60: 1 | CO60: 0 | CP60: 1 | CR60: 1 | CS60: 0 | CT60: 1 | CU60: 0 | CV60: 1 | CX60: 1 | CY60: 1 | CZ60: 0 | DA60: 0 | DB60: 0 | DD60: 0 | DE60: 1 | DF60: 0 | DG60: 1 | DH60: 0 | DI60: 1 | DJ60: 1 | DL60: 1 | DM60: 1 | DN60: 0 | DP60: 0 | DQ60: 0 | DR60: 0 | DS60: 0 | DT60: 0 | DU60: 1 | DV60: 1 | DW60: 1 | DY60: 0 | DZ60: 0 | EA60: 0 | EB60: 1 | EC60: 0 | ED60: 0 | EE60: 1 | EG60: 0 | EH60: 1 | EI60: 0 | EJ60: 1 | EK60: 1 | EL60: 0 | EM60: 0 | EN60: 1 | EO60: 0 | EP60: 31 | EQ60: 56.36%
A61: 化工16-2班 | B61: 杨電 | C61: 2016010461 | D61: 有 | E61: 无 | F61: 有 | G61: 无 | H61: B | I61: 1.1 | J61: 85 | K61: 72 | L61: 79.2 | M61: 77 | N61: 78 | O61: 80 | P61: 78 | Q61: 80 | R61: 64 | S61: 82 | U61: 71 | V61: 84 | W61: 83 | Y61: 78 | Z61: 85.8 | AA61: 61 | AC61: 86 | AD61: 68 | AE61: 85 | AG61: 86 | AH61: 73 | AJ61: 72 | AK61: 74 | AL61: 81.4 | AM61: 73 | AN61: 94 | AO61: 72 | AP61: 85 | AQ61: 70 | AR61: 63 | AS61: 80 | AU61: 86 | AV61: 86 | AW61: 62 | AX61: 68.2 | AY61: 70 | AZ61: 64 | BA61: 60 | BB61: 60 | BC61: 70 | BD61: 87 | BE61: 87 | BF61: 88 | BH61: 85 | BI61: 65 | BJ61: 62 | BK61: 77 | BL61: 70 | BM61: 81 | BN61: 83 | BP61: 72 | BQ61: 69 | BR61: 77 | BS61: 76 | BT61: 82 | BU61: 80 | BV61: 68 | BW61: 75 | BX61: 82 | BY61: 74.53003802 | CA61: 1 | CB61: 0 | CD61: 0 | CE61: 0 | CF61: 1 | CG61: 0 | CH61: 1 | CI61: 0 | CJ61: 1 | CL61: 0 | CM61: 1 | CN61: 1 | CO61: 0 | CP61: 0 | CR61: 0 | CS61: 0 | CT61: 1 | CU61: 0 | CV61: 1 | CX61: 1 | CY61: 0 | CZ61: 0 | DA61: 0 | DB61: 0 | DD61: 0 | DE61: 1 | DF61: 0 | DG61: 1 | DH61: 0 | DI61: 0 | DJ61: 1 | DL61: 1 | DM61: 1 | DN61: 0 | DP61: 0 | DQ61: 0 | DR61: 0 | DS61: 0 | DT61: 0 | DU61: 1 | DV61: 1 | DW61: 1 | DY61: 1 | DZ61: 0 | EA61: 0 | EB61: 0 | EC61: 0 | ED61: 1 | EE61: 1 | EG61: 0 | EH61: 0 | EI61: 0 | EJ61: 0 | EK61: 1 | EL61: 1 | EM61: 0 | EN61: 0 | EO61: 1 | EP61: 23 | EQ61: 41.82%
A62: 化工16-2班 | B62: 杨天宇 | C62: 2016010462 | D62: 有 | E62: 有 | F62: 无 | G62: 无 | H62: B | I62: 1.1 | J62: 74 | K62: 65 | L62: 71.5 | M62: 74 | N62: 73 | O62: 85 | P62: 87 | Q62: 75 | R62: 71.5 | S62: 80 | U62: 38 | V62: 83 | W62: 69 | Y62: 67 | Z62: 73.7 | AA62: 76 | AC62: 69 | AD62: 64 | AE62: 80 | AG62: 74 | AH62: 71 | AJ62: 71 | AK62: 84 | AL62: 92.4 | AM62: 76 | AN62: 93 | AO62: 60 | AP62: 80 | AQ62: 64 | AR62: 60 | AS62: 74 | AU62: 78 | AV62: 75 | AW62: 71 | AX62: 78.1 | AY62: 66 | AZ62: 63 | BA62: 71 | BB62: 67 | BC62: 81 | BD62: 75 | BE62: 82 | BF62: 73 | BH62: 73 | BI62: 73 | BJ62: 60 | BK62: 64 | BL62: 67 | BM62: 60 | BN62: 75 | BP62: 50 | BQ62: 54 | BR62: 68 | BS62: 67 | BT62: 63 | BU62: 71 | BV62: 66 | BW62: 68 | BX62: 74 | BY62: 69.99657795 | CA62: 0 | CB62: 0 | CD62: 0 | CE62: 0 | CF62: 1 | CG62: 1 | CH62: 0 | CI62: 0 | CJ62: 1 | CL62: 0 | CM62: 1 | CN62: 0 | CO62: 0 | CP62: 0 | CR62: 0 | CS62: 0 | CT62: 0 | CU62: 0 | CV62: 1 | CX62: 0 | CY62: 0 | CZ62: 0 | DA62: 0 | DB62: 1 | DD62: 0 | DE62: 1 | DF62: 0 | DG62: 1 | DH62: 0 | DI62: 0 | DJ62: 0 | DL62: 0 | DM62: 0 | DN62: 0 | DP62: 0 | DQ62: 0 | DR62: 0 | DS62: 0 | DT62: 1 | DU62: 0 | DV62: 1 | DW62: 0 | DY62: 0 | DZ62: 0 | EA62: 0 | EB62: 0 | EC62: 0 | ED62: 0 | EE62: 0 | EG62: 0 | EH62: 0 | EI62: 0 | EJ62: 0 | EK62: 0 | EL62: 0 | EM62: 0 | EN62: 0 | EO62: 0 | EP62: 10 | EQ62: 18.18%
A63: 化工16–2班 | B63: 张浩苏 | C63: 2016010463 | D63: 有 | E63: 有 | F63: 无 | G63: 无 | H63: A | I63: 1.15 | J63: 75 | K63: 71 | L63: 81.65 | M63: 79 | N63: 87 | O63: 92 | P63: 75 | Q63: 86 | R63: 75 | S63: 85 | U63: 75 | V63: 77 | X63: 81 | Y63: 78 | Z63: 89.7 | AB63: 60 | AC63: 76 | AD63: 62 | AE63: 88 | AG63: 84 | AI63: 60 | AJ63: 77 | AK63: 73 | AL63: 83.95 | AM63: 63 | AN63: 94 | AO63: 60 | AP63: 76 | AQ63: 66 | AR63: 61 | AS63: 77 | AU63: 77 | AV63: 81 | AW63: 73 | AX63: 83.95 | AY63: 62 | AZ63: 70 | BA63: 35 | BB63: 62 | BC63: 80 | BD63: 61 | BE63: 72 | BF63: 82 | BH63: 63 | BI63: 72 | BJ63: 37 | BK63: 68 | BL63: 60 | BM63: 60 | BN63: 81 | BP63: 61 | BQ63: 67 | BR63: 61 | BS63: 84 | BT63: 68 | BU63: 76 | BV63: 64 | BW63: 73 | BX63: 80 | BY63: 72.21825095 | CA63: 0 | CB63: 0 | CD63: 0 | CE63: 1 | CF63: 1 | CG63: 0 | CH63: 1 | CI63: 0 | CJ63: 1 | CL63: 0 | CM63: 0 | CN63: 0 | CO63: 1 | CP63: 0 | CR63: 0 | CS63: 0 | CT63: 0 | CU63: 0 | CV63: 1 | CX63: 1 | CY63: 0 | CZ63: 0 | DA63: 0 | DB63: 0 | DD63: 0 | DE63: 1 | DF63: 0 | DG63: 0 | DH63: 0 | DI63: 0 | DJ63: 0 | DL63: 0 | DM63: 1 | DN63: 0 | DP63: 0 | DQ63: 0 | DR63: 0 | DS63: 0 | DT63: 1 | DU63: 0 | DV63: 0 | DW63: 1 | DY63: 0 | DZ63: 0 | EA63: 0 | EB63: 0 | EC63: 0 | ED63: 0 | EE63: 1 | EG63: 0 | EH63: 0 | EI63: 0 | EJ63: 1 | EK63: 0 | EL63: 0 | EM63: 0 | EN63: 0 | EO63: 1 | EP63: 14 | EQ63: 25.45%
A64: 化工16-2班 | B64: 张家祺 | C64: 2016010464 | D64: 有 | E64: 有 | F64: 无 | G64: 无 | H64: B | I64: 1.1 | J64: 72 | K64: 77 | L64: 84.7 | M64: 60 | N64: 78 | O64: 84 | P64: 68 | Q64: 70 | R64: 69 | S64: 87 | U64: 65 | V64: 84 | W64: 70 | Y64: 72 | Z64: 79.2 | AA64: 67 | AC64: 80 | AD64: 62 | AE64: 82 | AG64: 84 | AH64: 66 | AJ64: 62 | AK64: 64 | AL64: 70.4 | AM64: 74 | AN64: 91 | AO64: 70 | AP64: 80 | AQ64: 77 | AR64: 70 | AS64: 83 | AU64: 73 | AV64: 77 | AW64: 70 | AX64: 77 | AY64: 69 | AZ64: 62 | BA64: 77 | BB64: 68 | BC64: 88 | BD64: 73 | BE64: 78 | BF64: 83 | BH64: 66 | BI64: 70 | BJ64: 53 | BK64: 67 | BL64: 64 | BM64: 61 | BN64: 80 | BP64: 76 | BQ64: 71 | BR64: 85 | BS64: 78 | BT64: 77 | BU64: 63 | BV64: 75 | BW64: 77 | BX64: 77 | BY64: 71.40608365 | CA64: 0 | CB64: 0 | CD64: 0 | CE64: 0 | CF64: 1 | CG64: 0 | CH64: 0 | CI64: 0 | CJ64: 1 | CL64: 0 | CM64: 1 | CN64: 0 | CO64: 0 | CP64: 0 | CR64: 0 | CS64: 0 | CT64: 1 | CU64: 0 | CV64: 1 | CX64: 1 | CY64: 0 | CZ64: 0 | DA64: 0 | DB64: 0 | DD64: 0 | DE64: 1 | DF64: 0 | DG64: 1 | DH64: 0 | DI64: 0 | DJ64: 1 | DL64: 0 | DM64: 0 | DN64: 0 | DP64: 0 | DQ64: 0 | DR64: 0 | DS64: 0 | DT64: 1 | DU64: 0 | DV64: 0 | DW64: 1 | DY64: 0 | DZ64: 0 | EA64: 0 | EB64: 0 | EC64: 0 | ED64: 0 | EE64: 1 | EG64: 0 | EH64: 0 | EI64: 1 | EJ64: 0 | EK64: 0 | EL64: 0 | EM64: 0 | EN64: 0 | EO64: 0 | EP64: 13 | EQ64: 23.64%
A65: 化工16-2班 | B65: 赵政棠 | C65: 2016010465 | D65: 有 | E65: 无 | F65: 有 | G65: 有 | H65: B | I65: 1.1 | J65: 70 | K65: 60 | L65: 66 | M65: 60 | N65: 81 | O65: 88 | P65: 78 | Q65: 81 | R65: 46 | S65: 80 | U65: 60 | V65: 81 | W65: 56 | Y65: 60 | Z65: 66 | AA65: 60 | AC65: 85 | AD65: 50 | AE65: 85 | AG65: 60 | AH65: 60 | AJ65: 75 | AK65: 64 | AL65: 70.4 | AM65: 70 | AN65: 92 | AO65: 63 | AP65: 81 | AQ65: 53 | AR65: 60 | AS65: 77 | AU65: 67 | AV65: 81 | AW65: 51 | AX65: 56.1 | AY65: 61 | AZ65: 60 | BA65: 60 | BB65: 64 | BC65: 78 | BD65: 61 | BE65: 60 | BF65: 84 | BH65: 31 | BI65: 60 | BJ65: 34 | BK65: 62 | BL65: 60 | BM65: 60 | BN65: 86 | BP65: 56 | BQ65: 47 | BR65: 44 | BS65: 70 | BT65: 60 | BU65: 73 | BV65: 62 | BW65: 70 | BX65: 68 | BY65: 62.82129278 | CA65: 0 | CB65: 0 | CD65: 0 | CE65: 1 | CF65: 1 | CG65: 0 | CH65: 1 | CI65: 0 | CJ65: 1 | CL65: 0 | CM65: 1 | CN65: 0 | CO65: 0 | CP65: 0 | CR65: 0 | CS65: 0 | CT65: 1 | CU65: 0 | CV65: 1 | CX65: 0 | CY65: 0 | CZ65: 0 | DA65: 0 | DB65: 0 | DD65: 0 | DE65: 1 | DF65: 0 | DG65: 1 | DH65: 0 | DI65: 0 | DJ65: 0 | DL65: 0 | DM65: 1 | DN65: 0 | DP65: 0 | DQ65: 0 | DR65: 0 | DS65: 0 | DT65: 0 | DU65: 0 | DV65: 0 | DW65: 1 | DY65: 0 | DZ65: 0 | EA65: 0 | EB65: 0 | EC65: 0 | ED65: 0 | EE65: 1 | EG65: 0 | EH65: 0 | EI65: 0 | EJ65: 0 | EK65: 0 | EL65: 0 | EM65: 0 | EN65: 0 | EO65: 0 | EP65: 12 | EQ65: 21.82%
A66: 化工16–2班 | B66: 郭昊钰 | C66: 2016010968 | D66: 有 | E66: 有 | F66: 无 | G66: 无 | H66: A | I66: 1.15 | J66: 76 | K66: 78 | L66: 89.7 | M66: 70 | N66: 84 | O66: 88 | P66: 61 | Q66: 78 | R66: 60 | S66: 86 | U66: 0 | V66: 84 | X66: 50 | Y66: 61 | Z66: 70.15 | AA66: 60 | AC66: 60 | AD66: 49 | AE66: 72 | AG66: 60 | AI66: 60 | AJ66: 74 | AK66: 0 | AL66: 0 | AM66: 76 | AN66: 91 | AO66: 64 | AP66: 81 | AQ66: 63 | AR66: 47 | AS66: 75 | AU66: 60 | AW66: 60 | AX66: 69 | AY66: 66 | AZ66: 60 | BA66: 24 | BB66: 60 | BC66: 45 | BD66: 82 | BE66: 65 | BF66: 75 | BH66: 41 | BI66: 60 | BJ66: 38 | BK66: 70 | BL66: 60 | BM66: 61 | BN66: 78 | BP66: 28 | BQ66: 47 | BR66: 0 | BS66: 25 | BT66: 60 | BU66: 65 | BV66: 63 | BW66: 43 | BX66: 69 | BY66: 56.67224335 | CA66: 0 | CB66: 0 | CD66: 0 | CE66: 1 | CF66: 1 | CG66: 0 | CH66: 0 | CI66: 0 | CJ66: 1 | CL66: 0 | CM66: 1 | CN66: 0 | CO66: 0 | CP66: 0 | CR66: 0 | CS66: 0 | CT66: 0 | CU66: 0 | CV66: 0 | CX66: 0 | CY66: 0 | CZ66: 0 | DA66: 0 | DB66: 0 | DD66: 0 | DE66: 1 | DF66: 0 | DG66: 1 | DH66: 0 | DI66: 0 | DJ66: 0 | DL66: 0 | DM66: 0 | DN66: 0 | DP66: 0 | DQ66: 0 | DR66: 0 | DS66: 0 | DT66: 0 | DU66: 1 | DV66: 0 | DW66: 0 | DY66: 0 | DZ66: 0 | EA66: 0 | EB66: 0 | EC66: 0 | ED66: 0 | EE66: 0 | EG66: 0 | EH66: 0 | EI66: 0 | EJ66: 0 | EK66: 0 | EL66: 0 | EM66: 0 | EN66: 0 | EO66: 0 | EP66: 7 | EQ66: 12.73%
A67: 化工16-3班 | B67: 曹文都 | C67: 2015010445 | D67: 有 | E67: 无 | F67: 有 | G67: 无 | H67: B | I67: 1.1 | J67: 60 | K67: 60 | L67: 66 | M67: 81 | N67: 72 | O67: 75.6 | P67: 60 | Q67: 80 | R67: 67 | S67: 83 | U67: 60 | V67: 72 | W67: 69 | Y67: 75 | Z67: 82.5 | AA67: 82 | AC67: 78 | AD67: 55 | AE67: 86 | AG67: 80 | AH67: 74 | AJ67: 70 | AK67: 66 | AL67: 72.6 | AM67: 68 | AN67: 91 | AO67: 77 | AP67: 80 | AQ67: 48 | AR67: 73 | AS67: 67 | AU67: 77 | AV67: 89 | AW67: 63 | AX67: 69.3 | AY67: 67 | AZ67: 60 | BA67: 60 | BB67: 61 | BC67: 76 | BD67: 81 | BE67: 84 | BF67: 85 | BH67: 79 | BI67: 74 | BJ67: 31 | BK67: 73 | BL67: 50 | BM67: 68 | BN67: 86 | BP67: 72 | BQ67: 66 | BR67: 64 | BS67: 62 | BT67: 78 | BU67: 66 | BV67: 72 | BW67: 61 | BX67: 93 | BY67: 69.82129278 | CA67: 0 | CB67: 0 | CD67: 1 | CE67: 0 | CF67: 0 | CG67: 0 | CH67: 1 | CI67: 0 | CJ67: 1 | CL67: 0 | CM67: 0 | CN67: 0 | CO67: 0 | CP67: 0 | CR67: 1 | CS67: 0 | CT67: 0 | CU67: 0 | CV67: 1 | CX67: 1 | CY67: 0 | CZ67: 0 | DA67: 0 | DB67: 0 | DD67: 0 | DE67: 1 | DF67: 0 | DG67: 1 | DH67: 0 | DI67: 0 | DJ67: 0 | DL67: 0 | DM67: 1 | DN67: 0 | DP67: 0 | DQ67: 0 | DR67: 0 | DS67: 0 | DT67: 0 | DU67: 1 | DV67: 1 | DW67: 1 | DY67: 0 | DZ67: 0 | EA67: 0 | EB67: 0 | EC67: 0 | ED67: 0 | EE67: 1 | EG67: 0 | EH67: 0 | EI67: 0 | EJ67: 0 | EK67: 0 | EL67: 0 | EM67: 0 | EN67: 0 | EO67: 1 | EP67: 14 | EQ67: 25.45%
A68: 化工16-3班 | B68: 曹艳静 | C68: 2016010466 | D68: 有 | E68: 无 | F68: 有 | G68: 无 | H68: C | I68: 1 | J68: 82 | K68: 75 | L68: 75 | M68: 60 | N68: 86 | O68: 88 | P68: 66 | Q68: 78 | R68: 67 | S68: 86 | U68: 68 | V68: 85 | W68: 62 | Y68: 81 | Z68: 81 | AA68: 65 | AC68: 91 | AD68: 66 | AE68: 95 | AG68: 94 | AH68: 80 | AJ68: 73 | AK68: 68 | AL68: 68 | AM68: 79 | AN68: 93 | AO68: 72 | AP68: 84 | AQ68: 71 | AR68: 80 | AS68: 82 | AU68: 94 | AV68: 88 | AW68: 80 | AX68: 80 | AY68: 75 | AZ68: 73 | BA68: 64 | BB68: 93 | BC68: 61 | BD68: 92 | BE68: 89 | BF68: 89 | BH68: 89 | BI68: 90 | BJ68: 67 | BK68: 83 | BL68: 83 | BM68: 83 | BN68: 88 | BP68: 69 | BQ68: 81 | BR68: 81 | BS68: 88 | BT68: 90 | BU68: 87 | BV68: 96 | BW68: 91 | BX68: 94 | BY68: 78.0608365 | CA68: 1 | CB68: 0 | CD68: 0 | CE68: 1 | CF68: 1 | CG68: 0 | CH68: 0 | CI68: 0 | CJ68: 1 | CL68: 0 | CM68: 1 | CN68: 0 | CO68: 0 | CP68: 1 | CR68: 0 | CS68: 0 | CT68: 1 | CU68: 0 | CV68: 1 | CX68: 1 | CY68: 1 | CZ68: 0 | DA68: 0 | DB68: 0 | DD68: 0 | DE68: 1 | DF68: 0 | DG68: 1 | DH68: 0 | DI68: 1 | DJ68: 1 | DL68: 1 | DM68: 1 | DN68: 1 | DP68: 0 | DQ68: 0 | DR68: 0 | DS68: 1 | DT68: 0 | DU68: 1 | DV68: 1 | DW68: 1 | DY68: 1 | DZ68: 1 | EA68: 0 | EB68: 1 | EC68: 1 | ED68: 1 | EE68: 1 | EG68: 0 | EH68: 1 | EI68: 1 | EJ68: 1 | EK68: 1 | EL68: 1 | EM68: 1 | EN68: 1 | EO68: 1 | EP68: 35 | EQ68: 63.64%
A69: 化工16-3班 | B69: 刘恋 | C69: 2016010468 | D69: 无 | E69: 无 | F69: 无 | G69: 无 | H69: A | I69: 1.15 | J69: 71 | K69: 92 | L69: =K69*I69 -> 105.8 | M69: 70 | N69: 83 | O69: 88 | P69: 85 | Q69: 90 | R69: 74 | S69: 85 | U69: 76 | V69: 88 | W69: 83 | Y69: 85 | Z69: =Y69*I69 -> 97.75 | AA69: 96 | AC69: 90 | AD69: 81 | AE69: 90 | AG69: 80 | AH69: 93 | AJ69: 83 | AK69: 86 | AL69: =AK69*I69 -> 98.9 | AM69: 86 | AN69: 91 | AO69: 81 | AP69: 89 | AQ69: 94 | AR69: 83 | AS69: 80 | AU69: 87 | AV69: 90 | AW69: 81 | AX69: =AW69*I69 -> 93.15 | AY69: 91 | AZ69: 90 | BA69: 70 | BB69: 88 | BC69: 94 | BD69: 76 | BE69: 87 | BF69: 89 | BH69: 79 | BI69: 94 | BJ69: 80 | BK69: 81 | BL69: 95 | BM69: 81 | BN69: 90 | BP69: 84 | BQ69: 95 | BR69: 90 | BS69: 93 | BT69: 91 | BU69: 91 | BV69: 87 | BW69: 99 | BX69: 94 | BY69: 86.96045627 | CA69: 0 | CB69: 1 | CD69: 0 | CE69: 1 | CF69: 1 | CG69: 1 | CH69: 1 | CI69: 0 | CJ69: 1 | CL69: 0 | CM69: 1 | CN69: 1 | CO69: 0 | CP69: 1 | CR69: 1 | CS69: 0 | CT69: 1 | CU69: 1 | CV69: 1 | CX69: 1 | CY69: 1 | CZ69: 0 | DA69: 1 | DB69: 1 | DD69: 1 | DE69: 1 | DF69: 1 | DG69: 1 | DH69: 1 | DI69: 1 | DJ69: 1 | DL69: 1 | DM69: 1 | DN69: 1 | DP69: 1 | DQ69: 1 | DR69: 0 | DS69: 1 | DT69: 1 | DU69: 0 | DV69: 1 | DW69: 1 | DY69: 0 | DZ69: 1 | EA69: 1 | EB69: 1 | EC69: 1 | ED69: 1 | EE69: 1 | EG69: 1 | EH69: 1 | EI69: 1 | EJ69: 1 | EK69: 1 | EL69: 1 | EM69: 1 | EN69: 1 | EO69: 1 | EP69: 48 | EQ69: 87.27%
A70: 化工16-3班 | B70: 刘亮 | C70: 2016010469 | D70: 无 | E70: 无 | F70: 无 | G70: 无 | H70: B | I70: 1.1 | J70: 68 | K70: 80 | L70: 88 | M70: 78 | N70: 92 | O70: 92 | P70: 87 | Q70: 81 | R70: 86 | S70: 90 | U70: 75 | V70: 85 | W70: 91 | Y70: 83 | Z70: 91.3 | AA70: 96 | AC70: 90 | AD70: 80 | AE70: 89 | AG70: 84 | AH70: 87 | AJ70: 83 | AK70: 78 | AL70: 85.8 | AM70: 78 | AN70: 92 | AO70: 85 | AP70: 88 | AQ70: 79 | AR70: 86 | AS70: 82 | AU70: 85 | AV70: 88 | AW70: 79 | AX70: 86.9 | AY70: 95 | AZ70: 85 | BA70: 70 | BB70: 93 | BC70: 93 | BD70: 87 | BE70: 94 | BF70: 91 | BH70: 83 | BI70: 96 | BJ70: 92 | BK70: 82 | BL70: 91 | BM70: 80 | BN70: 90 | BP70: 89 | BQ70: 90 | BR70: 89 | BS70: 90 | BT70: 85 | BU70: 92 | BV70: 92 | BW70: 90 | BX70: 92 | BY70: 86.87528517 | CA70: =IF(J70>=80,1,0) -> 0 | CB70: =IF(K70>=80,1,0) -> 1 | CD70: =IF(M70>=80,1,0) -> 0 | CE70: =IF(N70>=80,1,0) -> 1 | CF70: =IF(O70>=80,1,0) -> 1 | CG70: =IF(P70>=80,1,0) -> 1 | CH70: =IF(Q70>=80,1,0) -> 1 | CI70: =IF(R70>=80,1,0) -> 1 | CJ70: =IF(S70>=80,1,0) -> 1 | CL70: =IF(U70>=80,1,0) -> 0 | CM70: =IF(V70>=80,1,0) -> 1 | CN70: =IF(W70>=80,1,0) -> 1 | CO70: =IF(X70>=80,1,0) -> 0 | CP70: =IF(Y70>=80,1,0) -> 1 | CR70: =IF(AA70>=80,1,0) -> 1 | CS70: =IF(AB70>=80,1,0) -> 0 | CT70: =IF(AC70>=80,1,0) -> 1 | CU70: =IF(AD70>=80,1,0) -> 1 | CV70: =IF(AE70>=80,1,0) -> 1 | CX70: =IF(AG70>=80,1,0) -> 1 | CY70: =IF(AH70>=80,1,0) -> 1 | CZ70: =IF(AI70>=80,1,0) -> 0 | DA70: =IF(AJ70>=80,1,0) -> 1 | DB70: =IF(AK70>=80,1,0) -> 0 | DD70: =IF(AM70>=80,1,0) -> 0 | DE70: =IF(AN70>=80,1,0) -> 1 | DF70: =IF(AO70>=80,1,0) -> 1 | DG70: =IF(AP70>=80,1,0) -> 1 | DH70: =IF(AQ70>=80,1,0) -> 0 | DI70: =IF(AR70>=80,1,0) -> 1 | DJ70: =IF(AS70>=80,1,0) -> 1 | DL70: =IF(AU70>=80,1,0) -> 1 | DM70: =IF(AV70>=80,1,0) -> 1 | DN70: =IF(AW70>=80,1,0) -> 0 | DP70: =IF(AY70>=80,1,0) -> 1 | DQ70: =IF(AZ70>=80,1,0) -> 1 | DR70: =IF(BA70>=80,1,0) -> 0 | DS70: =IF(BB70>=80,1,0) -> 1 | DT70: =IF(BC70>=80,1,0) -> 1 | DU70: =IF(BD70>=80,1,0) -> 1 | DV70: =IF(BE70>=80,1,0) -> 1 | DW70: =IF(BF70>=80,1,0) -> 1 | DY70: =IF(BH70>=80,1,0) -> 1 | DZ70: =IF(BI70>=80,1,0) -> 1 | EA70: =IF(BJ70>=80,1,0) -> 1 | EB70: =IF(BK70>=80,1,0) -> 1 | EC70: =IF(BL70>=80,1,0) -> 1 | ED70: =IF(BM70>=80,1,0) -> 1 | EE70: =IF(BN70>=80,1,0) -> 1 | EG70: =IF(BP70>=80,1,0) -> 1 | EH70: =IF(BQ70>=80,1,0) -> 1 | EI70: =IF(BR70>=80,1,0) -> 1 | EJ70: =IF(BS70>=80,1,0) -> 1 | EK70: =IF(BT70>=80,1,0) -> 1 | EL70: =IF(BU70>=80,1,0) -> 1 | EM70: =IF(BV70>=80,1,0) -> 1 | EN70: =IF(BW70>=80,1,0) -> 1 | EO70: =IF(BX70>=80,1,0) -> 1 | EP70: =SUM(CA70:EO70) -> 47 | EQ70: =EP70/55 -> 85.45%
A71: 化工16-3班 | B71: 刘思琦 | C71: 2016010470 | D71: 有 | E71: 无 | F71: 无 | G71: 无 | H71: B | I71: 1.1 | J71: 89 | K71: 73 | L71: 80.3 | M71: 60 | N71: 83 | O71: 90 | P71: 70 | Q71: 87 | R71: 60 | S71: 76 | U71: 50 | V71: 91 | W71: 63 | Y71: 80 | Z71: 88 | AA71: 60 | AC71: 88 | AD71: 60 | AE71: 91 | AG71: 87 | AH71: 60 | AJ71: 67 | AK71: 75 | AL71: 82.5 | AM71: 71 | AN71: 93 | AO71: 69 | AP71: 85 | AQ71: 67 | AR71: 58 | AS71: 72 | AU71: 88 | AV71: 84 | AW71: 86 | AX71: 94.6 | AY71: 69 | AZ71: 64 | BA71: 60 | BB71: 81 | BC71: 90 | BD71: 92 | BE71: 68 | BF71: 86 | BH71: 68 | BI71: 78 | BJ71: 46 | BK71: 76 | BL71: 64 | BM71: 81 | BN71: 90 | BP71: 77 | BQ71: 58 | BR71: 66 | BS71: 68 | BT71: 88 | BU71: 69 | BV71: 81 | BW71: 82 | BX71: 90 | BY71: 71.48593156 | CA71: 1 | CB71: 0 | CD71: 0 | CE71: 1 | CF71: 1 | CG71: 0 | CH71: 1 | CI71: 0 | CJ71: 0 | CL71: 0 | CM71: 1 | CN71: 0 | CO71: 0 | CP71: 1 | CR71: 0 | CS71: 0 | CT71: 1 | CU71: 0 | CV71: 1 | CX71: 1 | CY71: 0 | CZ71: 0 | DA71: 0 | DB71: 0 | DD71: 0 | DE71: 1 | DF71: 0 | DG71: 1 | DH71: 0 | DI71: 0 | DJ71: 0 | DL71: 1 | DM71: 1 | DN71: 1 | DP71: 0 | DQ71: 0 | DR71: 0 | DS71: 1 | DT71: 1 | DU71: 1 | DV71: 0 | DW71: 1 | DY71: 0 | DZ71: 0 | EA71: 0 | EB71: 0 | EC71: 0 | ED71: 1 | EE71: 1 | EG71: 0 | EH71: 0 | EI71: 0 | EJ71: 0 | EK71: 1 | EL71: 0 | EM71: 1 | EN71: 1 | EO71: 1 | EP71: 24 | EQ71: 43.64%
A72: 化工16-3班 | B72: 马小彩 | C72: 2016010471 | D72: 有 | E72: 无 | F72: 无 | G72: 无 | H72: B | I72: 1.1 | J72: 70 | K72: 76 | L72: 83.6 | M72: 79 | N72: 88 | O72: 94 | P72: 86 | Q72: 87 | R72: 67 | S72: 86 | U72: 69 | V72: 89 | W72: 62 | Y72: 86 | Z72: 94.6 | AA72: 60 | AC72: 84 | AD72: 60 | AE72: 91 | AG72: 88 | AH72: 64 | AJ72: 62 | AK72: 74 | AL72: 81.4 | AM72: 78 | AN72: 91 | AO72: 74 | AP72: 85 | AQ72: 61 | AR72: 60 | AS72: 76 | AU72: 93 | AV72: 83 | AW72: 78 | AX72: 85.8 | AY72: 56 | AZ72: 54 | BA72: 36 | BB72: 66 | BC72: 69 | BD72: 85 | BE72: 80 | BF72: 85 | BH72: 63 | BI72: 72 | BJ72: 54 | BK72: 70 | BL72: 60 | BM72: 73 | BN72: 88 | BP72: 70 | BQ72: 66 | BR72: 65 | BS72: 68 | BT72: 80 | BU72: 75 | BV72: 83 | BW72: 74 | BX72: 87 | BY72: 71.82281369 | CA72: 0 | CB72: 0 | CD72: 0 | CE72: 1 | CF72: 1 | CG72: 1 | CH72: 1 | CI72: 0 | CJ72: 1 | CL72: 0 | CM72: 1 | CN72: 0 | CO72: 0 | CP72: 1 | CR72: 0 | CS72: 0 | CT72: 1 | CU72: 0 | CV72: 1 | CX72: 1 | CY72: 0 | CZ72: 0 | DA72: 0 | DB72: 0 | DD72: 0 | DE72: 1 | DF72: 0 | DG72: 1 | DH72: 0 | DI72: 0 | DJ72: 0 | DL72: 1 | DM72: 1 | DN72: 0 | DP72: 0 | DQ72: 0 | DR72: 0 | DS72: 0 | DT72: 0 | DU72: 1 | DV72: 1 | DW72: 1 | DY72: 0 | DZ72: 0 | EA72: 0 | EB72: 0 | EC72: 0 | ED72: 0 | EE72: 1 | EG72: 0 | EH72: 0 | EI72: 0 | EJ72: 0 | EK72: 1 | EL72: 0 | EM72: 1 | EN72: 0 | EO72: 1 | EP72: 21 | EQ72: 38.18%
A73: 化工16-3班 | B73: 任婧 | C73: 2016010472 | D73: 无 | E73: 无 | F73: 无 | G73: 无 | H73: B | I73: 1.1 | J73: 72 | K73: 70 | L73: 77 | M73: 71 | N73: 84 | O73: 83 | P73: 85 | Q73: 84 | R73: 68 | S73: 86 | U73: 76 | V73: 89 | W73: 93 | Y73: 94 | Z73: 103.4 | AA73: 78 | AC73: 92 | AD73: 81 | AE73: 87 | AG73: 88 | AH73: 89 | AJ73: 80 | AK73: 91 | AL73: 100.1 | AM73: 79 | AN73: 92 | AO73: 85 | AP73: 90 | AQ73: 82 | AR73: 78 | AS73: 85 | AU73: 89 | AV73: 88 | AW73: 85 | AX73: 93.5 | AY73: 82 | AZ73: 82 | BA73: 84 | BB73: 84 | BC73: 97 | BD73: 90 | BE73: 98 | BF73: 91 | BH73: 76 | BI73: 88 | BJ73: 80 | BK73: 85 | BL73: 87 | BM73: 90 | BN73: 89 | BP73: 91 | BQ73: 89 | BR73: 92 | BS73: 91 | BT73: 90 | BU73: 91 | BV73: 89 | BW73: 97 | BX73: 94 | BY73: 85.35589354 | CA73: 0 | CB73: 0 | CD73: 0 | CE73: 1 | CF73: 1 | CG73: 1 | CH73: 1 | CI73: 0 | CJ73: 1 | CL73: 0 | CM73: 1 | CN73: 1 | CO73: 0 | CP73: 1 | CR73: 0 | CS73: 0 | CT73: 1 | CU73: 1 | CV73: 1 | CX73: 1 | CY73: 1 | CZ73: 0 | DA73: 1 | DB73: 1 | DD73: 0 | DE73: 1 | DF73: 1 | DG73: 1 | DH73: 1 | DI73: 0 | DJ73: 1 | DL73: 1 | DM73: 1 | DN73: 1 | DP73: 1 | DQ73: 1 | DR73: 1 | DS73: 1 | DT73: 1 | DU73: 1 | DV73: 1 | DW73: 1 | DY73: 0 | DZ73: 1 | EA73: 1 | EB73: 1 | EC73: 1 | ED73: 1 | EE73: 1 | EG73: 1 | EH73: 1 | EI73: 1 | EJ73: 1 | EK73: 1 | EL73: 1 | EM73: 1 | EN73: 1 | EO73: 1 | EP73: 46 | EQ73: 83.64%
A74: 化工16-3班 | B74: 谢雨燊 | C74: 2016010474 | D74: 有 | E74: 无 | F74: 无 | G74: 无 | H74: A | I74: 1.15 | J74: 81 | K74: 76 | L74: 87.4 | M74: 68 | N74: 89 | O74: 96 | P74: 83 | Q74: 91 | R74: 77 | S74: 90 | U74: 73 | V74: 88 | X74: 64 | Y74: 81 | Z74: 93.15 | AB74: 60 | AC74: 83 | AD74: 62 | AE74: 88 | AG74: 93 | AI74: 68 | AJ74: 78 | AK74: 88 | AL74: 101.2 | AM74: 85 | AN74: 96 | AO74: 68 | AP74: 83 | AQ74: 64 | AR74: 65 | AS74: 82 | AU74: 88 | AV74: 76 | AW74: 74 | AX74: 85.1 | AY74: 69 | AZ74: 66 | BA74: 62 | BB74: 83 | BC74: 84 | BD74: 76 | BE74: 71 | BF74: 85 | BH74: 68 | BI74: 77 | BJ74: 53 | BK74: 75 | BL74: 65 | BM74: 81 | BN74: 85 | BP74: 80 | BQ74: 75 | BR74: 68 | BS74: 85 | BT74: 91 | BU74: 78 | BV74: 73 | BW74: 83 | BX74: 92 | BY74: 77.29885932 | CA74: 1 | CB74: 0 | CD74: 0 | CE74: 1 | CF74: 1 | CG74: 1 | CH74: 1 | CI74: 0 | CJ74: 1 | CL74: 0 | CM74: 1 | CN74: 0 | CO74: 0 | CP74: 1 | CR74: 0 | CS74: 0 | CT74: 1 | CU74: 0 | CV74: 1 | CX74: 1 | CY74: 0 | CZ74: 0 | DA74: 0 | DB74: 1 | DD74: 1 | DE74: 1 | DF74: 0 | DG74: 1 | DH74: 0 | DI74: 0 | DJ74: 1 | DL74: 1 | DM74: 0 | DN74: 0 | DP74: 0 | DQ74: 0 | DR74: 0 | DS74: 1 | DT74: 1 | DU74: 0 | DV74: 0 | DW74: 1 | DY74: 0 | DZ74: 0 | EA74: 0 | EB74: 0 | EC74: 0 | ED74: 1 | EE74: 1 | EG74: 1 | EH74: 0 | EI74: 0 | EJ74: 1 | EK74: 1 | EL74: 0 | EM74: 0 | EN74: 1 | EO74: 1 | EP74: 27 | EQ74: 49.09%
A75: 化工16-3班 | B75: 姚玮叶 | C75: 2016010475 | D75: 有 | E75: 无 | F75: 无 | G75: 无 | H75: B | I75: 1.1 | J75: 80 | K75: 74 | L75: 81.4 | M75: 76 | N75: 92 | O75: 91 | P75: 80 | Q75: 82 | R75: 69 | S75: 84 | U75: 69 | V75: 91 | W75: 88 | Y75: 77 | Z75: 84.7 | AA75: 68 | AC75: 91 | AD75: 60 | AE75: 92 | AG75: 83 | AH75: 77 | AJ75: 80 | AK75: 81 | AL75: 89.1 | AM75: 85 | AN75: 91 | AO75: 73 | AP75: 88 | AQ75: 80 | AR75: 82 | AS75: 82 | AU75: 85 | AV75: 87 | AW75: 75 | AX75: 82.5 | AY75: 73 | AZ75: 63 | BA75: 74 | BB75: 76 | BC75: 68 | BD75: 76 | BE75: 75 | BF75: 84 | BH75: 78 | BI75: 88 | BJ75: 60 | BK75: 73 | BL75: 74 | BM75: 78 | BN75: 83 | BP75: 73 | BQ75: 75 | BR75: 68 | BS75: 75 | BT75: 88 | BU75: 82 | BV75: 83 | BW75: 64 | BX75: 90 | BY75: 77.36958175 | CA75: 1 | CB75: 0 | CD75: 0 | CE75: 1 | CF75: 1 | CG75: 1 | CH75: 1 | CI75: 0 | CJ75: 1 | CL75: 0 | CM75: 1 | CN75: 1 | CO75: 0 | CP75: 0 | CR75: 0 | CS75: 0 | CT75: 1 | CU75: 0 | CV75: 1 | CX75: 1 | CY75: 0 | CZ75: 0 | DA75: 1 | DB75: 1 | DD75: 1 | DE75: 1 | DF75: 0 | DG75: 1 | DH75: 1 | DI75: 1 | DJ75: 1 | DL75: 1 | DM75: 1 | DN75: 0 | DP75: 0 | DQ75: 0 | DR75: 0 | DS75: 0 | DT75: 0 | DU75: 0 | DV75: 0 | DW75: 1 | DY75: 0 | DZ75: 1 | EA75: 0 | EB75: 0 | EC75: 0 | ED75: 0 | EE75: 1 | EG75: 0 | EH75: 0 | EI75: 0 | EJ75: 0 | EK75: 1 | EL75: 1 | EM75: 1 | EN75: 0 | EO75: 1 | EP75: 28 | EQ75: 50.91%
A76: 化工16-3班 | B76: 蔡润 | C76: 2016010476 | D76: 无 | E76: 无 | F76: 无 | G76: 无 | H76: B | I76: 1.1 | J76: 64 | K76: 62 | L76: 68.2 | M76: 83 | N76: 87 | O76: 93 | P76: 88 | Q76: 86 | R76: 85 | S76: 91 | U76: 68 | V76: 77 | W76: 74 | Y76: 80 | Z76: 88 | AA76: 81 | AC76: 85 | AD76: 91 | AE76: 88 | AG76: 81 | AH76: 77 | AJ76: 70 | AK76: 72 | AL76: 79.2 | AM76: 81 | AN76: 92 | AO76: 82 | AP76: 81 | AQ76: 83 | AR76: 70 | AS76: 83 | AU76: 61 | AV76: 85 | AW76: 70 | AX76: 77 | AY76: 77 | AZ76: 70 | BA76: 68 | BB76: 82 | BC76: 87 | BD76: 84 | BE76: 92 | BF76: 88 | BH76: 87 | BI76: 81 | BJ76: 73 | BK76: 84 | BL76: 70 | BM76: 78 | BN76: 85 | BP76: 71 | BQ76: 79 | BR76: 87 | BS76: 82 | BT76: 81 | BU76: 74 | BV76: 82 | BW76: 77 | BX76: 83 | BY76: 80.10798479 | CA76: 0 | CB76: 0 | CD76: 1 | CE76: 1 | CF76: 1 | CG76: 1 | CH76: 1 | CI76: 1 | CJ76: 1 | CL76: 0 | CM76: 0 | CN76: 0 | CO76: 0 | CP76: 1 | CR76: 1 | CS76: 0 | CT76: 1 | CU76: 1 | CV76: 1 | CX76: 1 | CY76: 0 | CZ76: 0 | DA76: 0 | DB76: 0 | DD76: 1 | DE76: 1 | DF76: 1 | DG76: 1 | DH76: 1 | DI76: 0 | DJ76: 1 | DL76: 0 | DM76: 1 | DN76: 0 | DP76: 0 | DQ76: 0 | DR76: 0 | DS76: 1 | DT76: 1 | DU76: 1 | DV76: 1 | DW76: 1 | DY76: 1 | DZ76: 1 | EA76: 0 | EB76: 1 | EC76: 0 | ED76: 0 | EE76: 1 | EG76: 0 | EH76: 0 | EI76: 1 | EJ76: 1 | EK76: 1 | EL76: 0 | EM76: 1 | EN76: 0 | EO76: 1 | EP76: 34 | EQ76: 61.82%
A77: 化工16-3班 | B77: 曹成昆 | C77: 2016010477 | D77: 有 | E77: 有 | F77: 有 | G77: 无 | H77: C | I77: 1 | J77: 64 | K77: 65 | L77: 65 | M77: 60 | N77: 70 | O77: 89 | P77: 83 | Q77: 75 | R77: 60 | S77: 78 | U77: 63 | V77: 80 | W77: 67 | Y77: 71 | Z77: 71 | AA77: 71 | AC77: 80 | AD77: 53 | AE77: 89 | AG77: 88 | AH77: 80 | AJ77: 69 | AK77: 65 | AL77: 65 | AM77: 85 | AN77: 92 | AO77: 82 | AP77: 81 | AQ77: 68 | AR77: 80 | AS77: 81 | AU77: 70 | AV77: 81 | AW77: 68 | AX77: 68 | AY77: 60 | AZ77: 62 | BA77: 60 | BB77: 55 | BC77: 85 | BD77: 84 | BE77: 79 | BF77: 83 | BH77: 85 | BI77: 90 | BJ77: 60 | BK77: 76 | BL77: 78 | BM77: 74 | BN77: 83 | BP77: 63 | BQ77: 71 | BR77: 77 | BS77: 75 | BT77: 86 | BU77: 76 | BV77: 77 | BW77: 82 | BX77: 86 | BY77: 72.31558935 | CA77: 0 | CB77: 0 | CD77: 0 | CE77: 0 | CF77: 1 | CG77: 1 | CH77: 0 | CI77: 0 | CJ77: 0 | CL77: 0 | CM77: 1 | CN77: 0 | CO77: 0 | CP77: 0 | CR77: 0 | CS77: 0 | CT77: 1 | CU77: 0 | CV77: 1 | CX77: 1 | CY77: 1 | CZ77: 0 | DA77: 0 | DB77: 0 | DD77: 1 | DE77: 1 | DF77: 1 | DG77: 1 | DH77: 0 | DI77: 1 | DJ77: 1 | DL77: 0 | DM77: 1 | DN77: 0 | DP77: 0 | DQ77: 0 | DR77: 0 | DS77: 0 | DT77: 1 | DU77: 1 | DV77: 0 | DW77: 1 | DY77: 1 | DZ77: 1 | EA77: 0 | EB77: 0 | EC77: 0 | ED77: 0 | EE77: 1 | EG77: 0 | EH77: 0 | EI77: 0 | EJ77: 0 | EK77: 1 | EL77: 0 | EM77: 0 | EN77: 1 | EO77: 1 | EP77: 23 | EQ77: 41.82%
A78: 化工16-3班 | B78: 谷嘉伟 | C78: 2016010478 | D78: 有 | E78: 无 | F78: 无 | G78: 无 | H78: B | I78: 1.1 | J78: 76 | K78: 70 | L78: 77 | M78: 60 | N78: 79 | O78: 86 | P78: 75 | Q78: 84 | R78: 70 | S78: 81 | U78: 60 | V78: 92 | W78: 60 | Y78: 60 | Z78: 66 | AA78: 29 | AC78: 81 | AD78: 60 | AE78: 86 | AG78: 83 | AH78: 60 | AJ78: 61 | AK78: 78 | AL78: 85.8 | AM78: 79 | AN78: 92 | AO78: 71 | AP78: 79 | AQ78: 78 | AR78: 65 | AS78: 74 | AU78: 73 | AV78: 72 | AW78: 76 | AX78: 83.6 | AY78: 67 | AZ78: 66 | BA78: 50 | BB78: 43 | BC78: 60 | BD78: 84 | BE78: 77 | BF78: 83 | BH78: 80 | BI78: 77 | BJ78: 60 | BK78: 76 | BL78: 68 | BM78: 67 | BN78: 81 | BP78: 63 | BQ78: 65 | BR78: 66 | BS78: 68 | BT78: 78 | BU78: 70 | BV78: 73 | BW78: 60 | BX78: 93 | BY78: 68.49657795 | CA78: 0 | CB78: 0 | CD78: 0 | CE78: 0 | CF78: 1 | CG78: 0 | CH78: 1 | CI78: 0 | CJ78: 1 | CL78: 0 | CM78: 1 | CN78: 0 | CO78: 0 | CP78: 0 | CR78: 0 | CS78: 0 | CT78: 1 | CU78: 0 | CV78: 1 | CX78: 1 | CY78: 0 | CZ78: 0 | DA78: 0 | DB78: 0 | DD78: 0 | DE78: 1 | DF78: 0 | DG78: 0 | DH78: 0 | DI78: 0 | DJ78: 0 | DL78: 0 | DM78: 0 | DN78: 0 | DP78: 0 | DQ78: 0 | DR78: 0 | DS78: 0 | DT78: 0 | DU78: 1 | DV78: 0 | DW78: 1 | DY78: 1 | DZ78: 0 | EA78: 0 | EB78: 0 | EC78: 0 | ED78: 0 | EE78: 1 | EG78: 0 | EH78: 0 | EI78: 0 | EJ78: 0 | EK78: 0 | EL78: 0 | EM78: 0 | EN78: 0 | EO78: 1 | EP78: 13 | EQ78: 23.64%
A79: 化工16-3班 | B79: 江方圆 | C79: 2016010479 | D79: 有 | E79: 无 | F79: 无 | G79: 无 | H79: A | I79: 1.15 | J79: 65 | K79: 86 | L79: 98.9 | M79: 60 | N79: 73 | O79: 86 | P79: 81 | Q79: 80 | R79: 61 | S79: 83 | U79: 67 | V79: 91 | W79: 61 | Y79: 85 | Z79: 97.75 | AA79: 66 | AC79: 80 | AD79: 61 | AE79: 83 | AG79: 72 | AH79: 61 | AJ79: 64 | AK79: 87 | AL79: 100.05 | AM79: 83 | AN79: 92 | AO79: 63 | AP79: 81 | AQ79: 89 | AR79: 64 | AS79: 70 | AU79: 79 | AV79: 81 | AW79: 64 | AX79: 73.6 | AY79: 65 | AZ79: 55 | BA79: 60 | BB79: 63 | BC79: 60 | BD79: 80 | BE79: 79 | BF79: 84 | BH79: 55 | BI79: 60 | BJ79: 54 | BK79: 68 | BL79: 78 | BM79: 71 | BN79: 81 | BP79: 68 | BQ79: 66 | BR79: 66 | BS79: 62 | BT79: 71 | BU79: 68 | BV79: 63 | BW79: 64 | BX79: 78 | BY79: 71.09809886 | CA79: 0 | CB79: 1 | CD79: 0 | CE79: 0 | CF79: 1 | CG79: 1 | CH79: 1 | CI79: 0 | CJ79: 1 | CL79: 0 | CM79: 1 | CN79: 0 | CO79: 0 | CP79: 1 | CR79: 0 | CS79: 0 | CT79: 1 | CU79: 0 | CV79: 1 | CX79: 0 | CY79: 0 | CZ79: 0 | DA79: 0 | DB79: 1 | DD79: 1 | DE79: 1 | DF79: 0 | DG79: 1 | DH79: 1 | DI79: 0 | DJ79: 0 | DL79: 0 | DM79: 1 | DN79: 0 | DP79: 0 | DQ79: 0 | DR79: 0 | DS79: 0 | DT79: 0 | DU79: 1 | DV79: 0 | DW79: 1 | DY79: 0 | DZ79: 0 | EA79: 0 | EB79: 0 | EC79: 0 | ED79: 0 | EE79: 1 | EG79: 0 | EH79: 0 | EI79: 0 | EJ79: 0 | EK79: 0 | EL79: 0 | EM79: 0 | EN79: 0 | EO79: 0 | EP79: 18 | EQ79: 32.73%
A80: 化工16-3班 | B80: 焦晓宇 | C80: 2016010480 | D80: 无 | E80: 无 | F80: 无 | G80: 无 | H80: B | I80: 1.1 | J80: 87 | K80: 76 | L80: 83.6 | M80: 68 | N80: 93 | O80: 89 | P80: 90 | Q80: 84 | R80: 81 | S80: 89 | U80: 69 | V80: 77 | W80: 70 | Y80: 78 | Z80: 85.8 | AA80: 76 | AC80: 84 | AD80: 66 | AE80: 84 | AG80: 96 | AH80: 71 | AJ80: 84 | AK80: 82 | AL80: 90.2 | AM80: 80 | AN80: 93 | AO80: 78 | AP80: 91 | AQ80: 68 | AR80: 63 | AS80: 88 | AU80: 92 | AV80: 87 | AW80: 72 | AX80: 79.2 | AY80: 75 | AZ80: 75 | BA80: 74 | BB80: 83 | BC80: 91 | BD80: 90 | BE80: 76 | BF80: 88 | BH80: 88 | BI80: 88 | BJ80: 66 | BK80: 80 | BL80: 75 | BM80: 76 | BN80: 85 | BP80: 83 | BQ80: 71 | BR80: 83 | BS80: 86 | BT80: 84 | BU80: 70 | BV80: 82 | BW80: 68 | BX80: 95 | BY80: 79.02205323 | CA80: 1 | CB80: 0 | CD80: 0 | CE80: 1 | CF80: 1 | CG80: 1 | CH80: 1 | CI80: 1 | CJ80: 1 | CL80: 0 | CM80: 0 | CN80: 0 | CO80: 0 | CP80: 0 | CR80: 0 | CS80: 0 | CT80: 1 | CU80: 0 | CV80: 1 | CX80: 1 | CY80: 0 | CZ80: 0 | DA80: 1 | DB80: 1 | DD80: 1 | DE80: 1 | DF80: 0 | DG80: 1 | DH80: 0 | DI80: 0 | DJ80: 1 | DL80: 1 | DM80: 1 | DN80: 0 | DP80: 0 | DQ80: 0 | DR80: 0 | DS80: 1 | DT80: 1 | DU80: 1 | DV80: 0 | DW80: 1 | DY80: 1 | DZ80: 1 | EA80: 0 | EB80: 1 | EC80: 0 | ED80: 0 | EE80: 1 | EG80: 1 | EH80: 0 | EI80: 1 | EJ80: 1 | EK80: 1 | EL80: 0 | EM80: 1 | EN80: 0 | EO80: 1 | EP80: 32 | EQ80: 58.18%
A81: 化工16-3班 | B81: 李品贤 | C81: 2016010481 | D81: 有 | E81: 无 | F81: 无 | G81: 无 | H81: B | I81: 1.1 | J81: 86 | K81: 63 | L81: 69.3 | M81: 60 | N81: 95 | O81: 92 | P81: 74 | Q81: 87 | R81: 65 | S81: 92 | U81: 66 | V81: 88 | W81: 60 | Y81: 77 | Z81: 84.7 | AA81: 60 | AC81: 87 | AD81: 64 | AE81: 88 | AG81: 84 | AH81: 60 | AJ81: 68 | AK81: 77 | AL81: 84.7 | AM81: 78 | AN81: 94 | AO81: 66 | AP81: 89 | AQ81: 60 | AR81: 52 | AS81: 80 | AU81: 80 | AV81: 84 | AW81: 73 | AX81: 80.3 | AY81: 60 | AZ81: 46 | BA81: 44 | BB81: 60 | BC81: 60 | BD81: 87 | BE81: 69 | BF81: 85 | BH81: 77 | BI81: 84 | BJ81: 62 | BK81: 81 | BL81: 72 | BM81: 78 | BN81: 86 | BP81: 62 | BQ81: 49 | BR81: 73 | BS81: 85 | BT81: 88 | BU81: 71 | BV81: 82 | BW81: 68 | BX81: 92 | BY81: 71.60076046 | CA81: 1 | CB81: 0 | CD81: 0 | CE81: 1 | CF81: 1 | CG81: 0 | CH81: 1 | CI81: 0 | CJ81: 1 | CL81: 0 | CM81: 1 | CN81: 0 | CO81: 0 | CP81: 0 | CR81: 0 | CS81: 0 | CT81: 1 | CU81: 0 | CV81: 1 | CX81: 1 | CY81: 0 | CZ81: 0 | DA81: 0 | DB81: 0 | DD81: 0 | DE81: 1 | DF81: 0 | DG81: 1 | DH81: 0 | DI81: 0 | DJ81: 1 | DL81: 1 | DM81: 1 | DN81: 0 | DP81: 0 | DQ81: 0 | DR81: 0 | DS81: 0 | DT81: 0 | DU81: 1 | DV81: 0 | DW81: 1 | DY81: 0 | DZ81: 1 | EA81: 0 | EB81: 1 | EC81: 0 | ED81: 0 | EE81: 1 | EG81: 0 | EH81: 0 | EI81: 0 | EJ81: 1 | EK81: 1 | EL81: 0 | EM81: 1 | EN81: 0 | EO81: 1 | EP81: 23 | EQ81: 41.82%
A82: 化工16-3班 | B82: 罗青涵 | C82: 2016010482 | D82: 无 | E82: 无 | F82: 无 | G82: 无 | H82: B | I82: 1.1 | J82: 76 | K82: 78 | L82: 85.8 | M82: 86 | N82: 86 | O82: 89 | P82: 80 | Q82: 85 | R82: 83 | S82: 83 | U82: 62 | V82: 88 | W82: 84 | Y82: 81 | Z82: 89.1 | AA82: 69 | AC82: 80 | AD82: 67 | AE82: 90 | AG82: 84 | AH82: 82 | AJ82: 74 | AK82: 81 | AL82: 89.1 | AM82: 61 | AN82: 93 | AO82: 73 | AP82: 85 | AQ82: 92 | AR82: 90 | AS82: 78 | AU82: 80 | AV82: 86 | AW82: 81 | AX82: 89.1 | AY82: 78 | AZ82: 73 | BA82: 80 | BB82: 81 | BC82: 92 | BD82: 87 | BE82: 98 | BF82: 86 | BH82: 66 | BI82: 72 | BJ82: 74 | BK82: 74 | BL82: 81 | BM82: 73 | BN82: 86 | BP82: 75 | BQ82: 80 | BR82: 65 | BS82: 78 | BT82: 81 | BU82: 73 | BV82: 72 | BW82: 61 | BX82: 89 | BY82: 79.75285171 | CA82: 0 | CB82: 0 | CD82: 1 | CE82: 1 | CF82: 1 | CG82: 1 | CH82: 1 | CI82: 1 | CJ82: 1 | CL82: 0 | CM82: 1 | CN82: 1 | CO82: 0 | CP82: 1 | CR82: 0 | CS82: 0 | CT82: 1 | CU82: 0 | CV82: 1 | CX82: 1 | CY82: 1 | CZ82: 0 | DA82: 0 | DB82: 1 | DD82: 0 | DE82: 1 | DF82: 0 | DG82: 1 | DH82: 1 | DI82: 1 | DJ82: 0 | DL82: 1 | DM82: 1 | DN82: 1 | DP82: 0 | DQ82: 0 | DR82: 1 | DS82: 1 | DT82: 1 | DU82: 1 | DV82: 1 | DW82: 1 | DY82: 0 | DZ82: 0 | EA82: 0 | EB82: 0 | EC82: 1 | ED82: 0 | EE82: 1 | EG82: 0 | EH82: 1 | EI82: 0 | EJ82: 0 | EK82: 1 | EL82: 0 | EM82: 0 | EN82: 0 | EO82: 1 | EP82: 33 | EQ82: 60.00%
A83: 化工16-3班 | B83: 朴俊浩 | C83: 2016010484 | D83: 有 | E83: 无 | F83: 有 | G83: 无 | H83: 无（办理免修，日语考生） | I83: 无（办理免修，日语考生） | J83: 77 | K83: 27 | M83: 60 | N83: 64 | O83: 92 | P83: 62 | Q83: 75 | R83: 60 | S83: 82 | U83: 61 | V83: 99 | W83: 60 | AA83: 60 | AC83: 70 | AD83: 60 | AE83: 91 | AG83: 72 | AH83: 60 | AJ83: 65 | AM83: 70 | AN83: 92 | AO83: 75 | AP83: 86 | AQ83: 60 | AR83: 61 | AS83: 72 | AU83: 83 | AV83: 86 | AY83: 64 | AZ83: 53 | BA83: 47 | BB83: 68 | BC83: 88 | BD83: 84 | BE83: 65 | BF83: 85 | BH83: 62 | BI83: 66 | BJ83: 51 | BK83: 68 | BL83: 77 | BM83: 70 | BN83: 86 | BP83: 71 | BQ83: 62 | BR83: 77 | BS83: 75 | BT83: 84 | BU83: 65 | BV83: 74 | BW83: 66 | BX83: 79 | BY83: 62.06463878 | CA83: 0 | CB83: 0 | CD83: 0 | CE83: 0 | CF83: 1 | CG83: 0 | CH83: 0 | CI83: 0 | CJ83: 1 | CL83: 0 | CM83: 1 | CN83: 0 | CO83: 0 | CP83: 0 | CR83: 0 | CS83: 0 | CT83: 0 | CU83: 0 | CV83: 1 | CX83: 0 | CY83: 0 | CZ83: 0 | DA83: 0 | DB83: 0 | DD83: 0 | DE83: 1 | DF83: 0 | DG83: 1 | DH83: 0 | DI83: 0 | DJ83: 0 | DL83: 1 | DM83: 1 | DN83: 0 | DP83: 0 | DQ83: 0 | DR83: 0 | DS83: 0 | DT83: 1 | DU83: 1 | DV83: 0 | DW83: 1 | DY83: 0 | DZ83: 0 | EA83: 0 | EB83: 0 | EC83: 0 | ED83: 0 | EE83: 1 | EG83: 0 | EH83: 0 | EI83: 0 | EJ83: 0 | EK83: 1 | EL83: 0 | EM83: 0 | EN83: 0 | EO83: 0 | EP83: 13 | EQ83: 23.64%
A84: 化工16-3班 | B84: 王本颖 | C84: 2016010485 | D84: 有 | E84: 有 | F84: 有 | G84: 无 | H84: C | I84: 1 | J84: 69 | K84: 60 | L84: 60 | M84: 60 | N84: 86 | O84: 87 | P84: 74 | Q84: 78 | R84: 50 | S84: 84 | U84: 72 | V84: 78 | W84: 53 | Y84: 70 | Z84: 70 | AA84: 68 | AC84: 81 | AD84: 60 | AE84: 89 | AG84: 76 | AH84: 60 | AJ84: 66 | AK84: 51 | AL84: 51 | AM84: 81 | AN84: 91 | AO84: 68 | AP84: 85 | AQ84: 53 | AR84: 63 | AS84: 80 | AU84: 83 | AV84: 85 | AW84: 72 | AX84: 72 | AY84: 71 | AZ84: 54 | BA84: 47 | BB84: 86 | BC84: 86 | BD84: 86 | BE84: 45 | BF84: 85 | BH84: 65 | BI84: 82 | BJ84: 60 | BK84: 78 | BL84: 74 | BM84: 76 | BN84: 87 | BP84: 73 | BQ84: 57 | BR84: 72 | BS84: 80 | BT84: 87 | BU84: 68 | BV84: 75 | BW84: 70 | BX84: 78 | BY84: 68.79087452 | CA84: 0 | CB84: 0 | CD84: 0 | CE84: 1 | CF84: 1 | CG84: 0 | CH84: 0 | CI84: 0 | CJ84: 1 | CL84: 0 | CM84: 0 | CN84: 0 | CO84: 0 | CP84: 0 | CR84: 0 | CS84: 0 | CT84: 1 | CU84: 0 | CV84: 1 | CX84: 0 | CY84: 0 | CZ84: 0 | DA84: 0 | DB84: 0 | DD84: 1 | DE84: 1 | DF84: 0 | DG84: 1 | DH84: 0 | DI84: 0 | DJ84: 1 | DL84: 1 | DM84: 1 | DN84: 0 | DP84: 0 | DQ84: 0 | DR84: 0 | DS84: 1 | DT84: 1 | DU84: 1 | DV84: 0 | DW84: 1 | DY84: 0 | DZ84: 1 | EA84: 0 | EB84: 0 | EC84: 0 | ED84: 0 | EE84: 1 | EG84: 0 | EH84: 0 | EI84: 0 | EJ84: 1 | EK84: 1 | EL84: 0 | EM84: 0 | EN84: 0 | EO84: 0 | EP84: 19 | EQ84: 34.55%
A85: 化工16-3班 | B85: 王宁 | C85: 2016010486 | D85: 有 | E85: 无 | F85: 有 | G85: 无 | H85: B | I85: 1.1 | J85: 69 | K85: 60 | L85: 66 | M85: 60 | N85: 86 | O85: 89 | P85: 78 | Q85: 80 | R85: 54 | S85: 87 | U85: 29 | V85: 86 | W85: 60 | Y85: 76 | Z85: 83.6 | AA85: 60 | AC85: 85 | AD85: 67.5 | AE85: 89 | AG85: 73 | AH85: 46 | AJ85: 62 | AK85: 74 | AL85: 81.4 | AM85: 74 | AN85: 91 | AO85: 66 | AP85: 82 | AQ85: 53 | AR85: 60 | AS85: 77 | AU85: 85 | AV85: 82 | AW85: 65 | AX85: 71.5 | AY85: 58 | AZ85: 67 | BA85: 60 | BB85: 78 | BC85: 84 | BD85: 84 | BE85: 61 | BF85: 79 | BH85: 61 | BI85: 74 | BJ85: 41 | BK85: 73 | BL85: 46 | BM85: 72 | BN85: 83 | BP85: 61 | BQ85: 72 | BR85: 73 | BS85: 68 | BT85: 87 | BU85: 70 | BV85: 66 | BW85: 63 | BX85: 86 | BY85: 67.30190114 | CA85: 0 | CB85: 0 | CD85: 0 | CE85: 1 | CF85: 1 | CG85: 0 | CH85: 1 | CI85: 0 | CJ85: 1 | CL85: 0 | CM85: 1 | CN85: 0 | CO85: 0 | CP85: 0 | CR85: 0 | CS85: 0 | CT85: 1 | CU85: 0 | CV85: 1 | CX85: 0 | CY85: 0 | CZ85: 0 | DA85: 0 | DB85: 0 | DD85: 0 | DE85: 1 | DF85: 0 | DG85: 1 | DH85: 0 | DI85: 0 | DJ85: 0 | DL85: 1 | DM85: 1 | DN85: 0 | DP85: 0 | DQ85: 0 | DR85: 0 | DS85: 0 | DT85: 1 | DU85: 1 | DV85: 0 | DW85: 0 | DY85: 0 | DZ85: 0 | EA85: 0 | EB85: 0 | EC85: 0 | ED85: 0 | EE85: 1 | EG85: 0 | EH85: 0 | EI85: 0 | EJ85: 0 | EK85: 1 | EL85: 0 | EM85: 0 | EN85: 0 | EO85: 1 | EP85: 16 | EQ85: 29.09%
A86: 化工16-3班 | B86: 王亚平 | C86: 2016010487 | D86: 有 | E86: 无 | F86: 无 | G86: 有 | H86: B | I86: 1.1 | J86: 69 | K86: 60 | L86: 66 | M86: 71 | N86: 86 | O86: 89 | P86: 83 | Q86: 83 | R86: 60 | S86: 85 | U86: 62 | V86: 67 | W86: 70 | Y86: 76 | Z86: 83.6 | AA86: 69 | AC86: 76 | AD86: 66 | AE86: 86 | AG86: 82 | AH86: 73 | AJ86: 67 | AK86: 74 | AL86: 81.4 | AM86: 76 | AN86: 92 | AO86: 83 | AP86: 83 | AQ86: 70 | AR86: 63 | AS86: 75 | AU86: 78 | AV86: 86 | AW86: 72 | AX86: 79.2 | AY86: 75 | AZ86: 70 | BA86: 62 | BB86: 73 | BC86: 60 | BD86: 90 | BE86: 76 | BF86: 80 | BH86: 65 | BI86: 85 | BJ86: 68 | BK86: 80 | BL86: 88 | BM86: 77 | BN86: 89 | BP86: 74 | BQ86: 70 | BR86: 84 | BS86: 82 | BT86: 86 | BU86: 79 | BV86: 80 | BW86: 81 | BX86: 90 | BY86: 75.18326996 | CA86: 0 | CB86: 0 | CD86: 0 | CE86: 1 | CF86: 1 | CG86: 1 | CH86: 1 | CI86: 0 | CJ86: 1 | CL86: 0 | CM86: 0 | CN86: 0 | CO86: 0 | CP86: 0 | CR86: 0 | CS86: 0 | CT86: 0 | CU86: 0 | CV86: 1 | CX86: 1 | CY86: 0 | CZ86: 0 | DA86: 0 | DB86: 0 | DD86: 0 | DE86: 1 | DF86: 1 | DG86: 1 | DH86: 0 | DI86: 0 | DJ86: 0 | DL86: 0 | DM86: 1 | DN86: 0 | DP86: 0 | DQ86: 0 | DR86: 0 | DS86: 0 | DT86: 0 | DU86: 1 | DV86: 0 | DW86: 1 | DY86: 0 | DZ86: 1 | EA86: 0 | EB86: 1 | EC86: 1 | ED86: 0 | EE86: 1 | EG86: 0 | EH86: 0 | EI86: 1 | EJ86: 1 | EK86: 1 | EL86: 0 | EM86: 1 | EN86: 1 | EO86: 1 | EP86: 23 | EQ86: 41.82%
A87: 化工16-3班 | B87: 武旺 | C87: 2016010488 | D87: 有 | E87: 无 | F87: 无 | G87: 有 | H87: B | I87: 1.1 | J87: 66 | K87: 75 | L87: 82.5 | M87: 60 | N87: 94 | O87: 91 | P87: 80 | Q87: 85 | R87: 81 | S87: 81 | U87: 66 | V87: 80 | W87: 69 | Y87: 81 | Z87: 89.1 | AA87: 71 | AC87: 86 | AD87: 69 | AE87: 91 | AG87: 69 | AH87: 71 | AJ87: 74 | AK87: 80 | AL87: 88 | AM87: 80 | AN87: 93 | AO87: 77 | AP87: 87 | AQ87: 65 | AR87: 68 | AS87: 78 | AU87: 79 | AV87: 83 | AW87: 67 | AX87: 73.7 | AY87: 68 | AZ87: 68 | BA87: 54 | BB87: 72 | BC87: 93 | BD87: 82 | BE87: 77 | BF87: 87 | BH87: 82 | BI87: 86 | BJ87: 70 | BK87: 77 | BL87: 76 | BM87: 72 | BN87: 88 | BP87: 75 | BQ87: 79 | BR87: 87 | BS87: 83 | BT87: 90 | BU87: 86 | BV87: 80 | BW87: 87 | BX87: 85 | BY87: 76.93003802 | CA87: 0 | CB87: 0 | CD87: 0 | CE87: 1 | CF87: 1 | CG87: 1 | CH87: 1 | CI87: 1 | CJ87: 1 | CL87: 0 | CM87: 1 | CN87: 0 | CO87: 0 | CP87: 1 | CR87: 0 | CS87: 0 | CT87: 1 | CU87: 0 | CV87: 1 | CX87: 0 | CY87: 0 | CZ87: 0 | DA87: 0 | DB87: 1 | DD87: 1 | DE87: 1 | DF87: 0 | DG87: 1 | DH87: 0 | DI87: 0 | DJ87: 0 | DL87: 0 | DM87: 1 | DN87: 0 | DP87: 0 | DQ87: 0 | DR87: 0 | DS87: 0 | DT87: 1 | DU87: 1 | DV87: 0 | DW87: 1 | DY87: 1 | DZ87: 1 | EA87: 0 | EB87: 0 | EC87: 0 | ED87: 0 | EE87: 1 | EG87: 0 | EH87: 0 | EI87: 1 | EJ87: 1 | EK87: 1 | EL87: 1 | EM87: 1 | EN87: 1 | EO87: 1 | EP87: 28 | EQ87: 50.91%
A88: 化工16-3班 | B88: 肖文 | C88: 2016010489 | D88: 无 | E88: 无 | F88: 无 | G88: 无 | H88: B | I88: 1.1 | J88: 76 | K88: 88 | L88: 96.8 | M88: 87 | N88: 89 | O88: 91 | P88: 84 | Q88: 82 | R88: 87 | S88: 83 | U88: 80 | V88: 90 | W88: 86 | Y88: 78 | Z88: 85.8 | AA88: 83 | AC88: 85 | AD88: 75 | AE88: 90 | AG88: 85 | AH88: 79 | AJ88: 72 | AK88: 74 | AL88: 81.4 | AM88: 81 | AN88: 92 | AO88: 81 | AP88: 87 | AQ88: 80 | AR88: 87 | AS88: 74 | AU88: 93 | AV88: 86 | AW88: 80 | AX88: 88 | AY88: 66 | AZ88: 80 | BA88: 60 | BB88: 77 | BC88: 91 | BD88: 84 | BE88: 83 | BF88: 87 | BH88: 75 | BI88: 72 | BJ88: 74 | BK88: 78 | BL88: 80 | BM88: 69 | BN88: 85 | BP88: 84 | BQ88: 84 | BR88: 86 | BS88: 87 | BT88: 88 | BU88: 86 | BV88: 83 | BW88: 92 | BX88: 92 | BY88: 82.56045627 | CA88: 0 | CB88: 1 | CD88: 1 | CE88: 1 | CF88: 1 | CG88: 1 | CH88: 1 | CI88: 1 | CJ88: 1 | CL88: 1 | CM88: 1 | CN88: 1 | CO88: 0 | CP88: 0 | CR88: 1 | CS88: 0 | CT88: 1 | CU88: 0 | CV88: 1 | CX88: 1 | CY88: 0 | CZ88: 0 | DA88: 0 | DB88: 0 | DD88: 1 | DE88: 1 | DF88: 1 | DG88: 1 | DH88: 1 | DI88: 1 | DJ88: 0 | DL88: 1 | DM88: 1 | DN88: 1 | DP88: 0 | DQ88: 1 | DR88: 0 | DS88: 0 | DT88: 1 | DU88: 1 | DV88: 1 | DW88: 1 | DY88: 0 | DZ88: 0 | EA88: 0 | EB88: 0 | EC88: 1 | ED88: 0 | EE88: 1 | EG88: 1 | EH88: 1 | EI88: 1 | EJ88: 1 | EK88: 1 | EL88: 1 | EM88: 1 | EN88: 1 | EO88: 1 | EP88: 40 | EQ88: 72.73%
A89: 化工16-3班 | B89: 邢皓为 | C89: 2016010490 | D89: 有 | E89: 无 | F89: 无 | G89: 无 | H89: B | I89: 1.1 | J89: 73 | K89: 73 | L89: 80.3 | M89: 60 | N89: 83 | O89: 85 | P89: 87 | Q89: 84 | R89: 75 | S89: 78 | U89: 62 | V89: 90 | W89: 75 | Y89: 82 | Z89: 90.2 | AA89: 70 | AC89: 83 | AD89: 68 | AE89: 84 | AG89: 90 | AH89: 76 | AJ89: 68 | AK89: 78 | AL89: 85.8 | AM89: 70 | AN89: 90 | AO89: 68 | AP89: 87 | AQ89: 72 | AR89: 71 | AS89: 72 | AU89: 82 | AV89: 83 | AW89: 80 | AX89: 88 | AY89: 69 | AZ89: 64 | BA89: 51 | BB89: 62 | BC89: 86 | BD89: 73 | BE89: 78 | BF89: 85 | BH89: 65 | BI89: 83 | BJ89: 52 | BK89: 83 | BL89: 74 | BM89: 75 | BN89: 87 | BP89: 82 | BQ89: 65 | BR89: 73 | BS89: 70 | BT89: 84 | BU89: 79 | BV89: 69 | BW89: 84 | BX89: 92 | BY89: 73.87148289 | CA89: 0 | CB89: 0 | CD89: 0 | CE89: 1 | CF89: 1 | CG89: 1 | CH89: 1 | CI89: 0 | CJ89: 0 | CL89: 0 | CM89: 1 | CN89: 0 | CO89: 0 | CP89: 1 | CR89: 0 | CS89: 0 | CT89: 1 | CU89: 0 | CV89: 1 | CX89: 1 | CY89: 0 | CZ89: 0 | DA89: 0 | DB89: 0 | DD89: 0 | DE89: 1 | DF89: 0 | DG89: 1 | DH89: 0 | DI89: 0 | DJ89: 0 | DL89: 1 | DM89: 1 | DN89: 1 | DP89: 0 | DQ89: 0 | DR89: 0 | DS89: 0 | DT89: 1 | DU89: 0 | DV89: 0 | DW89: 1 | DY89: 0 | DZ89: 1 | EA89: 0 | EB89: 1 | EC89: 0 | ED89: 0 | EE89: 1 | EG89: 1 | EH89: 0 | EI89: 0 | EJ89: 0 | EK89: 1 | EL89: 0 | EM89: 0 | EN89: 1 | EO89: 1 | EP89: 23 | EQ89: 41.82%
A90: 化工16-3班 | B90: 闫伟俊 | C90: 2016010491 | D90: 有 | E90: 无 | F90: 有 | G90: 无 | H90: B | I90: 1.1 | J90: 67 | K90: 65 | L90: 71.5 | M90: 68 | N90: 89 | O90: 94 | P90: 78 | Q90: 83 | R90: 80 | S90: 85 | U90: 65 | V90: 62 | W90: 71 | Y90: 82 | Z90: 90.2 | AA90: 60 | AC90: 86 | AD90: 60 | AE90: 89 | AG90: 78 | AH90: 64 | AJ90: 69 | AK90: 74 | AL90: 81.4 | AM90: 80 | AN90: 91 | AO90: 71 | AP90: 87 | AQ90: 66 | AR90: 60 | AS90: 80 | AU90: 74 | AV90: 84 | AW90: 70 | AX90: 77 | AY90: 70 | AZ90: 63 | BA90: 63 | BB90: 83 | BC90: 79 | BD90: 73 | BE90: 79 | BF90: 87 | BH90: 73 | BI90: 92 | BJ90: 68 | BK90: 77 | BL90: 89 | BM90: 78 | BN90: 89 | BP90: 69 | BQ90: 81 | BR90: 82 | BS90: 91 | BT90: 85 | BU90: 88 | BV90: 74 | BW90: 99 | BX90: 95 | BY90: 76.29353612 | CA90: 0 | CB90: 0 | CD90: 0 | CE90: 1 | CF90: 1 | CG90: 0 | CH90: 1 | CI90: 1 | CJ90: 1 | CL90: 0 | CM90: 0 | CN90: 0 | CO90: 0 | CP90: 1 | CR90: 0 | CS90: 0 | CT90: 1 | CU90: 0 | CV90: 1 | CX90: 0 | CY90: 0 | CZ90: 0 | DA90: 0 | DB90: 0 | DD90: 1 | DE90: 1 | DF90: 0 | DG90: 1 | DH90: 0 | DI90: 0 | DJ90: 1 | DL90: 0 | DM90: 1 | DN90: 0 | DP90: 0 | DQ90: 0 | DR90: 0 | DS90: 1 | DT90: 0 | DU90: 0 | DV90: 0 | DW90: 1 | DY90: 0 | DZ90: 1 | EA90: 0 | EB90: 0 | EC90: 1 | ED90: 0 | EE90: 1 | EG90: 0 | EH90: 1 | EI90: 1 | EJ90: 1 | EK90: 1 | EL90: 1 | EM90: 0 | EN90: 1 | EO90: 1 | EP90: 25 | EQ90: 45.45%
A91: 化工16-3班 | B91: 严聿捷 | C91: 2016010492 | D91: 有 | E91: 无 | F91: 无 | G91: 无 | H91: A | I91: 1.15 | J91: 76 | K91: 84 | L91: 96.6 | M91: 87 | N91: 89 | O91: 93 | P91: 90 | Q91: 80 | R91: 82 | S91: 82 | U91: 70 | V91: 87 | W91: 84 | Y91: 83 | Z91: 95.45 | AA91: 85 | AC91: 77 | AD91: 65 | AE91: 86 | AG91: 86 | AH91: 72 | AJ91: 73 | AK91: 84 | AL91: 96.6 | AM91: 74 | AN91: 92 | AO91: 74 | AP91: 87 | AQ91: 76 | AR91: 60 | AS91: 76 | AU91: 83 | AV91: 87 | AW91: 77 | AX91: 88.55 | AY91: 69 | AZ91: 75 | BA91: 60 | BB91: 61 | BC91: 93 | BD91: 86 | BE91: 81 | BF91: 87 | BH91: 63 | BI91: 82 | BJ91: 81 | BK91: 81 | BL91: 83 | BM91: 77 | BN91: 88 | BP91: 84 | BQ91: 80 | BR91: 84 | BS91: 88 | BT91: 84 | BU91: 80 | BV91: 80 | BW91: 99 | BX91: 81 | BY91: 80.75665399 | CA91: 0 | CB91: 1 | CD91: 1 | CE91: 1 | CF91: 1 | CG91: 1 | CH91: 1 | CI91: 1 | CJ91: 1 | CL91: 0 | CM91: 1 | CN91: 1 | CO91: 0 | CP91: 1 | CR91: 1 | CS91: 0 | CT91: 0 | CU91: 0 | CV91: 1 | CX91: 1 | CY91: 0 | CZ91: 0 | DA91: 0 | DB91: 1 | DD91: 0 | DE91: 1 | DF91: 0 | DG91: 1 | DH91: 0 | DI91: 0 | DJ91: 0 | DL91: 1 | DM91: 1 | DN91: 0 | DP91: 0 | DQ91: 0 | DR91: 0 | DS91: 0 | DT91: 1 | DU91: 1 | DV91: 1 | DW91: 1 | DY91: 0 | DZ91: 1 | EA91: 1 | EB91: 1 | EC91: 1 | ED91: 0 | EE91: 1 | EG91: 1 | EH91: 1 | EI91: 1 | EJ91: 1 | EK91: 1 | EL91: 1 | EM91: 1 | EN91: 1 | EO91: 1 | EP91: 37 | EQ91: 67.27%
A92: 化工16-3班 | B92: 颜小岷 | C92: 2016010493 | D92: 有 | E92: 无 | F92: 无 | G92: 无 | H92: C | I92: 1 | J92: 71 | K92: 81 | L92: 81 | M92: 83 | N92: 90 | O92: 92 | P92: 82 | Q92: 80 | R92: 92 | S92: 80 | U92: 83 | V92: 88 | W92: 84 | Y92: 83 | Z92: 83 | AA92: 73 | AC92: 84 | AD92: 72 | AE92: 90 | AG92: 85 | AH92: 70 | AJ92: 69 | AK92: 72 | AL92: 72 | AM92: 80 | AN92: 91 | AO92: 65 | AP92: 87 | AQ92: 63 | AR92: 80 | AS92: 78 | AU92: 77 | AV92: 85 | AW92: 60 | AX92: 60 | AY92: 67 | AZ92: 70 | BA92: 55 | BB92: 74 | BC92: 85 | BD92: 84 | BE92: 61 | BF92: 83 | BH92: 67 | BI92: 78 | BJ92: 65 | BK92: 68 | BL92: 72 | BM92: 73 | BN92: 85 | BP92: 80 | BQ92: 67 | BR92: 76 | BS92: 81 | BT92: 80 | BU92: 68 | BV92: 73 | BW92: 78 | BX92: 90 | BY92: 76.36882129 | CA92: 0 | CB92: 1 | CD92: 1 | CE92: 1 | CF92: 1 | CG92: 1 | CH92: 1 | CI92: 1 | CJ92: 1 | CL92: 1 | CM92: 1 | CN92: 1 | CO92: 0 | CP92: 1 | CR92: 0 | CS92: 0 | CT92: 1 | CU92: 0 | CV92: 1 | CX92: 1 | CY92: 0 | CZ92: 0 | DA92: 0 | DB92: 0 | DD92: 1 | DE92: 1 | DF92: 0 | DG92: 1 | DH92: 0 | DI92: 1 | DJ92: 0 | DL92: 0 | DM92: 1 | DN92: 0 | DP92: 0 | DQ92: 0 | DR92: 0 | DS92: 0 | DT92: 1 | DU92: 1 | DV92: 0 | DW92: 1 | DY92: 0 | DZ92: 0 | EA92: 0 | EB92: 0 | EC92: 0 | ED92: 0 | EE92: 1 | EG92: 1 | EH92: 0 | EI92: 0 | EJ92: 1 | EK92: 1 | EL92: 0 | EM92: 0 | EN92: 0 | EO92: 1 | EP92: 28 | EQ92: 50.91%
A93: 化工16-3班 | B93: 杨博 | C93: 2016010494 | D93: 无 | E93: 无 | F93: 无 | G93: 无 | H93: B | I93: 1.1 | J93: 71 | K93: 76 | L93: 83.6 | M93: 67 | N93: 82 | O93: 85 | P93: 80 | Q93: 89 | R93: 81 | S93: 83 | U93: 75 | V93: 89 | W93: 90 | Y93: 89 | Z93: 97.9 | AA93: 84 | AC93: 80 | AD93: 67 | AE93: 86 | AG93: 85 | AH93: 75 | AJ93: 71 | AK93: 74 | AL93: 81.4 | AM93: 82 | AN93: 92 | AO93: 76 | AP93: 83 | AQ93: 72 | AR93: 80 | AS93: 77 | AU93: 84 | AV93: 87 | AW93: 90 | AX93: 99 | AY93: 70 | AZ93: 66 | BA93: 82 | BB93: 77 | BC93: 85 | BD93: 90 | BE93: 90 | BF93: 83 | BH93: 85 | BI93: 94 | BJ93: 80 | BK93: 82 | BL93: 93 | BM93: 85 | BN93: 86 | BP93: 90 | BQ93: 89 | BR93: 91 | BS93: 92 | BT93: 84 | BU93: 89 | BV93: 87 | BW93: 92 | BX93: 93 | BY93: 82.96045627 | CA93: 0 | CB93: 0 | CD93: 0 | CE93: 1 | CF93: 1 | CG93: 1 | CH93: 1 | CI93: 1 | CJ93: 1 | CL93: 0 | CM93: 1 | CN93: 1 | CO93: 0 | CP93: 1 | CR93: 1 | CS93: 0 | CT93: 1 | CU93: 0 | CV93: 1 | CX93: 1 | CY93: 0 | CZ93: 0 | DA93: 0 | DB93: 0 | DD93: 1 | DE93: 1 | DF93: 0 | DG93: 1 | DH93: 0 | DI93: 1 | DJ93: 0 | DL93: 1 | DM93: 1 | DN93: 1 | DP93: 0 | DQ93: 0 | DR93: 1 | DS93: 0 | DT93: 1 | DU93: 1 | DV93: 1 | DW93: 1 | DY93: 1 | DZ93: 1 | EA93: 1 | EB93: 1 | EC93: 1 | ED93: 1 | EE93: 1 | EG93: 1 | EH93: 1 | EI93: 1 | EJ93: 1 | EK93: 1 | EL93: 1 | EM93: 1 | EN93: 1 | EO93: 1 | EP93: 41 | EQ93: 74.55%
A94: 化工16-3班 | B94: 张宇昂 | C94: 2016010496 | D94: 有 | E94: 无 | F94: 无 | G94: 无 | H94: B | I94: 1.1 | J94: 71 | K94: 64 | L94: 70.4 | M94: 45 | N94: 64 | O94: 88 | P94: 67 | Q94: 80 | R94: 60 | S94: 83 | U94: 63 | V94: 84 | W94: 60 | Y94: 72 | Z94: 79.2 | AA94: 60 | AC94: 74 | AD94: 60.5 | AE94: 90 | AG94: 65 | AH94: 65 | AJ94: 64 | AK94: 82 | AL94: 90.2 | AM94: 79 | AN94: 91 | AO94: 67 | AP94: 81 | AQ94: 52 | AR94: 56 | AS94: 68 | AU94: 61 | AW94: 62 | AX94: 68.2 | AY94: 52 | AZ94: 51 | BA94: 22 | BB94: 47 | BC94: 56 | BD94: 83 | BE94: 68 | BF94: 80 | BH94: 76 | BI94: 69 | BJ94: 60 | BK94: 68 | BL94: 70 | BM94: 65 | BN94: 83 | BP94: 61 | BQ94: 49 | BR94: 61 | BS94: 72 | BT94: 74 | BU94: 60 | BV94: 62 | BW94: 67 | BX94: 83 | BY94: 63.93307985 | CA94: 0 | CB94: 0 | CD94: 0 | CE94: 0 | CF94: 1 | CG94: 0 | CH94: 1 | CI94: 0 | CJ94: 1 | CL94: 0 | CM94: 1 | CN94: 0 | CO94: 0 | CP94: 0 | CR94: 0 | CS94: 0 | CT94: 0 | CU94: 0 | CV94: 1 | CX94: 0 | CY94: 0 | CZ94: 0 | DA94: 0 | DB94: 1 | DD94: 0 | DE94: 1 | DF94: 0 | DG94: 1 | DH94: 0 | DI94: 0 | DJ94: 0 | DL94: 0 | DM94: 0 | DN94: 0 | DP94: 0 | DQ94: 0 | DR94: 0 | DS94: 0 | DT94: 0 | DU94: 1 | DV94: 0 | DW94: 1 | DY94: 0 | DZ94: 0 | EA94: 0 | EB94: 0 | EC94: 0 | ED94: 0 | EE94: 1 | EG94: 0 | EH94: 0 | EI94: 0 | EJ94: 0 | EK94: 0 | EL94: 0 | EM94: 0 | EN94: 0 | EO94: 1 | EP94: 12 | EQ94: 21.82%
A95: 化工16-3班 | B95: 张玉宝 | C95: 2016010497 | D95: 有 | E95: 无 | F95: 有 | G95: 无 | H95: B | I95: 1.1 | J95: 72 | K95: 60 | L95: 66 | M95: 66 | N95: 68 | O95: 88 | P95: 62 | Q95: 83 | R95: 63 | S95: 78 | U95: 66 | V95: 67 | W95: 63 | Y95: 63 | Z95: 69.3 | AA95: 60 | AC95: 74 | AD95: 51 | AE95: 85 | AG95: 77 | AH95: 60 | AJ95: 63 | AK95: 69 | AL95: 75.9 | AM95: 74 | AN95: 90 | AO95: 70 | AP95: 84 | AQ95: 46 | AR95: 70 | AS95: 72 | AU95: 80 | AV95: 82 | AW95: 63 | AX95: 69.3 | AY95: 55 | AZ95: 70 | BA95: 23 | BB95: 61 | BC95: 61 | BD95: 86 | BE95: 64 | BF95: 83 | BH95: 75 | BI95: 70 | BJ95: 49 | BK95: 70 | BL95: 65 | BM95: 69 | BN95: 82 | BP95: 60 | BQ95: 56 | BR95: 62 | BS95: 68 | BT95: 72 | BU95: 55 | BV95: 63 | BW95: 70 | BX95: 86 | BY95: 65.67376426 | CA95: 0 | CB95: 0 | CD95: 0 | CE95: 0 | CF95: 1 | CG95: 0 | CH95: 1 | CI95: 0 | CJ95: 0 | CL95: 0 | CM95: 0 | CN95: 0 | CO95: 0 | CP95: 0 | CR95: 0 | CS95: 0 | CT95: 0 | CU95: 0 | CV95: 1 | CX95: 0 | CY95: 0 | CZ95: 0 | DA95: 0 | DB95: 0 | DD95: 0 | DE95: 1 | DF95: 0 | DG95: 1 | DH95: 0 | DI95: 0 | DJ95: 0 | DL95: 1 | DM95: 1 | DN95: 0 | DP95: 0 | DQ95: 0 | DR95: 0 | DS95: 0 | DT95: 0 | DU95: 1 | DV95: 0 | DW95: 1 | DY95: 0 | DZ95: 0 | EA95: 0 | EB95: 0 | EC95: 0 | ED95: 0 | EE95: 1 | EG95: 0 | EH95: 0 | EI95: 0 | EJ95: 0 | EK95: 0 | EL95: 0 | EM95: 0 | EN95: 0 | EO95: 1 | EP95: 11 | EQ95: 20.00%
A96: 化工16-3班 | B96: 赵逸伦 | C96: 2016010498 | D96: 有 | E96: 有 | F96: 无 | G96: 有 | H96: B | I96: 1.1 | J96: 61 | K96: 65 | L96: 71.5 | M96: 60 | N96: 74 | O96: 92 | P96: 62 | Q96: 78 | R96: 81 | S96: 80 | U96: 60.0 | V96: 76.0 | W96: 56.0 | Y96: 77.0 | Z96: 84.7 | AA96: 60.0 | AC96: 66.0 | AD96: 61.0 | AE96: 89.0 | AG96: 71.0 | AH96: 60.0 | AJ96: 68.0 | AK96: 62.0 | AL96: 68.2 | AM96: 73.0 | AN96: 91.0 | AO96: 67.0 | AP96: 80.0 | AQ96: 54.0 | AR96: 60.0 | AS96: 73 | AU96: 75 | AV96: 81 | AW96: 68 | AX96: 74.8 | AY96: 53 | AZ96: 44 | BA96: 5 | BB96: 62 | BC96: 54 | BD96: 86 | BE96: 44 | BF96: 80 | BH96: 67 | BI96: 65 | BJ96: 40 | BK96: 64 | BL96: 60 | BM96: 60 | BN96: 84 | BP96: 51 | BQ96: 53 | BR96: 52 | BS96: 63 | BT96: 78 | BU96: 49 | BV96: 64 | BW96: 64 | BX96: 70 | BY96: 63.10114068 | CA96: 0 | CB96: 0 | CD96: 0 | CE96: 0 | CF96: 1 | CG96: 0 | CH96: 0 | CI96: 1 | CJ96: 1 | CL96: 0 | CM96: 0 | CN96: 0 | CO96: 0 | CP96: 0 | CR96: 0 | CS96: 0 | CT96: 0 | CU96: 0 | CV96: 1 | CX96: 0 | CY96: 0 | CZ96: 0 | DA96: 0 | DB96: 0 | DD96: 0 | DE96: 1 | DF96: 0 | DG96: 1 | DH96: 0 | DI96: 0 | DJ96: 0 | DL96: 0 | DM96: 1 | DN96: 0 | DP96: 0 | DQ96: 0 | DR96: 0 | DS96: 0 | DT96: 0 | DU96: 1 | DV96: 0 | DW96: 1 | DY96: 0 | DZ96: 0 | EA96: 0 | EB96: 0 | EC96: 0 | ED96: 0 | EE96: 1 | EG96: 0 | EH96: 0 | EI96: 0 | EJ96: 0 | EK96: 0 | EL96: 0 | EM96: 0 | EN96: 0 | EO96: 0 | EP96: 10 | EQ96: 18.18%
A97: 化工16-3班 | B97: 刘梦凯 | C97: 2016010584 | D97: 有 | E97: 有 | F97: 无 | G97: 无 | H97: A | I97: 1.15 | J97: 65 | K97: 73 | L97: 83.95 | M97: 60 | N97: 66 | O97: 91 | P97: 74 | Q97: 85 | R97: 78 | S97: 87 | U97: 68 | V97: 78 | X97: 65 | Y97: 70 | Z97: 80.5 | AB97: 60 | AC97: 74 | AD97: 63 | AE97: 90 | AG97: 76 | AI97: 67 | AJ97: 83 | AK97: 75 | AL97: 86.25 | AM97: 72 | AN97: 93 | AO97: 71 | AP97: 86 | AQ97: 60 | AR97: 61 | AS97: 83 | AU97: 78 | AV97: 87 | AW97: 65 | AX97: 74.75 | AY97: 60 | AZ97: 62 | BA97: 54 | BB97: 77 | BC97: 74 | BD97: 84 | BE97: 79 | BF97: 84 | BH97: 71 | BI97: 70 | BJ97: 41 | BK97: 74 | BL97: 60 | BM97: 70 | BN97: 83 | BP97: 67 | BQ97: 61 | BR97: 69 | BS97: 65 | BT97: 85 | BU97: 66 | BV97: 76 | BW97: 87 | BX97: 85 | BY97: 72.43954373 | CA97: 0 | CB97: 0 | CD97: 0 | CE97: 0 | CF97: 1 | CG97: 0 | CH97: 1 | CI97: 0 | CJ97: 1 | CL97: 0 | CM97: 0 | CN97: 0 | CO97: 0 | CP97: 0 | CR97: 0 | CS97: 0 | CT97: 0 | CU97: 0 | CV97: 1 | CX97: 0 | CY97: 0 | CZ97: 0 | DA97: 1 | DB97: 0 | DD97: 0 | DE97: 1 | DF97: 0 | DG97: 1 | DH97: 0 | DI97: 0 | DJ97: 1 | DL97: 0 | DM97: 1 | DN97: 0 | DP97: 0 | DQ97: 0 | DR97: 0 | DS97: 0 | DT97: 0 | DU97: 1 | DV97: 0 | DW97: 1 | DY97: 0 | DZ97: 0 | EA97: 0 | EB97: 0 | EC97: 0 | ED97: 0 | EE97: 1 | EG97: 0 | EH97: 0 | EI97: 0 | EJ97: 0 | EK97: 1 | EL97: 0 | EM97: 0 | EN97: 1 | EO97: 1 | EP97: 15 | EQ97: 27.27%
A98: 化工16-4班 | B98: 曹景臻 | C98: 2016010073 | D98: 无 | E98: 无 | F98: 无 | G98: 无 | H98: A | I98: 1.15 | J98: 68 | K98: 77 | L98: 88.55 | M98: 91 | N98: 80 | O98: 90 | P98: 83 | Q98: 86 | R98: 87 | S98: 94 | U98: 78 | V98: 86 | X98: 83 | Y98: 80 | Z98: 92 | AB98: 73 | AC98: 88 | AD98: 65 | AE98: 90 | AG98: 75 | AI98: 60 | AJ98: 78 | AK98: 81 | AL98: 93.15 | AM98: 79 | AN98: 96 | AO98: 68 | AP98: 88 | AQ98: 78 | AR98: 82 | AS98: 83 | AU98: 79 | AV98: 88.6 | AW98: 67 | AX98: 77.05 | AY98: 78 | AZ98: 68 | BA98: 67 | BB98: 89 | BC98: 79 | BD98: 84 | BE98: 74 | BF98: 89 | BH98: 70 | BI98: 76 | BJ98: 67 | BK98: 82 | BL98: 85 | BM98: 69 | BN98: 84 | BP98: 70 | BQ98: 72 | BR98: 78 | BS98: 87 | BT98: 82 | BU98: 81 | BV98: 80 | BW98: 74 | BX98: 88 | BY98: 79.79925651 | CA98: 0 | CB98: 0 | CD98: 1 | CE98: 1 | CF98: 1 | CG98: 1 | CH98: 1 | CI98: 1 | CJ98: 1 | CL98: 0 | CM98: 1 | CN98: 0 | CO98: 1 | CP98: 1 | CR98: 0 | CS98: 0 | CT98: 1 | CU98: 0 | CV98: 1 | CX98: 0 | CY98: 0 | CZ98: 0 | DA98: 0 | DB98: 1 | DD98: 0 | DE98: 1 | DF98: 0 | DG98: 1 | DH98: 0 | DI98: 1 | DJ98: 1 | DL98: 0 | DM98: 1 | DN98: 0 | DP98: 0 | DQ98: 0 | DR98: 0 | DS98: 1 | DT98: 0 | DU98: 1 | DV98: 0 | DW98: 1 | DY98: 0 | DZ98: 0 | EA98: 0 | EB98: 1 | EC98: 1 | ED98: 0 | EE98: 1 | EG98: 0 | EH98: 0 | EI98: 0 | EJ98: 1 | EK98: 1 | EL98: 1 | EM98: 1 | EN98: 0 | EO98: 1 | EP98: 29 | EQ98: 52.73%
A99: 化工16-4班 | B99: 章文昊 | C99: 2016010097 | D99: 无 | E99: 无 | F99: 无 | G99: 无 | H99: A | I99: 1.15 | J99: 63 | K99: 88 | L99: 101.2 | M99: 83 | N99: 93 | O99: 88 | P99: 83 | Q99: 89 | R99: 88 | S99: 90 | U99: 86 | X99: 88 | Y99: 87 | Z99: 100.05 | AB99: 79 | AC99: 78 | AD99: 71 | AE99: 88 | AG99: 84 | AI99: 83 | AJ99: 86 | AK99: 87 | AL99: 100.05 | AM99: 83 | AN99: 95 | AO99: 85 | AP99: 85 | AQ99: 75 | AR99: 77 | AS99: 85 | AU99: 82 | AV99: 84.1 | AW99: 78 | AX99: 89.7 | AY99: 78 | AZ99: 78 | BA99: 77 | BB99: 86 | BC99: 85 | BD99: 91 | BE99: 85 | BF99: 85 | BH99: 78 | BI99: 88 | BJ99: 72 | BK99: 80 | BL99: 81 | BM99: 70 | BN99: 82 | BP99: 77 | BQ99: 94 | BR99: 74 | BS99: 83 | BT99: 86 | BU99: 84 | BV99: 88 | BW99: 97 | BX99: 95 | BY99: 83.43977695 | CA99: 0 | CB99: 1 | CD99: 1 | CE99: 1 | CF99: 1 | CG99: 1 | CH99: 1 | CI99: 1 | CJ99: 1 | CL99: 1 | CM99: 0 | CN99: 0 | CO99: 1 | CP99: 1 | CR99: 0 | CS99: 0 | CT99: 0 | CU99: 0 | CV99: 1 | CX99: 1 | CY99: 0 | CZ99: 1 | DA99: 1 | DB99: 1 | DD99: 1 | DE99: 1 | DF99: 1 | DG99: 1 | DH99: 0 | DI99: 0 | DJ99: 1 | DL99: 1 | DM99: 1 | DN99: 0 | DP99: 0 | DQ99: 0 | DR99: 0 | DS99: 1 | DT99: 1 | DU99: 1 | DV99: 1 | DW99: 1 | DY99: 0 | DZ99: 1 | EA99: 0 | EB99: 1 | EC99: 1 | ED99: 0 | EE99: 1 | EG99: 0 | EH99: 1 | EI99: 0 | EJ99: 1 | EK99: 1 | EL99: 1 | EM99: 1 | EN99: 1 | EO99: 1 | EP99: 39 | EQ99: 70.91%
A100: 化工16-4班 | B100: 常兆恒 | C100: 2016010142 | D100: 无 | E100: 无 | F100: 无 | G100: 有 | H100: A | I100: 1.15 | J100: 60 | K100: 70 | L100: 80.5 | M100: 89 | N100: 93 | O100: 93 | P100: 69 | Q100: 87 | R100: 91 | S100: 88 | U100: 82 | V100: 76 | X100: 90 | Y100: 78 | Z100: 89.7 | AB100: 84 | AC100: 80 | AD100: 72 | AE100: 86 | AG100: 78 | AI100: 96 | AJ100: 87 | AK100: 74 | AL100: 85.1 | AM100: 86 | AN100: 95 | AO100: 79 | AP100: 88 | AQ100: 80 | AR100: 93 | AS100: 87 | AU100: 75 | AV100: 84 | AW100: 75 | AX100: 86.25 | AY100: 83 | AZ100: 87 | BA100: 78 | BB100: 85 | BC100: 94 | BD100: 91 | BE100: 89 | BF100: 88 | BH100: 70 | BI100: 88 | BJ100: 80 | BK100: 84 | BL100: 81 | BM100: 69 | BN100: 82 | BP100: 78 | BQ100: 97 | BR100: 77 | BS100: 82 | BT100: 90 | BU100: 80 | BV100: 83 | BW100: 85 | BX100: 100 | BY100: 84.58364312 | CA100: 0 | CB100: 0 | CD100: 1 | CE100: 1 | CF100: 1 | CG100: 0 | CH100: 1 | CI100: 1 | CJ100: 1 | CL100: 1 | CM100: 0 | CN100: 0 | CO100: 1 | CP100: 0 | CR100: 0 | CS100: 1 | CT100: 1 | CU100: 0 | CV100: 1 | CX100: 0 | CY100: 0 | CZ100: 1 | DA100: 1 | DB100: 0 | DD100: 1 | DE100: 1 | DF100: 0 | DG100: 1 | DH100: 1 | DI100: 1 | DJ100: 1 | DL100: 0 | DM100: 1 | DN100: 0 | DP100: 1 | DQ100: 1 | DR100: 0 | DS100: 1 | DT100: 1 | DU100: 1 | DV100: 1 | DW100: 1 | DY100: 0 | DZ100: 1 | EA100: 1 | EB100: 1 | EC100: 1 | ED100: 0 | EE100: 1 | EG100: 0 | EH100: 1 | EI100: 0 | EJ100: 1 | EK100: 1 | EL100: 1 | EM100: 1 | EN100: 1 | EO100: 1 | EP100: 39 | EQ100: 70.91%
A101: 化工16-4班 | B101: 张翔瑞 | C101: 2016010430 | D101: 无 | E101: 无 | F101: 无 | G101: 无 | H101: A | I101: 1.15 | J101: 91 | K101: 85 | L101: 97.75 | M101: 89 | N101: 81 | O101: 91 | P101: 87 | Q101: 80 | R101: 93 | S101: 88 | U101: 74 | V101: 91 | X101: 88 | Y101: 81 | Z101: 93.15 | AB101: 93 | AC101: 66 | AD101: 84 | AE101: 87 | AG101: 96 | AI101: 87 | AJ101: 93 | AK101: 72 | AL101: 82.8 | AM101: 76 | AN101: 92 | AO101: 81 | AP101: 86 | AQ101: 88 | AR101: 87 | AS101: 89 | AU101: 97 | AV101: 86.3 | AW101: 81 | AX101: 93.15 | AY101: 78 | AZ101: 79 | BA101: 83 | BB101: 90 | BC101: 95 | BD101: 85 | BE101: 87 | BF101: 85 | BH101: 76 | BI101: 90 | BJ101: 87 | BK101: 75 | BL101: 88 | BM101: 77 | BN101: 85 | BP101: 93 | BQ101: 97 | BR101: 84 | BS101: 91 | BT101: 90 | BU101: 86 | BV101: 76 | BW101: 94 | BX101: 94 | BY101: 87.19665428 | CA101: 1 | CB101: 1 | CD101: 1 | CE101: 1 | CF101: 1 | CG101: 1 | CH101: 1 | CI101: 1 | CJ101: 1 | CL101: 0 | CM101: 1 | CN101: 0 | CO101: 1 | CP101: 1 | CR101: 0 | CS101: 1 | CT101: 0 | CU101: 1 | CV101: 1 | CX101: 1 | CY101: 0 | CZ101: 1 | DA101: 1 | DB101: 0 | DD101: 0 | DE101: 1 | DF101: 1 | DG101: 1 | DH101: 1 | DI101: 1 | DJ101: 1 | DL101: 1 | DM101: 1 | DN101: 1 | DP101: 0 | DQ101: 0 | DR101: 1 | DS101: 1 | DT101: 1 | DU101: 1 | DV101: 1 | DW101: 1 | DY101: 0 | DZ101: 1 | EA101: 1 | EB101: 0 | EC101: 1 | ED101: 0 | EE101: 1 | EG101: 1 | EH101: 1 | EI101: 1 | EJ101: 1 | EK101: 1 | EL101: 1 | EM101: 0 | EN101: 1 | EO101: 1 | EP101: 45 | EQ101: 81.82%
A102: 化工16-4班 | B102: 李昭颐 | C102: 2016010436 | D102: 无 | E102: 无 | F102: 无 | G102: 无 | H102: A | I102: 1.15 | J102: 65 | K102: 80 | L102: 92 | M102: 91 | N102: 92 | O102: 90 | P102: 87 | Q102: 86 | R102: 96 | S102: 91 | U102: 76 | V102: 89 | X102: 78 | Y102: 83 | Z102: 95.45 | AB102: 84 | AC102: 84 | AD102: 83 | AE102: 89 | AG102: 82 | AI102: 93 | AJ102: 80 | AK102: 90 | AL102: 103.5 | AM102: 90 | AN102: 93 | AO102: 82 | AP102: 86 | AQ102: 93 | AR102: 96 | AS102: 85 | AU102: 85 | AV102: 86.2 | AW102: 81 | AX102: 93.15 | AY102: 84 | AZ102: 98 | BA102: 81 | BB102: 90 | BC102: 84 | BD102: 90 | BE102: 90 | BF102: 85 | BH102: 70 | BI102: 97 | BJ102: 88 | BK102: 85 | BL102: 94 | BM102: 78 | BN102: 83 | BP102: 89 | BQ102: 87 | BR102: 78 | BS102: 85 | BT102: 90 | BU102: 86 | BV102: 83 | BW102: 94 | BX102: 88 | BY102: 87.63494424 | CA102: 0 | CB102: 1 | CD102: 1 | CE102: 1 | CF102: 1 | CG102: 1 | CH102: 1 | CI102: 1 | CJ102: 1 | CL102: 0 | CM102: 1 | CN102: 0 | CO102: 0 | CP102: 1 | CR102: 0 | CS102: 1 | CT102: 1 | CU102: 1 | CV102: 1 | CX102: 1 | CY102: 0 | CZ102: 1 | DA102: 1 | DB102: 1 | DD102: 1 | DE102: 1 | DF102: 1 | DG102: 1 | DH102: 1 | DI102: 1 | DJ102: 1 | DL102: 1 | DM102: 1 | DN102: 1 | DP102: 1 | DQ102: 1 | DR102: 1 | DS102: 1 | DT102: 1 | DU102: 1 | DV102: 1 | DW102: 1 | DY102: 0 | DZ102: 1 | EA102: 1 | EB102: 1 | EC102: 1 | ED102: 0 | EE102: 1 | EG102: 1 | EH102: 1 | EI102: 0 | EJ102: 1 | EK102: 1 | EL102: 1 | EM102: 1 | EN102: 1 | EO102: 1 | EP102: 49 | EQ102: 89.09%
A103: 化工16-4班 | B103: 吴艳芬 | C103: 2016010440 | D103: 无 | E103: 无 | F103: 无 | G103: 无 | H103: A | I103: 1.15 | J103: 94 | K103: 92 | L103: 105.8 | M103: 88 | N103: 96 | O103: 97 | P103: 96 | Q103: 91 | R103: 94 | S103: 99 | U103: 84 | V103: 87 | X103: 85 | Y103: 90 | Z103: 103.5 | AB103: 84 | AC103: 91 | AD103: 87 | AE103: 91 | AG103: 72 | AI103: 96 | AJ103: 93 | AK103: 95 | AL103: 109.25 | AM103: 90 | AN103: 96 | AO103: 90 | AP103: 91 | AQ103: 92 | AR103: 84 | AS103: 94 | AU103: 87 | AV103: 91.2 | AW103: 88 | AX103: 101.2 | AY103: 93 | AZ103: 85 | BA103: 86 | BB103: 81 | BC103: 78 | BD103: 95 | BE103: 92 | BF103: 91 | BH103: 93 | BI103: 96 | BJ103: 96 | BK103: 91 | BL103: 98 | BM103: 79 | BN103: 87 | BP103: 96 | BQ103: 94 | BR103: 94 | BS103: 92 | BT103: 94 | BU103: 97 | BV103: 93 | BW103: 97 | BX103: 96 | BY103: 92.09219331 | CA103: 1 | CB103: 1 | CD103: 1 | CE103: 1 | CF103: 1 | CG103: 1 | CH103: 1 | CI103: 1 | CJ103: 1 | CL103: 1 | CM103: 1 | CN103: 0 | CO103: 1 | CP103: 1 | CR103: 0 | CS103: 1 | CT103: 1 | CU103: 1 | CV103: 1 | CX103: 0 | CY103: 0 | CZ103: 1 | DA103: 1 | DB103: 1 | DD103: 1 | DE103: 1 | DF103: 1 | DG103: 1 | DH103: 1 | DI103: 1 | DJ103: 1 | DL103: 1 | DM103: 1 | DN103: 1 | DP103: 1 | DQ103: 1 | DR103: 1 | DS103: 1 | DT103: 0 | DU103: 1 | DV103: 1 | DW103: 1 | DY103: 1 | DZ103: 1 | EA103: 1 | EB103: 1 | EC103: 1 | ED103: 0 | EE103: 1 | EG103: 1 | EH103: 1 | EI103: 1 | EJ103: 1 | EK103: 1 | EL103: 1 | EM103: 1 | EN103: 1 | EO103: 1 | EP103: 52 | EQ103: 94.55%
A104: 化工16-4班 | B104: 石韶霏 | C104: 2016010473 | D104: 无 | E104: 无 | F104: 无 | G104: 无 | H104: A | I104: 1.15 | J104: 84 | K104: 90 | L104: 103.5 | M104: 82 | N104: 93 | O104: 93 | P104: 86 | Q104: 91 | R104: 87 | S104: 89 | U104: 82 | V104: 88 | X104: 88 | Y104: 88 | Z104: 101.2 | AB104: 80 | AC104: 90 | AD104: 75 | AE104: 94 | AG104: 95 | AI104: 82 | AJ104: 90 | AK104: 92 | AL104: 105.8 | AM104: 90 | AN104: 97 | AO104: 82 | AP104: 89 | AQ104: 71 | AR104: 67 | AS104: 90 | AU104: 89 | AV104: 86.8 | AW104: 70 | AX104: 80.5 | AY104: 74 | AZ104: 73 | BA104: 70 | BB104: 97 | BC104: 94 | BD104: 90 | BE104: 84 | BF104: 89 | BH104: 79 | BI104: 88 | BJ104: 71 | BK104: 86 | BL104: 80 | BM104: 83 | BN104: 88 | BP104: 78 | BQ104: 83 | BR104: 83 | BS104: 86 | BT104: 91 | BU104: 80 | BV104: 85 | BW104: 89 | BX104: 88 | BY104: 84.7330855 | CA104: 1 | CB104: 1 | CD104: 1 | CE104: 1 | CF104: 1 | CG104: 1 | CH104: 1 | CI104: 1 | CJ104: 1 | CL104: 1 | CM104: 1 | CN104: 0 | CO104: 1 | CP104: 1 | CR104: 0 | CS104: 1 | CT104: 1 | CU104: 0 | CV104: 1 | CX104: 1 | CY104: 0 | CZ104: 1 | DA104: 1 | DB104: 1 | DD104: 1 | DE104: 1 | DF104: 1 | DG104: 1 | DH104: 0 | DI104: 0 | DJ104: 1 | DL104: 1 | DM104: 1 | DN104: 0 | DP104: 0 | DQ104: 0 | DR104: 0 | DS104: 1 | DT104: 1 | DU104: 1 | DV104: 1 | DW104: 1 | DY104: 0 | DZ104: 1 | EA104: 0 | EB104: 1 | EC104: 1 | ED104: 1 | EE104: 1 | EG104: 0 | EH104: 1 | EI104: 1 | EJ104: 1 | EK104: 1 | EL104: 1 | EM104: 1 | EN104: 1 | EO104: 1 | EP104: 45 | EQ104: 81.82%
A105: 化工16-4班 | B105: 李建 | C105: 2016010545 | D105: 无 | E105: 无 | F105: 无 | G105: 无 | H105: A | I105: 1.15 | J105: 84 | K105: 90 | L105: 103.5 | M105: 89 | N105: 91 | O105: 92 | P105: 95 | Q105: 81 | R105: 95 | S105: 88 | U105: 83 | V105: 87 | X105: 96 | Y105: 87 | Z105: 100.05 | AB105: 92 | AC105: 84 | AD105: 81 | AE105: 90 | AG105: 87 | AI105: 82 | AJ105: 89 | AK105: 86 | AL105: 98.9 | AM105: 75 | AN105: 94 | AO105: 82 | AP105: 83 | AQ105: 84 | AR105: 84 | AS105: 89 | AU105: 83 | AV105: 86.3 | AW105: 83 | AX105: 95.45 | AY105: 77 | AZ105: 76 | BA105: 65 | BB105: 87 | BC105: 98 | BD105: 83 | BE105: 74 | BF105: 85 | BH105: 75 | BI105: 81 | BJ105: 71 | BK105: 77 | BL105: 85 | BM105: 76 | BN105: 85 | BP105: 89 | BQ105: 91 | BR105: 83 | BS105: 90 | BT105: 85 | BU105: 82 | BV105: 80 | BW105: 95 | BX105: 97 | BY105: 86.21821561 | CA105: 1 | CB105: 1 | CD105: 1 | CE105: 1 | CF105: 1 | CG105: 1 | CH105: 1 | CI105: 1 | CJ105: 1 | CL105: 1 | CM105: 1 | CN105: 0 | CO105: 1 | CP105: 1 | CR105: 0 | CS105: 1 | CT105: 1 | CU105: 1 | CV105: 1 | CX105: 1 | CY105: 0 | CZ105: 1 | DA105: 1 | DB105: 1 | DD105: 0 | DE105: 1 | DF105: 1 | DG105: 1 | DH105: 1 | DI105: 1 | DJ105: 1 | DL105: 1 | DM105: 1 | DN105: 1 | DP105: 0 | DQ105: 0 | DR105: 0 | DS105: 1 | DT105: 1 | DU105: 1 | DV105: 0 | DW105: 1 | DY105: 0 | DZ105: 1 | EA105: 0 | EB105: 0 | EC105: 1 | ED105: 0 | EE105: 1 | EG105: 1 | EH105: 1 | EI105: 1 | EJ105: 1 | EK105: 1 | EL105: 1 | EM105: 1 | EN105: 1 | EO105: 1 | EP105: 46 | EQ105: 83.64%
A106: 化工16-4班 | B106: 何姿颖 | C106: 2016010601 | D106: 无 | E106: 无 | F106: 无 | G106: 无 | H106: A | I106: 1.15 | J106: 88 | K106: 93 | L106: 106.95 | M106: 94 | N106: 97 | O106: 92 | P106: 76 | Q106: 83 | R106: 91 | S106: 93 | U106: 86 | V106: 96 | X106: 85 | Y106: 92 | Z106: 105.8 | AB106: 88 | AC106: 82 | AD106: 86 | AE106: 90 | AG106: 99 | AI106: 89 | AJ106: 89 | AK106: 97 | AL106: 111.55 | AM106: 86 | AN106: 97 | AO106: 84 | AP106: 93 | AQ106: 90 | AR106: 85 | AS106: 86 | AU106: 92 | AV106: 87.6 | AW106: 88 | AX106: 101.2 | AY106: 90 | AZ106: 85 | BA106: 91 | BB106: 95 | BC106: 83 | BD106: 94 | BE106: 89 | BF106: 91 | BH106: 89 | BI106: 92 | BJ106: 81 | BK106: 87 | BL106: 90 | BM106: 82 | BN106: 84 | BP106: 88 | BQ106: 92 | BR106: 88 | BS106: 89 | BT106: 91 | BU106: 91 | BV106: 88 | BW106: 92 | BX106: 96 | BY106: 90.43791822 | CA106: 1 | CB106: 1 | CD106: 1 | CE106: 1 | CF106: 1 | CG106: 0 | CH106: 1 | CI106: 1 | CJ106: 1 | CL106: 1 | CM106: 1 | CN106: 0 | CO106: 1 | CP106: 1 | CR106: 0 | CS106: 1 | CT106: 1 | CU106: 1 | CV106: 1 | CX106: 1 | CY106: 0 | CZ106: 1 | DA106: 1 | DB106: 1 | DD106: 1 | DE106: 1 | DF106: 1 | DG106: 1 | DH106: 1 | DI106: 1 | DJ106: 1 | DL106: 1 | DM106: 1 | DN106: 1 | DP106: 1 | DQ106: 1 | DR106: 1 | DS106: 1 | DT106: 1 | DU106: 1 | DV106: 1 | DW106: 1 | DY106: 1 | DZ106: 1 | EA106: 1 | EB106: 1 | EC106: 1 | ED106: 1 | EE106: 1 | EG106: 1 | EH106: 1 | EI106: 1 | EJ106: 1 | EK106: 1 | EL106: 1 | EM106: 1 | EN106: 1 | EO106: 1 | EP106: 54 | EQ106: 98.18%
A107: 化工16-4班 | B107: 柏亚 | C107: 2016010615 | D107: 无 | E107: 无 | F107: 无 | G107: 无 | H107: A | I107: 1.15 | J107: 77 | K107: 82 | L107: 94.3 | M107: 81 | N107: 78 | O107: 96 | P107: 79 | Q107: 91 | R107: 86 | S107: 98 | U107: 68 | V107: 83 | X107: 70 | Y107: 82 | Z107: 94.3 | AB107: 76 | AC107: 70 | AD107: 60 | AE107: 87 | AG107: 84 | AI107: 67 | AJ107: 78 | AK107: 74 | AL107: 85.1 | AM107: 82 | AN107: 96 | AO107: 69 | AP107: 84 | AQ107: 60 | AR107: 68 | AS107: 73 | AU107: 88 | AV107: 85.1 | AW107: 77 | AX107: 88.55 | AY107: 74 | AZ107: 72 | BA107: 64 | BB107: 81 | BC107: 69 | BD107: 90 | BE107: 67 | BF107: 86 | BH107: 72 | BI107: 69 | BJ107: 68 | BK107: 78 | BL107: 60 | BM107: 71 | BN107: 84 | BP107: 76 | BQ107: 70 | BR107: 73 | BS107: 76 | BT107: 71 | BU107: 70 | BV107: 67 | BW107: 79 | BX107: 82 | BY107: 76.3 | CA107: 0 | CB107: 1 | CD107: 1 | CE107: 0 | CF107: 1 | CG107: 0 | CH107: 1 | CI107: 1 | CJ107: 1 | CL107: 0 | CM107: 1 | CN107: 0 | CO107: 0 | CP107: 1 | CR107: 0 | CS107: 0 | CT107: 0 | CU107: 0 | CV107: 1 | CX107: 1 | CY107: 0 | CZ107: 0 | DA107: 0 | DB107: 0 | DD107: 1 | DE107: 1 | DF107: 0 | DG107: 1 | DH107: 0 | DI107: 0 | DJ107: 0 | DL107: 1 | DM107: 1 | DN107: 0 | DP107: 0 | DQ107: 0 | DR107: 0 | DS107: 1 | DT107: 0 | DU107: 1 | DV107: 0 | DW107: 1 | DY107: 0 | DZ107: 0 | EA107: 0 | EB107: 0 | EC107: 0 | ED107: 0 | EE107: 1 | EG107: 0 | EH107: 0 | EI107: 0 | EJ107: 0 | EK107: 0 | EL107: 0 | EM107: 0 | EN107: 0 | EO107: 1 | EP107: 20 | EQ107: 36.36%
A108: 化工16-4班 | B108: 边晨曦 | C108: 2016010616 | D108: 无 | E108: 无 | F108: 无 | G108: 有 | H108: A | I108: 1.15 | J108: 70 | K108: 76 | L108: 87.4 | M108: 91 | N108: 85 | O108: 91 | P108: 84 | Q108: 88 | R108: 92 | S108: 90 | U108: 81 | V108: 83 | X108: 82 | Y108: 80 | Z108: 92 | AB108: 90 | AC108: 80 | AD108: 71 | AE108: 86 | AG108: 80 | AI108: 79 | AJ108: 82 | AK108: 75 | AL108: 86.25 | AM108: 79 | AN108: 95 | AO108: 67 | AP108: 86 | AQ108: 77 | AR108: 84 | AS108: 81 | AU108: 79 | AV108: 86.8 | AW108: 78 | AX108: 89.7 | AY108: 76 | AZ108: 86 | BA108: 74 | BB108: 72 | BC108: 84 | BD108: 82 | BE108: 76 | BF108: 85 | BH108: 75 | BI108: 92 | BJ108: 80 | BK108: 82 | BL108: 79 | BM108: 78 | BN108: 88 | BP108: 79 | BQ108: 91 | BR108: 75 | BS108: 87 | BT108: 86 | BU108: 83 | BV108: 76 | BW108: 97 | BX108: 84 | BY108: 83.08327138 | CA108: 0 | CB108: 0 | CD108: 1 | CE108: 1 | CF108: 1 | CG108: 1 | CH108: 1 | CI108: 1 | CJ108: 1 | CL108: 1 | CM108: 1 | CN108: 0 | CO108: 1 | CP108: 1 | CR108: 0 | CS108: 1 | CT108: 1 | CU108: 0 | CV108: 1 | CX108: 1 | CY108: 0 | CZ108: 0 | DA108: 1 | DB108: 0 | DD108: 0 | DE108: 1 | DF108: 0 | DG108: 1 | DH108: 0 | DI108: 1 | DJ108: 1 | DL108: 0 | DM108: 1 | DN108: 0 | DP108: 0 | DQ108: 1 | DR108: 0 | DS108: 0 | DT108: 1 | DU108: 1 | DV108: 0 | DW108: 1 | DY108: 0 | DZ108: 1 | EA108: 1 | EB108: 1 | EC108: 0 | ED108: 0 | EE108: 1 | EG108: 0 | EH108: 1 | EI108: 0 | EJ108: 1 | EK108: 1 | EL108: 1 | EM108: 0 | EN108: 1 | EO108: 1 | EP108: 35 | EQ108: 63.64%
A109: 化工16-4班 | B109: 孟诗涵 | C109: 2016010666 | D109: 无 | E109: 无 | F109: 无 | G109: 无 | H109: A | I109: 1.15 | J109: 82 | K109: 87 | L109: 100.05 | M109: 86 | N109: 95 | O109: 92 | P109: 88 | Q109: 91 | R109: 90 | S109: 90 | U109: 75 | V109: 88 | X109: 86 | Y109: 89 | Z109: 102.35 | AB109: 84 | AC109: 90 | AD109: 86 | AE109: 88 | AG109: 94 | AI109: 81 | AJ109: 87 | AK109: 71 | AL109: 81.65 | AM109: 86 | AN109: 96 | AO109: 86 | AP109: 86 | AQ109: 83 | AR109: 77 | AS109: 84 | AU109: 91 | AV109: 87.4 | AW109: 75 | AX109: 86.25 | AY109: 65 | AZ109: 80 | BA109: 65 | BB109: 66 | BC109: 64 | BD109: 86 | BE109: 75 | BF109: 87 | BH109: 74 | BI109: 84 | BJ109: 67 | BK109: 82 | BL109: 92 | BM109: 72 | BN109: 90 | BP109: 83 | BQ109: 78 | BR109: 81 | BS109: 83 | BT109: 89 | BU109: 87 | BV109: 81 | BW109: 80 | BX109: 80 | BY109: 83.74349442 | CA109: 1 | CB109: 1 | CD109: 1 | CE109: 1 | CF109: 1 | CG109: 1 | CH109: 1 | CI109: 1 | CJ109: 1 | CL109: 0 | CM109: 1 | CN109: 0 | CO109: 1 | CP109: 1 | CR109: 0 | CS109: 1 | CT109: 1 | CU109: 1 | CV109: 1 | CX109: 1 | CY109: 0 | CZ109: 1 | DA109: 1 | DB109: 0 | DD109: 1 | DE109: 1 | DF109: 1 | DG109: 1 | DH109: 1 | DI109: 0 | DJ109: 1 | DL109: 1 | DM109: 1 | DN109: 0 | DP109: 0 | DQ109: 1 | DR109: 0 | DS109: 0 | DT109: 0 | DU109: 1 | DV109: 0 | DW109: 1 | DY109: 0 | DZ109: 1 | EA109: 0 | EB109: 1 | EC109: 1 | ED109: 0 | EE109: 1 | EG109: 1 | EH109: 0 | EI109: 1 | EJ109: 1 | EK109: 1 | EL109: 1 | EM109: 1 | EN109: 1 | EO109: 1 | EP109: 42 | EQ109: 76.36%
A110: 化工16-4班 | B110: 高灿 | C110: 2016010690 | D110: 无 | E110: 无 | F110: 无 | G110: 无 | H110: A | I110: 1.15 | J110: 88 | K110: 86 | L110: 98.9 | M110: 66 | N110: 90 | O110: 95 | P110: 86 | Q110: 92 | R110: 73 | S110: 90 | U110: 69 | V110: 79 | X110: 75 | Y110: 92 | Z110: 105.8 | AB110: 79 | AC110: 91 | AD110: 62 | AE110: 86 | AG110: 92 | AI110: 82 | AJ110: 84 | AK110: 83 | AL110: 95.45 | AM110: 80 | AN110: 95 | AO110: 81 | AP110: 89 | AQ110: 75 | AR110: 85 | AS110: 85 | AU110: 82 | AV110: 86.6 | AW110: 73 | AX110: 83.95 | AY110: 67 | AZ110: 90 | BA110: 68 | BB110: 88 | BC110: 94 | BD110: 85 | BE110: 65 | BF110: 89 | BH110: 86 | BI110: 84 | BJ110: 66 | BK110: 84 | BL110: 91 | BM110: 82 | BN110: 85 | BP110: 83 | BQ110: 89 | BR110: 72 | BS110: 85 | BT110: 90 | BU110: 82 | BV110: 79 | BW110: 89 | BX110: 90 | BY110: 81.85501859 | CA110: 1 | CB110: 1 | CD110: 0 | CE110: 1 | CF110: 1 | CG110: 1 | CH110: 1 | CI110: 0 | CJ110: 1 | CL110: 0 | CM110: 0 | CN110: 0 | CO110: 0 | CP110: 1 | CR110: 0 | CS110: 0 | CT110: 1 | CU110: 0 | CV110: 1 | CX110: 1 | CY110: 0 | CZ110: 1 | DA110: 1 | DB110: 1 | DD110: 1 | DE110: 1 | DF110: 1 | DG110: 1 | DH110: 0 | DI110: 1 | DJ110: 1 | DL110: 1 | DM110: 1 | DN110: 0 | DP110: 0 | DQ110: 1 | DR110: 0 | DS110: 1 | DT110: 1 | DU110: 1 | DV110: 0 | DW110: 1 | DY110: 1 | DZ110: 1 | EA110: 0 | EB110: 1 | EC110: 1 | ED110: 1 | EE110: 1 | EG110: 1 | EH110: 1 | EI110: 0 | EJ110: 1 | EK110: 1 | EL110: 1 | EM110: 0 | EN110: 1 | EO110: 1 | EP110: 40 | EQ110: 72.73%
A111: 化工16-4班 | B111: 杨鸿伟 | C111: 2016010876 | D111: 无 | E111: 无 | F111: 无 | G111: 无 | H111: A | I111: 1.15 | J111: 74 | K111: 78 | L111: 89.7 | M111: 86 | N111: 92 | O111: 91 | P111: 87 | Q111: 82 | R111: 83 | S111: 89 | U111: 86 | V111: 83 | X111: 87 | Y111: 80 | Z111: 92 | AB111: 90 | AC111: 88 | AD111: 81 | AE111: 89 | AG111: 89 | AI111: 84 | AJ111: 87 | AK111: 77 | AL111: 88.55 | AM111: 75 | AN111: 95 | AO111: 78 | AP111: 87 | AQ111: 86 | AR111: 78 | AS111: 86 | AU111: 85 | AV111: 86.9 | AW111: 82 | AX111: 94.3 | AY111: 79 | AZ111: 71 | BA111: 76 | BB111: 88 | BC111: 78 | BD111: 82 | BE111: 69 | BF111: 89 | BH111: 74 | BI111: 89 | BJ111: 74 | BK111: 83 | BL111: 86 | BM111: 83 | BN111: 88 | BP111: 81 | BQ111: 86 | BR111: 79 | BS111: 85 | BT111: 88 | BU111: 85 | BV111: 69 | BW111: 84 | BX111: 90 | BY111: 83.86877323 | CA111: 0 | CB111: 0 | CD111: 1 | CE111: 1 | CF111: 1 | CG111: 1 | CH111: 1 | CI111: 1 | CJ111: 1 | CL111: 1 | CM111: 1 | CN111: 0 | CO111: 1 | CP111: 1 | CR111: 0 | CS111: 1 | CT111: 1 | CU111: 1 | CV111: 1 | CX111: 1 | CY111: 0 | CZ111: 1 | DA111: 1 | DB111: 0 | DD111: 0 | DE111: 1 | DF111: 0 | DG111: 1 | DH111: 1 | DI111: 0 | DJ111: 1 | DL111: 1 | DM111: 1 | DN111: 1 | DP111: 0 | DQ111: 0 | DR111: 0 | DS111: 1 | DT111: 0 | DU111: 1 | DV111: 0 | DW111: 1 | DY111: 0 | DZ111: 1 | EA111: 0 | EB111: 1 | EC111: 1 | ED111: 1 | EE111: 1 | EG111: 1 | EH111: 1 | EI111: 0 | EJ111: 1 | EK111: 1 | EL111: 1 | EM111: 0 | EN111: 1 | EO111: 1 | EP111: 40 | EQ111: 72.73%
A112: 化工16-4班 | B112: 揣云涵 | C112: 2016010935 | D112: 有 | E112: 无 | F112: 无 | G112: 无 | H112: A | I112: 1.15 | J112: 71 | K112: 81 | L112: 93.15 | M112: 78 | N112: 90 | O112: 94 | P112: 90 | Q112: 89 | R112: 81 | S112: 92 | U112: 75 | V112: 84 | X112: 83 | Y112: 88 | Z112: 101.2 | AB112: 82 | AC112: 95 | AD112: 63 | AE112: 88 | AG112: 74 | AI112: 70 | AJ112: 84 | AK112: 87 | AL112: 100.05 | AM112: 86 | AN112: 95 | AO112: 85 | AP112: 89 | AQ112: 84 | AR112: 81 | AS112: 87 | AU112: 83 | AV112: 89.2 | AW112: 80 | AX112: 92 | AY112: 66 | AZ112: 78 | BA112: 65 | BB112: 71 | BC112: 91 | BD112: 90 | BE112: 74 | BF112: 90 | BH112: 75 | BI112: 90 | BJ112: 67 | BK112: 84 | BL112: 73 | BM112: 82 | BN112: 90 | BP112: 86 | BQ112: 87 | BR112: 84 | BS112: 87 | BT112: 94 | BU112: 88 | BV112: 72 | BW112: 95 | BX112: 98 | BY112: 82.60074349 | CA112: 0 | CB112: 1 | CD112: 0 | CE112: 1 | CF112: 1 | CG112: 1 | CH112: 1 | CI112: 1 | CJ112: 1 | CL112: 0 | CM112: 1 | CN112: 0 | CO112: 1 | CP112: 1 | CR112: 0 | CS112: 1 | CT112: 1 | CU112: 0 | CV112: 1 | CX112: 0 | CY112: 0 | CZ112: 0 | DA112: 1 | DB112: 1 | DD112: 1 | DE112: 1 | DF112: 1 | DG112: 1 | DH112: 1 | DI112: 1 | DJ112: 1 | DL112: 1 | DM112: 1 | DN112: 1 | DP112: 0 | DQ112: 0 | DR112: 0 | DS112: 0 | DT112: 1 | DU112: 1 | DV112: 0 | DW112: 1 | DY112: 0 | DZ112: 1 | EA112: 0 | EB112: 1 | EC112: 0 | ED112: 1 | EE112: 1 | EG112: 1 | EH112: 1 | EI112: 1 | EJ112: 1 | EK112: 1 | EL112: 1 | EM112: 0 | EN112: 1 | EO112: 1 | EP112: 40 | EQ112: 72.73%
A113: 化工16-4班 | B113: 徐晴 | C113: 2016011085 | D113: 无 | E113: 无 | F113: 无 | G113: 无 | H113: A | I113: 1.15 | J113: 87 | K113: 77 | L113: 88.55 | M113: 79 | N113: 90 | O113: 94 | P113: 80 | Q113: 88 | R113: 90 | S113: 89 | U113: 88 | V113: 94 | X113: 90 | Y113: 86 | Z113: 98.9 | AB113: 91 | AC113: 86 | AD113: 73 | AE113: 92 | AG113: 89 | AI113: 94 | AJ113: 90 | AK113: 84 | AL113: 96.6 | AM113: 84 | AN113: 95 | AO113: 83 | AP113: 88 | AQ113: 94 | AR113: 85 | AS113: 87 | AU113: 91 | AV113: 88.3 | AW113: 84 | AX113: 96.6 | AY113: 85 | AZ113: 85 | BA113: 86 | BB113: 86 | BC113: 83 | BD113: 91 | BE113: 85 | BF113: 87 | BH113: 79 | BI113: 89 | BJ113: 87 | BK113: 83 | BL113: 91 | BM113: 74 | BN113: 86 | BP113: 87 | BQ113: 84 | BR113: 77 | BS113: 86 | BT113: 85 | BU113: 81 | BV113: 84 | BW113: 99 | BX113: 79 | BY113: 87.21301115 | CA113: 1 | CB113: 0 | CD113: 0 | CE113: 1 | CF113: 1 | CG113: 1 | CH113: 1 | CI113: 1 | CJ113: 1 | CL113: 1 | CM113: 1 | CN113: 0 | CO113: 1 | CP113: 1 | CR113: 0 | CS113: 1 | CT113: 1 | CU113: 0 | CV113: 1 | CX113: 1 | CY113: 0 | CZ113: 1 | DA113: 1 | DB113: 1 | DD113: 1 | DE113: 1 | DF113: 1 | DG113: 1 | DH113: 1 | DI113: 1 | DJ113: 1 | DL113: 1 | DM113: 1 | DN113: 1 | DP113: 1 | DQ113: 1 | DR113: 1 | DS113: 1 | DT113: 1 | DU113: 1 | DV113: 1 | DW113: 1 | DY113: 0 | DZ113: 1 | EA113: 1 | EB113: 1 | EC113: 1 | ED113: 0 | EE113: 1 | EG113: 1 | EH113: 1 | EI113: 0 | EJ113: 1 | EK113: 1 | EL113: 1 | EM113: 1 | EN113: 1 | EO113: 0 | EP113: 48 | EQ113: 87.27%
A114: 化工16-4班 | B114: 赵金 | C114: 2016011117 | D114: 无 | E114: 无 | F114: 无 | G114: 无 | H114: A | I114: 1.15 | J114: 76 | K114: 80 | L114: 92 | M114: 94 | N114: 82 | O114: 93 | P114: 80 | Q114: 86 | R114: 85 | S114: 86 | U114: 68 | V114: 88 | X114: 89 | Y114: 81 | Z114: 93.15 | AB114: 94 | AC114: 76 | AD114: 68 | AE114: 88 | AG114: 89 | AI114: 90 | AJ114: 89 | AK114: 74 | AL114: 85.1 | AM114: 81 | AN114: 94 | AO114: 80 | AP114: 86 | AQ114: 84 | AR114: 84 | AS114: 82 | AU114: 88 | AV114: 86.3 | AW114: 76 | AX114: 87.4 | AY114: 77 | AZ114: 88 | BA114: 80 | BB114: 72 | BC114: 79 | BD114: 87 | BE114: 84 | BF114: 86 | BH114: 65 | BI114: 92 | BJ114: 86 | BK114: 81 | BL114: 89 | BM114: 81 | BN114: 85 | BP114: 92 | BQ114: 88 | BR114: 83 | BS114: 85 | BT114: 91 | BU114: 84 | BV114: 91 | BW114: 84 | BX114: 83 | BY114: 85.31635688 | CA114: 0 | CB114: 1 | CD114: 1 | CE114: 1 | CF114: 1 | CG114: 1 | CH114: 1 | CI114: 1 | CJ114: 1 | CL114: 0 | CM114: 1 | CN114: 0 | CO114: 1 | CP114: 1 | CR114: 0 | CS114: 1 | CT114: 0 | CU114: 0 | CV114: 1 | CX114: 1 | CY114: 0 | CZ114: 1 | DA114: 1 | DB114: 0 | DD114: 1 | DE114: 1 | DF114: 1 | DG114: 1 | DH114: 1 | DI114: 1 | DJ114: 1 | DL114: 1 | DM114: 1 | DN114: 0 | DP114: 0 | DQ114: 1 | DR114: 1 | DS114: 0 | DT114: 0 | DU114: 1 | DV114: 1 | DW114: 1 | DY114: 0 | DZ114: 1 | EA114: 1 | EB114: 1 | EC114: 1 | ED114: 1 | EE114: 1 | EG114: 1 | EH114: 1 | EI114: 1 | EJ114: 1 | EK114: 1 | EL114: 1 | EM114: 1 | EN114: 1 | EO114: 1 | EP114: 45 | EQ114: 81.82%
A115: 化工16-4班 | B115: 王锦涛 | C115: 2016011128 | D115: 无 | E115: 无 | F115: 无 | G115: 无 | H115: A | I115: 1.15 | J115: 68 | K115: 82 | L115: 94.3 | M115: 82 | N115: 89 | O115: 91 | P115: 73 | Q115: 92 | R115: 76 | S115: 89 | U115: 69 | V115: 83 | X115: 90 | Y115: 81 | Z115: 93.15 | AB115: 85 | AC115: 83 | AD115: 72 | AE115: 86 | AG115: 82 | AI115: 89 | AJ115: 86 | AK115: 77 | AL115: 88.55 | AM115: 86 | AN115: 94 | AO115: 78 | AP115: 87 | AQ115: 77 | AR115: 78 | AS115: 87 | AU115: 78 | AV115: 87.4 | AW115: 73 | AX115: 83.95 | AY115: 74 | AZ115: 85 | BA115: 74 | BB115: 89 | BC115: 86 | BD115: 87 | BE115: 90 | BF115: 83 | BH115: 90 | BI115: 93 | BJ115: 75 | BK115: 82 | BL115: 82 | BM115: 77 | BN115: 83 | BP115: 76 | BQ115: 92 | BR115: 76 | BS115: 86 | BT115: 85 | BU115: 78 | BV115: 83 | BW115: 84 | BX115: 83 | BY115: 83.38959108 | CA115: 0 | CB115: 1 | CD115: 1 | CE115: 1 | CF115: 1 | CG115: 0 | CH115: 1 | CI115: 0 | CJ115: 1 | CL115: 0 | CM115: 1 | CN115: 0 | CO115: 1 | CP115: 1 | CR115: 0 | CS115: 1 | CT115: 1 | CU115: 0 | CV115: 1 | CX115: 1 | CY115: 0 | CZ115: 1 | DA115: 1 | DB115: 0 | DD115: 1 | DE115: 1 | DF115: 0 | DG115: 1 | DH115: 0 | DI115: 0 | DJ115: 1 | DL115: 0 | DM115: 1 | DN115: 0 | DP115: 0 | DQ115: 1 | DR115: 0 | DS115: 1 | DT115: 1 | DU115: 1 | DV115: 1 | DW115: 1 | DY115: 1 | DZ115: 1 | EA115: 0 | EB115: 1 | EC115: 1 | ED115: 0 | EE115: 1 | EG115: 0 | EH115: 1 | EI115: 0 | EJ115: 1 | EK115: 1 | EL115: 0 | EM115: 1 | EN115: 1 | EO115: 1 | EP115: 37 | EQ115: 67.27%
A116: 化工16-4班 | B116: 黄京平 | C116: 2016011185 | D116: 无 | E116: 无 | F116: 无 | G116: 无 | H116: A | I116: 1.15 | J116: 81 | K116: 80 | L116: 92 | M116: 92 | N116: 90 | O116: 86 | P116: 80 | Q116: 91 | R116: 90 | S116: 89 | U116: 81 | V116: 86 | X116: 78 | Y116: 85 | Z116: 97.75 | AB116: 77 | AC116: 92 | AD116: 76 | AE116: 86 | AG116: 93 | AI116: 82 | AJ116: 85 | AK116: 88 | AL116: 101.2 | AM116: 82 | AN116: 95 | AO116: 77 | AP116: 88 | AQ116: 87 | AR116: 69 | AS116: 80 | AU116: 89 | AV116: 86.9 | AW116: 76 | AX116: 87.4 | AY116: 80 | AZ116: 83 | BA116: 84 | BB116: 87 | BC116: 84 | BD116: 88 | BE116: 83 | BF116: 86 | BH116: 75 | BI116: 94 | BJ116: 88 | BK116: 90 | BL116: 87 | BM116: 80 | BN116: 84 | BP116: 70 | BQ116: 88 | BR116: 83 | BS116: 83 | BT116: 80 | BU116: 91 | BV116: 70 | BW116: 96 | BX116: 91 | BY116: 84.91486989 | CA116: 1 | CB116: 1 | CD116: 1 | CE116: 1 | CF116: 1 | CG116: 1 | CH116: 1 | CI116: 1 | CJ116: 1 | CL116: 1 | CM116: 1 | CN116: 0 | CO116: 0 | CP116: 1 | CR116: 0 | CS116: 0 | CT116: 1 | CU116: 0 | CV116: 1 | CX116: 1 | CY116: 0 | CZ116: 1 | DA116: 1 | DB116: 1 | DD116: 1 | DE116: 1 | DF116: 0 | DG116: 1 | DH116: 1 | DI116: 0 | DJ116: 1 | DL116: 1 | DM116: 1 | DN116: 0 | DP116: 1 | DQ116: 1 | DR116: 1 | DS116: 1 | DT116: 1 | DU116: 1 | DV116: 1 | DW116: 1 | DY116: 0 | DZ116: 1 | EA116: 1 | EB116: 1 | EC116: 1 | ED116: 1 | EE116: 1 | EG116: 0 | EH116: 1 | EI116: 1 | EJ116: 1 | EK116: 1 | EL116: 1 | EM116: 0 | EN116: 1 | EO116: 1 | EP116: 46 | EQ116: 83.64%
A117: 化工16-4班 | B117: 周久强 | C117: 2016011267 | D117: 无 | E117: 无 | F117: 无 | G117: 无 | H117: A | I117: 1.15 | J117: 68 | K117: 72 | L117: 82.8 | M117: 73 | N117: 86 | O117: 90 | P117: 81 | Q117: 85 | R117: 74 | S117: 92 | U117: 75 | V117: 80 | X117: 77 | Y117: 85 | Z117: 97.75 | AB117: 74 | AC117: 77 | AD117: 67 | AE117: 87 | AG117: 82 | AI117: 77 | AJ117: 79 | AK117: 82 | AL117: 94.3 | AM117: 83 | AN117: 86 | AO117: 79 | AP117: 86 | AQ117: 79 | AR117: 78 | AS117: 87 | AU117: 71 | AV117: 87.1 | AW117: 80 | AX117: 92 | AY117: 67 | AZ117: 80 | BA117: 64 | BB117: 76 | BC117: 78 | BD117: 76 | BE117: 81 | BF117: 88 | BH117: 65 | BI117: 77 | BJ117: 64 | BK117: 81 | BL117: 83 | BM117: 67 | BN117: 86 | BP117: 84 | BQ117: 75 | BR117: 68 | BS117: 84 | BT117: 74 | BU117: 75 | BV117: 70 | BW117: 75 | BX117: 81 | BY117: 78.17063197 | CA117: 0 | CB117: 0 | CD117: 0 | CE117: 1 | CF117: 1 | CG117: 1 | CH117: 1 | CI117: 0 | CJ117: 1 | CL117: 0 | CM117: 1 | CN117: 0 | CO117: 0 | CP117: 1 | CR117: 0 | CS117: 0 | CT117: 0 | CU117: 0 | CV117: 1 | CX117: 1 | CY117: 0 | CZ117: 0 | DA117: 0 | DB117: 1 | DD117: 1 | DE117: 1 | DF117: 0 | DG117: 1 | DH117: 0 | DI117: 0 | DJ117: 1 | DL117: 0 | DM117: 1 | DN117: 1 | DP117: 0 | DQ117: 1 | DR117: 0 | DS117: 0 | DT117: 0 | DU117: 0 | DV117: 1 | DW117: 1 | DY117: 0 | DZ117: 0 | EA117: 0 | EB117: 1 | EC117: 1 | ED117: 0 | EE117: 1 | EG117: 1 | EH117: 0 | EI117: 0 | EJ117: 1 | EK117: 0 | EL117: 0 | EM117: 0 | EN117: 0 | EO117: 1 | EP117: 25 | EQ117: 45.45%
A118: 化工16-4班 | B118: 刘申宁 | C118: 2016011460 | D118: 无 | E118: 无 | F118: 无 | G118: 无 | H118: A | I118: 1.15 | J118: 81 | K118: 73 | L118: 83.95 | M118: 90 | N118: 87 | O118: 91 | P118: 78 | Q118: 90 | R118: 81 | S118: 92 | U118: 72 | V118: 80 | X118: 80 | Y118: 80 | Z118: 92 | AB118: 91 | AC118: 70 | AD118: 66 | AE118: 88 | AG118: 87 | AI118: 67 | AJ118: 81 | AK118: 71 | AL118: 81.65 | AM118: 76 | AN118: 94 | AO118: 79 | AP118: 87 | AQ118: 76 | AR118: 71 | AS118: 82 | AU118: 79 | AV118: 83 | AW118: 73 | AX118: 83.95 | AY118: 78 | AZ118: 83 | BA118: 70 | BB118: 78 | BC118: 73 | BD118: 82 | BE118: 82 | BF118: 87 | BH118: 69 | BI118: 81 | BJ118: 60 | BK118: 73 | BL118: 73 | BM118: 73 | BN118: 86 | BP118: 77 | BQ118: 83 | BR118: 78 | BS118: 86 | BT118: 89 | BU118: 74 | BV118: 77 | BW118: 87 | BX118: 93 | BY118: 80.14869888 | CA118: 1 | CB118: 0 | CD118: 1 | CE118: 1 | CF118: 1 | CG118: 0 | CH118: 1 | CI118: 1 | CJ118: 1 | CL118: 0 | CM118: 1 | CN118: 0 | CO118: 1 | CP118: 1 | CR118: 0 | CS118: 1 | CT118: 0 | CU118: 0 | CV118: 1 | CX118: 1 | CY118: 0 | CZ118: 0 | DA118: 1 | DB118: 0 | DD118: 0 | DE118: 1 | DF118: 0 | DG118: 1 | DH118: 0 | DI118: 0 | DJ118: 1 | DL118: 0 | DM118: 1 | DN118: 0 | DP118: 0 | DQ118: 1 | DR118: 0 | DS118: 0 | DT118: 0 | DU118: 1 | DV118: 1 | DW118: 1 | DY118: 0 | DZ118: 1 | EA118: 0 | EB118: 0 | EC118: 0 | ED118: 0 | EE118: 1 | EG118: 0 | EH118: 1 | EI118: 0 | EJ118: 1 | EK118: 1 | EL118: 0 | EM118: 0 | EN118: 1 | EO118: 1 | EP118: 29 | EQ118: 52.73%
A119: 化工16-4班 | B119: 季腾辉 | C119: 2016011548 | D119: 无 | E119: 无 | F119: 无 | G119: 无 | H119: A | I119: 1.15 | J119: 77 | K119: 82 | L119: 94.3 | M119: 82 | N119: 90 | O119: 88 | P119: 86 | Q119: 86 | R119: 88 | S119: 94 | U119: 73 | V119: 85 | X119: 74 | Y119: 77 | Z119: 88.55 | AB119: 81 | AC119: 83 | AD119: 73 | AE119: 91 | AG119: 79 | AI119: 77 | AJ119: 81 | AK119: 71 | AL119: 81.65 | AM119: 72 | AN119: 93 | AO119: 76 | AP119: 84 | AQ119: 74 | AR119: 75 | AS119: 83 | AU119: 73 | AV119: 85.6 | AW119: 77 | AX119: 88.55 | AY119: 74 | AZ119: 78 | BA119: 67 | BB119: 60 | BC119: 63 | BD119: 81 | BE119: 81 | BF119: 83 | BH119: 74 | BI119: 92 | BJ119: 70 | BK119: 82 | BL119: 76 | BM119: 73 | BN119: 81 | BP119: 82 | BQ119: 88 | BR119: 82 | BS119: 84 | BT119: 85 | BU119: 73 | BV119: 69 | BW119: 84 | BX119: 83 | BY119: 80.20966543 | CA119: 0 | CB119: 1 | CD119: 1 | CE119: 1 | CF119: 1 | CG119: 1 | CH119: 1 | CI119: 1 | CJ119: 1 | CL119: 0 | CM119: 1 | CN119: 0 | CO119: 0 | CP119: 0 | CR119: 0 | CS119: 1 | CT119: 1 | CU119: 0 | CV119: 1 | CX119: 0 | CY119: 0 | CZ119: 0 | DA119: 1 | DB119: 0 | DD119: 0 | DE119: 1 | DF119: 0 | DG119: 1 | DH119: 0 | DI119: 0 | DJ119: 1 | DL119: 0 | DM119: 1 | DN119: 0 | DP119: 0 | DQ119: 0 | DR119: 0 | DS119: 0 | DT119: 0 | DU119: 1 | DV119: 1 | DW119: 1 | DY119: 0 | DZ119: 1 | EA119: 0 | EB119: 1 | EC119: 0 | ED119: 0 | EE119: 1 | EG119: 1 | EH119: 1 | EI119: 1 | EJ119: 1 | EK119: 1 | EL119: 0 | EM119: 0 | EN119: 1 | EO119: 1 | EP119: 30 | EQ119: 54.55%
A120: 化工16-4班 | B120: 沈稼轩 | C120: 2016011589 | D120: 无 | E120: 无 | F120: 无 | G120: 有 | H120: A | I120: 1.15 | J120: 64 | K120: 75 | L120: 86.25 | M120: 68 | N120: 80 | O120: 92 | P120: 76 | Q120: 90 | R120: 72 | S120: 89 | U120: 73 | V120: 65 | X120: 60 | Y120: 81 | Z120: 93.15 | AB120: 67 | AC120: 77 | AD120: 64 | AE120: 85 | AG120: 81 | AI120: 68 | AJ120: 79 | AK120: 75 | AL120: 86.25 | AM120: 80 | AN120: 96 | AO120: 71 | AP120: 87 | AQ120: 72 | AR120: 66 | AS120: 76 | AU120: 75 | AV120: 83.9 | AW120: 80 | AX120: 92 | AY120: 81 | AZ120: 83 | BA120: 70 | BB120: 83 | BC120: 77 | BD120: 80 | BE120: 78 | BF120: 83 | BH120: 71 | BI120: 90 | BJ120: 75 | BK120: 83 | BL120: 82 | BM120: 74 | BN120: 85 | BP120: 74 | BQ120: 74 | BR120: 77 | BS120: 82 | BT120: 82 | BU120: 84 | BV120: 77 | BW120: 85 | BX120: 88 | BY120: 77.24869888 | CA120: =IF(J120>=80,1,0) -> 0 | CB120: 0 | CD120: 0 | CE120: 1 | CF120: 1 | CG120: 0 | CH120: 1 | CI120: 0 | CJ120: 1 | CL120: 0 | CM120: 0 | CN120: 0 | CO120: 0 | CP120: 1 | CR120: 0 | CS120: 0 | CT120: 0 | CU120: 0 | CV120: 1 | CX120: 1 | CY120: 0 | CZ120: 0 | DA120: 0 | DB120: 0 | DD120: 1 | DE120: 1 | DF120: 0 | DG120: 1 | DH120: 0 | DI120: 0 | DJ120: 0 | DL120: 0 | DM120: 1 | DN120: 1 | DP120: 1 | DQ120: 1 | DR120: 0 | DS120: 1 | DT120: 0 | DU120: 1 | DV120: 0 | DW120: 1 | DY120: 0 | DZ120: 1 | EA120: 0 | EB120: 1 | EC120: 1 | ED120: 0 | EE120: 1 | EG120: 0 | EH120: 0 | EI120: 0 | EJ120: 1 | EK120: 1 | EL120: 1 | EM120: 0 | EN120: 1 | EO120: 1 | EP120: 26 | EQ120: 47.27%
A121: 化工16-4班 | B121: 宋明霞 | C121: 2016011809 | D121: 无 | E121: 无 | F121: 无 | G121: 无 | H121: A | I121: 1.15 | J121: 82 | K121: 84 | L121: 96.6 | M121: 87 | N121: 95 | O121: 93 | P121: 85 | Q121: 91 | R121: 84 | S121: 95 | U121: 80 | V121: 87 | X121: 89 | Y121: 86 | Z121: 98.9 | AB121: 83 | AC121: 87 | AD121: 79 | AE121: 92 | AG121: 93 | AI121: 86 | AJ121: 88 | AK121: 88 | AL121: 101.2 | AM121: 92 | AN121: 94 | AO121: 84 | AP121: 85 | AQ121: 85 | AR121: 69 | AS121: 92 | AU121: 94 | AV121: 89.5 | AW121: 74 | AX121: 85.1 | AY121: 83 | AZ121: 80 | BA121: 86 | BB121: 90 | BC121: 76 | BD121: 84 | BE121: 85 | BF121: 87 | BH121: 94 | BI121: 93 | BJ121: 88 | BK121: 90 | BL121: 93 | BM121: 86 | BN121: 81 | BP121: 89 | BQ121: 91 | BR121: 93 | BS121: 94 | BT121: 92 | BU121: 95 | BV121: 88 | BW121: 90 | BX121: 93 | BY121: 88.18475836 | CA121: 1 | CB121: 1 | CD121: 1 | CE121: 1 | CF121: 1 | CG121: 1 | CH121: 1 | CI121: 1 | CJ121: 1 | CL121: 1 | CM121: 1 | CN121: 0 | CO121: 1 | CP121: 1 | CR121: 0 | CS121: 1 | CT121: 1 | CU121: 0 | CV121: 1 | CX121: 1 | CY121: 0 | CZ121: 1 | DA121: 1 | DB121: 1 | DD121: 1 | DE121: 1 | DF121: 1 | DG121: 1 | DH121: 1 | DI121: 0 | DJ121: 1 | DL121: 1 | DM121: 1 | DN121: 0 | DP121: 1 | DQ121: 1 | DR121: 1 | DS121: 1 | DT121: 0 | DU121: 1 | DV121: 1 | DW121: 1 | DY121: 1 | DZ121: 1 | EA121: 1 | EB121: 1 | EC121: 1 | ED121: 1 | EE121: 1 | EG121: 1 | EH121: 1 | EI121: 1 | EJ121: 1 | EK121: 1 | EL121: 1 | EM121: 1 | EN121: 1 | EO121: 1 | EP121: 51 | EQ121: 92.73%
A122: 化工16-4班 | B122: 朱梦 | C122: 2016011820 | D122: 无 | E122: 有 | F122: 无 | G122: 无 | H122: A | I122: 1.15 | J122: 83 | K122: 70 | L122: 80.5 | M122: 85 | N122: 92 | O122: 90 | P122: 83 | Q122: 93 | R122: 74 | S122: 89 | U122: 70 | V122: 77 | X122: 88 | Y122: 80 | Z122: 92 | AB122: 74 | AC122: 81 | AD122: 70 | AE122: 88 | AG122: 95 | AI122: 83 | AJ122: 86 | AK122: 79 | AL122: 90.85 | AM122: 78 | AN122: 93 | AO122: 81 | AP122: 86 | AQ122: 78 | AR122: 83 | AS122: 86 | AU122: 93 | AV122: 86.8 | AW122: 75 | AX122: 86.25 | AY122: 83 | AZ122: 70 | BA122: 66 | BB122: 87 | BC122: 74 | BD122: 86 | BE122: 77 | BF122: 89 | BH122: 75 | BI122: 91 | BJ122: 74 | BK122: 83 | BL122: 86 | BM122: 82 | BN122: 82 | BP122: 74 | BQ122: 81 | BR122: 76 | BS122: 83 | BT122: 90 | BU122: 77 | BV122: 86 | BW122: 84 | BX122: 98 | BY122: 81.50855019 | CA122: 1 | CB122: 0 | CD122: 1 | CE122: 1 | CF122: 1 | CG122: 1 | CH122: 1 | CI122: 0 | CJ122: 1 | CL122: 0 | CM122: 0 | CN122: 0 | CO122: 1 | CP122: 1 | CR122: 0 | CS122: 0 | CT122: 1 | CU122: 0 | CV122: 1 | CX122: 1 | CY122: 0 | CZ122: 1 | DA122: 1 | DB122: 0 | DD122: 0 | DE122: 1 | DF122: 1 | DG122: 1 | DH122: 0 | DI122: 1 | DJ122: 1 | DL122: 1 | DM122: 1 | DN122: 0 | DP122: 1 | DQ122: 0 | DR122: 0 | DS122: 1 | DT122: 0 | DU122: 1 | DV122: 0 | DW122: 1 | DY122: 0 | DZ122: 1 | EA122: 0 | EB122: 1 | EC122: 1 | ED122: 1 | EE122: 1 | EG122: 0 | EH122: 1 | EI122: 0 | EJ122: 1 | EK122: 1 | EL122: 0 | EM122: 1 | EN122: 1 | EO122: 1 | EP122: 36 | EQ122: 65.45%
A123: 化工16-4班 | B123: 许杰 | C123: 2016011865 | D123: 无 | E123: 无 | F123: 无 | G123: 无 | H123: A | I123: 1.15 | J123: 85 | K123: 76 | L123: 87.4 | M123: 95 | N123: 69 | O123: 90 | P123: 84 | Q123: 83 | R123: 85 | S123: 87 | U123: 80 | V123: 88 | X123: 87 | Y123: 81 | Z123: 93.15 | AB123: 92 | AC123: 75 | AD123: 69 | AE123: 87 | AG123: 94 | AI123: 77 | AJ123: 77 | AK123: 86 | AL123: 98.9 | AM123: 84 | AN123: 93 | AO123: 76 | AP123: 87 | AQ123: 86 | AR123: 81 | AS123: 82 | AU123: 98 | AV123: 85.8 | AW123: 63 | AX123: 72.45 | AY123: 84 | AZ123: 86 | BA123: 73 | BB123: 93 | BC123: 90 | BD123: 90 | BE123: 86 | BF123: 81 | BH123: 74 | BI123: 89 | BJ123: 82 | BK123: 78 | BL123: 88 | BM123: 82 | BN123: 87 | BP123: 81 | BQ123: 77 | BR123: 72 | BS123: 87 | BT123: 87 | BU123: 85 | BV123: 76 | BW123: 90 | BX123: 98 | BY123: 84.17918216 | CA123: 1 | CB123: 0 | CD123: 1 | CE123: 0 | CF123: 1 | CG123: 1 | CH123: 1 | CI123: 1 | CJ123: 1 | CL123: 1 | CM123: 1 | CN123: 0 | CO123: 1 | CP123: 1 | CR123: 0 | CS123: 1 | CT123: 0 | CU123: 0 | CV123: 1 | CX123: 1 | CY123: 0 | CZ123: 0 | DA123: 0 | DB123: 1 | DD123: 1 | DE123: 1 | DF123: 0 | DG123: 1 | DH123: 1 | DI123: 1 | DJ123: 1 | DL123: 1 | DM123: 1 | DN123: 0 | DP123: 1 | DQ123: 1 | DR123: 0 | DS123: 1 | DT123: 1 | DU123: 1 | DV123: 1 | DW123: 1 | DY123: 0 | DZ123: 1 | EA123: 1 | EB123: 0 | EC123: 1 | ED123: 1 | EE123: 1 | EG123: 1 | EH123: 0 | EI123: 0 | EJ123: 1 | EK123: 1 | EL123: 1 | EM123: 0 | EN123: 1 | EO123: 1 | EP123: 41 | EQ123: 74.55%
A127: 转专业的同学（学分有些不同，部分课程未修读） | Z127: =Y127*I127 -> 0
D128: 必修课挂科 | E128: 选修课挂科 | F128: 四级至今没过 | G128: 体测至今没过 | H128: 英语班级统计 | I128: 英语班级统计 | J128: 大学体育1 | K128: 大学英语1 | M128: 高等数学(1) | N128: 化工导论 | O128: 军事训练1 | P128: 入学教育与安全教育 | Q128: 思想道德修养与法律基础 | R128: 无机化学与分析化学 | S128: 中国近现代史纲要 | U128: VB程序设计（A） | V128: 大学体育（2） | W128: 大学物理C（1) | X128: 大学物理A(1) | Y128: 大学英语（2） | AA128: 高等数学B（2） | AB128: 高等数学A(2) | AC128: 无机与分析化学实验（1） | AD128: 有机化学 | AE128: 金工实习 | AG128: 大学体育（3） | AH128: 大学物理C（2） | AI128: 大学物理A(2) | AJ128: 大学物理实验（1） | AK128: 大学英语（3） | AM128: 马克思主义基本原理概论 | AN128: 毛泽东思想和中国特色主义理论体系概论（1） | AO128: 生物化学 | AP128: 无机与分析化学实验（2） | AQ128: 物理化学（1） | AR128: 线性代数 | AS128: 有机化学实验 | AU128: 大学体育（4） | AV128: 大学物理实验（2） | AW128: 大学英语（4） | AY128: 电工学及实验 | AZ128: 概率统计基础 | BA128: 化工原理（1） | BB128: 机械制图 | BC128: 计算机辅助绘图 | BD128: 毛泽东思想和中国特色主义理论体系概论（2） | BE128: 物理化学（2） | BF128: 物理化学实验（1） | BH128: 化工认识实习 | BI128: 化工安全与环境 | BJ128: 化工热力学 | BK128: 化工热力学实验 | BL128: 化工原理（2） | BM128: 化工原理实验（1） | BN128: 物理化学实验（2） | BP128: 化工装备与控制 | BQ128: 化学反应工程（双语） | BR128: 石油加工工程 | BS128: 化工原理课程设计 | BT128: 化工原理实验（II） | BU128: 化工设计概论 | BV128: 污染控制工程 | BW128: 化工应用软件 | BX128: 就业指导
J129: 1 | L129: 4 | M129: 6 | N129: 1 | O129: 2 | P129: 1 | Q129: 2 | R129: 4.5 | S129: 2 | U129: 3 | V129: 1 | W129: 3 | Z129: 4 | AA129: 5 | AB129: 6 | AC129: 2.5 | AD129: 4 | AE129: 2 | AG129: 1 | AH129: 3 | AI129: 4 | AJ129: 2 | AK129: 2 | AM129: 2 | AN129: 2 | AO129: 2.5 | AP129: 1 | AQ129: 3 | AR129: 3 | AS129: 2 | AU129: 1 | AV129: 1.5 | AW129: 2 | AY129: 2 | AZ129: 3 | BA129: 4 | BB129: 2.5 | BC129: 1 | BD129: 2 | BE129: 3 | BF129: 1 | BH129: 2 | BI129: 2 | BJ129: 3.5 | BK129: 0.5 | BL129: 4 | BM129: 1 | BN129: 1.5 | BP129: 3 | BQ129: 3.5 | BR129: 4.5 | BS129: 4 | BT129: 1 | BU129: 2 | BV129: 2 | BW129: 1.5 | BX129: 1 | CA129: 0 | CB129: 0 | CD129: 0 | CE129: 0 | CF129: 0 | CG129: 0 | CH129: 0 | CI129: 0 | CJ129: 0 | CL129: 0 | CM129: 0 | CN129: 0 | CO129: 0 | CP129: 0 | CR129: 0 | CS129: 0 | CT129: 0 | CU129: 0 | CV129: 0 | CX129: 0 | CY129: 0 | CZ129: 0 | DA129: 0 | DB129: 0 | DD129: 0 | DE129: 0 | DF129: 0 | DG129: 0 | DH129: 0 | DI129: 0 | DJ129: 0 | DL129: 0 | DM129: 0 | DN129: 0 | DP129: 0 | DQ129: 0 | DR129: 0 | DS129: 0 | DT129: 0 | DU129: 0 | DV129: 0 | DW129: 0 | DY129: 0 | DZ129: 0 | EA129: 0 | EB129: 0 | EC129: 0 | ED129: 0 | EE129: 0 | EG129: 0 | EH129: 0 | EI129: 0 | EJ129: 0 | EK129: 0 | EL129: 0 | EM129: 0 | EN129: 0 | EO129: 0 | EP129: =SUM(CA129:EO129) -> 0 | EQ129: =EP129/55 -> 0.00%
A130: 化工16-1班 | B130: 李江 | C130: 2016010863 | D130: 有 | E130: 无 | F130: 无 | G130: 无 | H130: B | I130: 1.1 | J130: 70 | K130: 70 | L130: =K130*I130 -> 77 | M130: 62 | O130: 91 | P130: 70 | Q130: 86 | R130: 83 | S130: 79 | U130: 94 | V130: 74 | W130: 73 | Y130: 85 | Z130: 93.5 | AB130: 63 | AD130: 72 | AE130: 92 | AG130: 75 | AH130: 61 | AJ130: 71 | AK130: 80 | AL130: =AK130*I130 -> 88 | AM130: 72 | AN130: 91 | AO130: 64 | AP130: 83 | AQ130: 68 | AR130: 61 | AS130: 84 | AU130: 81 | AV130: 81 | AW130: 78 | AX130: =AW130*I130 -> 85.8 | AY130: 68 | AZ130: 62 | BA130: 60 | BD130: 84 | BE130: 85 | BF130: 88 | BH130: 65 | BI130: 77 | BJ130: 62 | BK130: 73 | BL130: 73 | BM130: 84 | BN130: 85 | BP130: 72 | BQ130: 69 | BR130: 77 | BS130: 87 | BT130: 75 | BU130: 66 | BV130: 67 | BW130: 79 | BX130: 87 | CA130: 0 | CB130: 0 | CD130: 0 | CE130: 0 | CF130: 1 | CG130: 0 | CH130: 1 | CI130: 1 | CJ130: 0 | CL130: 1 | CM130: 0 | CN130: 0 | CO130: 0 | CP130: 1 | CR130: 0 | CS130: 0 | CT130: 0 | CU130: 0 | CV130: 1 | CX130: 0 | CY130: 0 | CZ130: 0 | DA130: 0 | DB130: 1 | DD130: 0 | DE130: 1 | DF130: 0 | DG130: 1 | DH130: 0 | DI130: 0 | DJ130: 1 | DL130: 1 | DM130: 1 | DN130: 0 | DP130: 0 | DQ130: 0 | DR130: 0 | DS130: 0 | DT130: 0 | DU130: 1 | DV130: 1 | DW130: 1 | DY130: 0 | DZ130: 0 | EA130: 0 | EB130: 0 | EC130: 0 | ED130: 1 | EE130: 1 | EG130: 0 | EH130: 0 | EI130: 0 | EJ130: 1 | EK130: 0 | EL130: 0 | EM130: 0 | EN130: 0 | EO130: 1 | EP130: 19 | EQ130: 34.55%
A131: 化工16-3班 | B131: 高琳琳 | C131: 2016011080 | D131: 无 | E131: 无 | F131: 无 | G131: 无 | H131: A | I131: 1.15 | J131: 73.0 | K131: 76.0 | L131: 87.4 | M131: 63.0 | O131: 96.0 | P131: 85.0 | Q131: 88.0 | R131: 76.0 | S131: 88.0 | V131: 91.0 | W131: 70.0 | Y131: 80.0 | Z131: 92 | AB131: 82.0 | AE131: 91.0 | AG131: 92.0 | AH131: 66.0 | AJ131: 67.0 | AK131: 75.0 | AL131: 86.25 | AM131: 77.0 | AN131: 91.0 | AO131: 76.0 | AP131: 88.0 | AQ131: 65.0 | AR131: 81.0 | AS131: 81.0 | AU131: 83.0 | AV131: 85.0 | AW131: 80.0 | AX131: =AW131*I131 -> 92 | AY131: 65.0 | AZ131: 64.0 | BA131: 60.0 | BB131: 76.0 | BC131: 84.0 | BD131: 90.0 | BE131: 77.0 | BF131: 82.0 | BH131: 85.0 | BI131: 75.0 | BJ131: 60.0 | BK131: 80.0 | BL131: 64.0 | BM131: 69.0 | BN131: 84.0 | BP131: 84 | BQ131: 71 | BR131: 83 | BS131: 86 | BT131: 91 | BU131: 80 | BV131: 90 | BW131: 85 | BX131: 97 | CA131: 0 | CB131: 0 | CD131: 0 | CE131: 0 | CF131: 1 | CG131: 1 | CH131: 1 | CI131: 0 | CJ131: 1 | CL131: 0 | CM131: 1 | CN131: 0 | CO131: 0 | CP131: 1 | CR131: 0 | CS131: 1 | CT131: 0 | CU131: 0 | CV131: 1 | CX131: 1 | CY131: 0 | CZ131: 0 | DA131: 0 | DB131: 0 | DD131: 0 | DE131: 1 | DF131: 0 | DG131: 1 | DH131: 0 | DI131: 1 | DJ131: 1 | DL131: 1 | DM131: 1 | DN131: 1 | DP131: 0 | DQ131: 0 | DR131: 0 | DS131: 0 | DT131: 1 | DU131: 1 | DV131: 0 | DW131: 1 | DY131: 1 | DZ131: 0 | EA131: 0 | EB131: 1 | EC131: 0 | ED131: 0 | EE131: 1 | EG131: 1 | EH131: 0 | EI131: 1 | EJ131: 1 | EK131: 1 | EL131: 1 | EM131: 1 | EN131: 1 | EO131: 1 | EP131: 30 | EQ131: 54.55%
A132: 化工16–2班 | B132: 冯源 | C132: 2016010076 | D132: 无 | E132: 无 | F132: 无 | G132: 无 | H132: B | I132: 1.1 | J132: 70 | K132: 71 | L132: 78.1 | M132: 73 | O132: 90 | P132: 71 | Q132: 75 | R132: 90 | S132: 90 | V132: 85 | W132: 85 | Y132: 76 | Z132: 83.6 | AA132: 85 | AE132: 84 | AG132: 69 | AH132: 70 | AJ132: 72 | AK132: 77 | AL132: 84.7 | AM132: 81 | AN132: 90 | AO132: 72 | AP132: 78 | AQ132: 64 | AR132: 70 | AS132: 81 | AU132: 79 | AW132: 89 | AX132: 97.9 | AY132: 78 | AZ132: 87 | BA132: 77 | BB132: 72 | BC132: 86 | BD132: 84 | BE132: 91 | BF132: 84 | BH132: 77 | BI132: 87 | BJ132: 75 | BK132: 80 | BL132: 82 | BM132: 78 | BN132: 87 | BP132: 69 | BQ132: 91 | BR132: 77 | BS132: 83 | BT132: 84 | BU132: 80 | BV132: 72 | BW132: 80 | BX132: 87 | CA132: 0 | CB132: 0 | CD132: 0 | CE132: 0 | CF132: 1 | CG132: 0 | CH132: 0 | CI132: 1 | CJ132: 1 | CL132: 0 | CM132: 1 | CN132: 1 | CO132: 0 | CP132: 0 | CR132: 1 | CS132: 0 | CT132: 0 | CU132: 0 | CV132: 1 | CX132: 0 | CY132: 0 | CZ132: 0 | DA132: 0 | DB132: 0 | DD132: 1 | DE132: 1 | DF132: 0 | DG132: 0 | DH132: 0 | DI132: 0 | DJ132: 1 | DL132: 0 | DM132: 0 | DN132: 1 | DP132: 0 | DQ132: 1 | DR132: 0 | DS132: 0 | DT132: 1 | DU132: 1 | DV132: 1 | DW132: 1 | DY132: 0 | DZ132: 1 | EA132: 0 | EB132: 1 | EC132: 1 | ED132: 0 | EE132: 1 | EG132: 0 | EH132: 1 | EI132: 0 | EJ132: 1 | EK132: 1 | EL132: 1 | EM132: 0 | EN132: 1 | EO132: 1 | EP132: 26 | EQ132: 47.27%
A133: 化工16–2班 | B133: 陈龙 | C133: 2016010104 | D133: 有 | E133: 无 | F133: 有 | G133: 有 | H133: B | I133: 1.1 | J133: 60 | K133: 71 | L133: 78.1 | M133: 64 | N133: 93 | O133: 91 | P133: 83 | Q133: 87 | R133: 82 | S133: 82 | V133: 76 | W133: 60 | Y133: 66 | Z133: 72.6 | AA133: 60 | AE133: 86 | AG133: 70 | AH133: 66 | AJ133: 66 | AK133: 76 | AL133: 83.6 | AM133: 79 | AN133: 91 | AO133: 78 | AP133: 77 | AQ133: 65 | AR133: 67 | AS133: 80 | AU133: 60 | AW133: 61 | AX133: 67.1 | AY133: 65 | AZ133: 60 | BA133: 27 | BB133: 39 | BC133: 60 | BD133: 83 | BE133: 63 | BF133: 85 | BH133: 62 | BI133: 78 | BJ133: 68 | BK133: 77 | BL133: 55 | BM133: 71 | BN133: 82 | BP133: 70 | BQ133: 62 | BR133: 71 | BS133: 80 | BT133: 75 | BU133: 79 | BV133: 75 | BW133: 69 | BX133: 80 | CA133: 0 | CB133: 0 | CD133: 0 | CE133: 1 | CF133: 1 | CG133: 1 | CH133: 1 | CI133: 1 | CJ133: 1 | CL133: 0 | CM133: 0 | CN133: 0 | CO133: 0 | CP133: 0 | CR133: 0 | CS133: 0 | CT133: 0 | CU133: 0 | CV133: 1 | CX133: 0 | CY133: 0 | CZ133: 0 | DA133: 0 | DB133: 0 | DD133: 0 | DE133: 1 | DF133: 0 | DG133: 0 | DH133: 0 | DI133: 0 | DJ133: 1 | DL133: 0 | DM133: 0 | DN133: 0 | DP133: 0 | DQ133: 0 | DR133: 0 | DS133: 0 | DT133: 0 | DU133: 1 | DV133: 0 | DW133: 1 | DY133: 0 | DZ133: 0 | EA133: 0 | EB133: 0 | EC133: 0 | ED133: 0 | EE133: 1 | EG133: 0 | EH133: 0 | EI133: 0 | EJ133: 1 | EK133: 0 | EL133: 0 | EM133: 0 | EN133: 0 | EO133: 1 | EP133: 14 | EQ133: 25.45%
A134: 化工16–2班 | B134: 周敬泽 | C134: 2016010158 | D134: 有 | E134: 有 | F134: 有 | G134: 无 | H134: B | I134: 1.1 | J134: 79 | K134: 67 | L134: 73.7 | M134: 67 | N134: 71 | O134: 91 | P134: 90 | Q134: 82 | R134: 76 | S134: 79 | V134: 82 | W134: 64 | Y134: 67 | Z134: 73.7 | AA134: 81 | AB134: 6 | AC134: 80 | AE134: 91 | AG134: 80 | AH134: 71 | AJ134: 74 | AK134: 82 | AL134: 90.2 | AM134: 69 | AN134: 92 | AO134: 69 | AP134: 82 | AQ134: 64 | AR134: 65 | AS134: 83 | AU134: 73 | AV134: 80 | AW134: 68 | AX134: 74.8 | AY134: 56 | AZ134: 66 | BA134: 21 | BB134: 77 | BC134: 65 | BD134: 83 | BE134: 74 | BF134: 81 | BH134: 73 | BI134: 84 | BJ134: 61 | BK134: 77 | BL134: 67 | BM134: 71 | BN134: 86 | BP134: 54 | BQ134: 80 | BR134: 74 | BS134: 85 | BT134: 72 | BU134: 82 | BV134: 71 | BW134: 72 | BX134: 85 | CA134: 0 | CB134: =IF(K134>=80,1,0) -> 0 | CD134: =IF(M134>=80,1,0) -> 0 | CE134: =IF(N134>=80,1,0) -> 0 | CF134: =IF(O134>=80,1,0) -> 1 | CG134: =IF(P134>=80,1,0) -> 1 | CH134: =IF(Q134>=80,1,0) -> 1 | CI134: =IF(R134>=80,1,0) -> 0 | CJ134: =IF(S134>=80,1,0) -> 0 | CL134: =IF(U134>=80,1,0) -> 0 | CM134: =IF(V134>=80,1,0) -> 1 | CN134: =IF(W134>=80,1,0) -> 0 | CO134: =IF(X134>=80,1,0) -> 0 | CP134: =IF(Y134>=80,1,0) -> 0 | CR134: =IF(AA134>=80,1,0) -> 1 | CS134: =IF(AB134>=80,1,0) -> 0 | CT134: =IF(AC134>=80,1,0) -> 1 | CU134: =IF(AD134>=80,1,0) -> 0 | CV134: =IF(AE134>=80,1,0) -> 1 | CX134: =IF(AG134>=80,1,0) -> 1 | CY134: =IF(AH134>=80,1,0) -> 0 | CZ134: =IF(AI134>=80,1,0) -> 0 | DA134: =IF(AJ134>=80,1,0) -> 0 | DB134: =IF(AK134>=80,1,0) -> 1 | DD134: =IF(AM134>=80,1,0) -> 0 | DE134: =IF(AN134>=80,1,0) -> 1 | DF134: =IF(AO134>=80,1,0) -> 0 | DG134: =IF(AP134>=80,1,0) -> 1 | DH134: =IF(AQ134>=80,1,0) -> 0 | DI134: =IF(AR134>=80,1,0) -> 0 | DJ134: =IF(AS134>=80,1,0) -> 1 | DL134: =IF(AU134>=80,1,0) -> 0 | DM134: =IF(AV134>=80,1,0) -> 1 | DN134: =IF(AW134>=80,1,0) -> 0 | DP134: =IF(AY134>=80,1,0) -> 0 | DQ134: =IF(AZ134>=80,1,0) -> 0 | DR134: =IF(BA134>=80,1,0) -> 0 | DS134: =IF(BB134>=80,1,0) -> 0 | DT134: =IF(BC134>=80,1,0) -> 0 | DU134: =IF(BD134>=80,1,0) -> 1 | DV134: =IF(BE134>=80,1,0) -> 0 | DW134: =IF(BF134>=80,1,0) -> 1 | DY134: =IF(BH134>=80,1,0) -> 0 | DZ134: =IF(BI134>=80,1,0) -> 1 | EA134: =IF(BJ134>=80,1,0) -> 0 | EB134: =IF(BK134>=80,1,0) -> 0 | EC134: =IF(BL134>=80,1,0) -> 0 | ED134: =IF(BM134>=80,1,0) -> 0 | EE134: =IF(BN134>=80,1,0) -> 1 | EG134: =IF(BP134>=80,1,0) -> 0 | EH134: =IF(BQ134>=80,1,0) -> 1 | EI134: =IF(BR134>=80,1,0) -> 0 | EJ134: =IF(BS134>=80,1,0) -> 1 | EK134: =IF(BT134>=80,1,0) -> 0 | EL134: =IF(BU134>=80,1,0) -> 1 | EM134: =IF(BV134>=80,1,0) -> 0 | EN134: =IF(BW134>=80,1,0) -> 0 | EO134: =IF(BX134>=80,1,0) -> 1 | EP134: 21 | EQ134: 38.18%
A135: 化工16–2班 | B135: 万振扬 | C135: 2015010841 | D135: 有 | E135: 有 | F135: 无 | G135: 无 | H135: A | I135: 1.15 | J135: 72 | K135: 82 | L135: 94.3 | M135: 80 | N135: 95 | O135: 87.8 | P135: 83 | Q135: 92 | R135: 77 | S135: 81 | U135: 0 | V135: 60 | W135: 74 | Y135: 60 | Z135: 69 | AA135: 60 | AC135: 77 | AD135: 0 | AE135: 88 | AG135: 80 | AH135: 0 | AJ135: 0 | AK135: 60 | AL135: 69 | AM135: 60 | AN135: 60 | AO135: 0 | AP135: 72 | AQ135: 5 | AR135: 0 | AS135: 60 | AU135: 60 | AV135: 0 | AW135: 0 | AX135: 0 | AY135: 0 | AZ135: 28 | BA135: 60 | BB135: 72 | BC135: 60 | BD135: 60 | BE135: 5 | BF135: 60 | BH135: 54 | BI135: 60 | BJ135: 60 | BK135: 60 | BL135: 52 | BM135: 61 | BN135: 60 | BQ135: 65 | BS135: 0 | BT135: 60 | BU135: 78 | BV135: 69 | BW135: 0 | CG135: 64.2994709
A136: 休学的同学 | L136: 0
D137: 必修课挂科 | E137: 选修课挂科 | F137: 四级至今没过 | G137: 体测至今没过 | J137: 大学体育1 | K137: 大学英语视听说1 | M137: 大学英语1 | N137: 高等数学(1) | O137: 化工导论 | P137: 军事训练1 | Q137: 入学教育与安全教育 | R137: 思想道德修养与法律基础 | S137: 无机化学与分析化学 | T137: 中国近现代史纲要 | V137: VB程序设计（A） | W137: 大学体育（2） | X137: 大学物理C（1) | Y137: 大学物理A(1) | AA137: 大学英语（2） | AB137: 大学英语视听说2 | AC137: 高等数学B（2） | AD137: 高等数学A(2) | AE137: 无机与分析化学实验（1） | AF137: 化学实验1 | AG137: 有机化学 | AH137: 金工实习 | AJ137: 大学体育（3） | AK137: 大学物理C（2） | AM137: 大学物理A(2) | AN137: 大学物理实验（1） | AO137: 大学英语（3） | AP137: 马克思主义基本原理概论 | AQ137: 毛泽东思想和中国特色主义理论体系概论（1） | AR137: 生物化学 | AS137: 无机与分析化学实验（2） | AT137: 物理化学（1） | AU137: 化学实验2 | AV137: 线性代数 | AW137: 有机化学实验 | AZ137: 大学体育（4） | BA137: 大学物理实验（2） | BB137: 大学英语（4） | BC137: 电工学及实验 | BD137: 概率统计基础 | BE137: 化工原理（1） | BF137: 机械制图 | BG137: 计算机辅助绘图 | BH137: 毛泽东思想和中国特色主义理论体系概论（2） | BI137: 物理化学（2） | BJ137: 化学实验3 | BK137: 物理化学实验（1） | BM137: 化工认识实习 | BN137: 化工安全与环境 | BZ137: 化工热力学 | CA137: 化工热力学实验 | CB137: 化工热力学 | CC137: 化工原理（2） | CD137: 化学实验4 | CE137: 化工原理实验（1） | CF137: 物理化学实验（2）
J138: 1 | K138: 2 | L138: 0 | M138: 2 | N138: 6 | O138: 1 | P138: 2 | Q138: 1 | R138: 2 | S138: 4.5 | T138: 2 | V138: 3 | W138: 1 | X138: 3 | Y138: 4 | AA138: 2 | AB138: 2 | AC138: 5 | AD138: 6 | AE138: 2.5 | AF138: 2.5 | AG138: 4 | AH138: 2 | AJ138: 1 | AK138: 3 | AM138: 4 | AN138: 2 | AO138: 2 | AP138: 2 | AQ138: 2 | AR138: 2.5 | AS138: 1 | AT138: 3 | AU138: 2 | AV138: 3 | AW138: 2 | AZ138: 1 | BA138: 1.5 | BB138: 2 | BC138: 2 | BD138: 3 | BE138: 4 | BF138: 2.5 | BG138: 1 | BH138: 2 | BI138: 3 | BJ138: 1.5 | BK138: 1 | BM138: 2 | BN138: 2 | BZ138: 3.5 | CA138: 0.5 | CB138: 4 | CC138: 4 | CD138: 2 | CE138: 1 | CF138: 1.5
A139: 化工16-1班 | B139: 乔丹 | C139: 2015010471 | D139: 有 | E139: 有 | F139: 无 | G139: 无 | H139: C | I139: 1 | J139: 60 | K139: 80 | L139: 80 | M139: 63 | N139: 60 | O139: 94 | P139: 89.4 | Q139: 76 | R139: 84 | S139: 43 | T139: 91 | V139: 未修读 | W139: 73 | X139: 68 | AA139: 63 | AB139: 78 | AC139: 60 | AF139: 72 | AG139: 50 | AH139: 87 | AJ139: 75 | AK139: 60 | AN139: 87.96 | AO139: 76 | AP139: 82 | AQ139: 72 | AR139: 73 | AT139: 43 | AU139: 87 | AV139: 80 | AZ139: 90 | BA139: 87 | BB139: 84 | BC139: 未修读 | BD139: 76 | BE139: 60 | BF139: 60 | BG139: 75 | BH139: 60 | BI139: 31 | BJ139: 87 | BM139: 60 | BN139: 61 | BP139: 64 | BQ139: 64 | BR139: 69 | BS139: 0 | BT139: 0 | BU139: 0 | BV139: 80 | BW139: 0 | BX139: 0 | CB139: 60 | CC139: 24 | CD139: 75 | CE139: 76 | CG139: 67.68516129
A140: 标红为已修读的15级培养方案课程
A141: 化工16-3班 | B141: 吴昊 | C141: 2015010493 | D141: 有 | E141: 无 | F141: 无 | G141: 无 | H141: B | I141: 1.1 | J141: 76 | K141: 72 | M141: 69 | N141: 65 | O141: 84 | P141: 91.4 | Q141: 66 | R141: 88 | S141: 74 | T141: 89 | V141: 未修读 | W141: 62 | X141: 81 | AA141: 65 | AB141: 73 | AC141: 60 | AF141: 85 | AG141: 60 | AH141: 87 | AJ141: 82 | AK141: 65 | AN141: 69 | AO141: 68 | AP141: 80 | AQ141: 79 | AR141: 未修读 | AT141: 73 | AU141: 83 | AV141: 61 | AZ141: 74 | BA141: 69 | BB141: 71 | BC141: 未修读 | BD141: 60 | BE141: 60 | BF141: 80 | BG141: 97 | BH141: 73 | BI141: 80 | BJ141: 84 | BM141: 60 | BN141: 76 | BP141: 47 | BQ141: 66 | BR141: 70 | BS141: 66 | BT141: 87 | BU141: 70 | BV141: 未修读 | BW141: 64 | BX141: 64 | CB141: 52 | CC141: 66 | CD141: 78 | CE141: 87
A142: 化工16-3班汤宝林 | C142: 2015010491 | D142: 有 | E142: 有 | F142: 无 | G142: 无 | H142: B | I142: 1.1 | J142: 80 | K142: 72 | M142: 69 | N142: 66 | O142: 79 | P142: 91.6 | Q142: 76 | R142: 83 | S142: 75 | T142: 86 | V142: 未修读 | W142: 71 | X142: 62 | AA142: 67 | AB142: 70 | AC142: 63 | AF142: 73 | AG142: 60 | AH142: 88 | AJ142: 83 | AK142: 63 | AN142: 79.1 | AO142: 61 | AP142: 80 | AQ142: 84 | AR142: 未修读 | AU142: 83 | AV142: 60 | AZ142: 86 | BA142: 85.6 | BB142: 74 | BC142: 69 | BD142: 60 | BE142: 62 | BF142: 66 | BG142: 73 | BH142: 83 | BI142: 62 | BJ142: 84 | BM142: 65 | BN142: 66 | BQ142: 60 | BR142: 73 | BS142: 74 | BT142: 70 | BU142: 65 | BV142: 63 | BW142: 0 | BX142: 81 | CB142: 46 | CC142: 58 | CD142: 71 | CE142: 70
A143: 化工16-3班 | B143: 张旭斌 | C143: 2015010465 | D143: 有 | E143: 无 | F143: 无 | G143: 有 | H143: B | I143: 1.1 | J143: 75 | K143: 68 | N143: 62 | O143: 91 | P143: 89 | Q143: 77 | R143: 62 | S143: 84 | U143: 60 | V143: 72 | W143: 63 | AA143: 63 | AE143: 86 | AG143: 72 | AH143: 69 | AJ143: 70 | AK143: 73 | AM143: 82 | AN143: 83 | AO143: 61 | AQ143: 60 | AR143: 69 | AU143: 73 | AV143: 81.94 | AW143: 69 | AY143: 67 | AZ143: 76 | BA143: 60 | BB143: 61 | BC143: 69 | BD143: 72 | BE143: 74 | BH143: 60 | BI143: 68 | BJ143: 70 | BK143: 74 | BL143: 75 | BM143: 76 | BP143: 60 | BQ143: 68 | BR143: 75 | BS143: 80 | BT143: 75 | BU143: 63 | BV143: 69 | BW143: 62 | BX143: 84
J145: =J141*J$138 -> 76 | K145: =K141*K$138 -> 144 | L145: 0 | M145: 138 | N145: 390 | O145: 84 | P145: 182.8 | Q145: 66 | R145: 176 | S145: 333 | T145: 178 | U145: 0 | V145: 0 | W145: 62 | X145: 243 | Y145: 0 | Z145: 0 | AA145: 130 | AB145: 146 | AC145: 300 | AD145: 0 | AE145: 0 | AF145: 212.5 | AG145: 240 | AH145: 174 | AI145: 0 | AJ145: 82 | AK145: 195 | AL145: 0 | AM145: 0 | AN145: 138 | AO145: 136 | AP145: 160 | AQ145: 158 | AR145: 0 | AS145: 0 | AT145: 219 | AU145: 166 | AV145: 183 | AW145: 0 | AX145: 0 | AY145: 0 | AZ145: 74 | BA145: 103.5 | BB145: 142 | BC145: 0 | BD145: 180 | BE145: 240 | BF145: 200 | BG145: 97 | BH145: 146 | BI145: 240 | BJ145: 126 | BK145: 0 | BL145: 0 | BM145: 120 | BN145: 152 | BO145: 0 | BP145: 0 | BQ145: 0 | BR145: 0 | BS145: 0 | BT145: 0 | BU145: 0 | BV145: 0 | BW145: =BW141*BW$138 -> 0 | BX145: 0 | BY145: 0 | BZ145: 0 | CA145: 0 | CB145: 208 | CC145: 264 | CD145: 156 | CE145: 87 | CF145: 0 | CG145: =SUM(J145:CF145) -> 7247.8 | CH145: =CG145/CG149 -> 71.40689655
J146: =J142*J$138 -> 80 | K146: 144 | L146: 0 | M146: 138 | N146: 396 | O146: 79 | P146: 183.2 | Q146: 76 | R146: 166 | S146: 337.5 | T146: 172 | U146: 0 | V146: 0 | W146: 71 | X146: 186 | Y146: 0 | Z146: 0 | AA146: 134 | AB146: 140 | AC146: 315 | AD146: 0 | AE146: 0 | AF146: 182.5 | AG146: 240 | AH146: 176 | AI146: 0 | AJ146: 83 | AK146: 189 | AL146: 0 | AM146: 0 | AN146: 158.2 | AO146: 122 | AP146: 160 | AQ146: 168 | AR146: 0 | AS146: 0 | AT146: 0 | AU146: 166 | AV146: 180 | AW146: 0 | AX146: 0 | AY146: 0 | AZ146: 86 | BA146: 128.4 | BB146: 148 | BC146: 138 | BD146: 180 | BE146: 248 | BF146: 165 | BG146: 73 | BH146: 166 | BI146: 186 | BJ146: 126 | BK146: 0 | BL146: 0 | BM146: 130 | BN146: 132 | BO146: 0 | BP146: 0 | BQ146: 0 | BR146: 0 | BS146: 0 | BT146: 0 | BU146: 0 | BV146: 0 | BW146: 0 | BX146: 0 | BY146: 0 | BZ146: 0 | CA146: 0 | CB146: 184 | CC146: 232 | CD146: 142 | CE146: 70 | CF146: 0 | CG146: =SUM(J146:CF146) -> 6976.8 | CH146: =CG146/CG150 -> 69.42089552
J147: 75 | K147: =K143*K$138 -> 136 | L147: 0 | M147: 0 | N147: 372 | O147: 91 | P147: 178 | Q147: 77 | R147: 124 | S147: 378 | T147: 0 | U147: 0 | V147: 216 | W147: 63 | X147: 0 | Y147: 0 | Z147: 0 | AA147: 126 | AB147: 0 | AC147: 0 | AD147: 0 | AE147: 215 | AF147: 0 | AG147: 288 | AH147: 138 | AI147: 0 | AJ147: 70 | AK147: 219 | AL147: 0 | AM147: 328 | AN147: 166 | AO147: 122 | AP147: 0 | AQ147: 120 | AR147: 172.5 | AS147: 0 | AT147: 0 | AU147: 146 | AV147: 245.82 | AW147: 138 | AX147: 0 | AY147: 0 | AZ147: 76 | BA147: 90 | BB147: 122 | BC147: 138 | BD147: 216 | BE147: 296 | BF147: 0 | BG147: 0 | BH147: 120 | BI147: 204 | BJ147: 105 | BK147: 74 | BL147: 0 | BM147: 152 | BN147: 0 | BO147: 0 | BP147: 0 | BQ147: 0 | BR147: 0 | BS147: 0 | BT147: 0 | BU147: 0 | BV147: 0 | BW147: 0 | BX147: 0 | BY147: 0 | BZ147: 0 | CA147: 0 | CB147: 0 | CC147: 0 | CD147: 0 | CE147: 0 | CF147: 0 | CG147: 5797.32 | CH147: 72.01639752
J149: =IF(J145>0,J$138,0) -> 1 | K149: =IF(K145>0,K$138,0) -> 2 | L149: 0 | M149: 2 | N149: 6 | O149: 1 | P149: 2 | Q149: 1 | R149: 2 | S149: 4.5 | T149: 2 | U149: 0 | V149: 0 | W149: 1 | X149: 3 | Y149: 0 | Z149: 0 | AA149: 2 | AB149: 2 | AC149: 5 | AD149: 0 | AE149: 0 | AF149: 2.5 | AG149: 4 | AH149: 2 | AI149: 0 | AJ149: 1 | AK149: 3 | AL149: 0 | AM149: 0 | AN149: 2 | AO149: 2 | AP149: 2 | AQ149: 2 | AR149: 0 | AS149: 0 | AT149: 3 | AU149: 2 | AV149: 3 | AW149: 0 | AX149: 0 | AY149: 0 | AZ149: 1 | BA149: 1.5 | BB149: 2 | BC149: 0 | BD149: 3 | BE149: 4 | BF149: 2.5 | BG149: 1 | BH149: 2 | BI149: 3 | BJ149: 1.5 | BK149: 0 | BL149: 0 | BM149: 2 | BN149: 2 | BO149: 0 | BP149: 0 | BQ149: 0 | BR149: 0 | BS149: 0 | BT149: 0 | BU149: 0 | BV149: 0 | BW149: =IF(BW145>0,BW$138,0) -> 0 | BX149: 0 | BY149: 0 | BZ149: 0 | CA149: 0 | CB149: 4 | CC149: 4 | CD149: 2 | CE149: 1 | CF149: 0 | CG149: 101.5
J150: =IF(J146>0,J$138,0) -> 1 | K150: 2 | L150: 0 | M150: 2 | N150: 6 | O150: 1 | P150: 2 | Q150: 1 | R150: 2 | S150: 4.5 | T150: 2 | U150: 0 | V150: 0 | W150: 1 | X150: 3 | Y150: 0 | Z150: 0 | AA150: 2 | AB150: 2 | AC150: 5 | AD150: 0 | AE150: 0 | AF150: 2.5 | AG150: 4 | AH150: 2 | AI150: 0 | AJ150: 1 | AK150: 3 | AL150: 0 | AM150: 0 | AN150: 2 | AO150: 2 | AP150: 2 | AQ150: 2 | AR150: 0 | AS150: 0 | AT150: 0 | AU150: 2 | AV150: 3 | AW150: 0 | AX150: 0 | AY150: 0 | AZ150: 1 | BA150: 1.5 | BB150: 2 | BC150: 2 | BD150: 3 | BE150: 4 | BF150: 2.5 | BG150: 1 | BH150: 2 | BI150: 3 | BJ150: 1.5 | BK150: 0 | BL150: 0 | BM150: 2 | BN150: 2 | BO150: 0 | BP150: 0 | BQ150: 0 | BR150: 0 | BS150: 0 | BT150: 0 | BU150: 0 | BV150: 0 | BW150: 0 | BX150: 0 | BY150: 0 | BZ150: 0 | CA150: 0 | CB150: 4 | CC150: 4 | CD150: 2 | CE150: 1 | CF150: 0 | CG150: 100.5
J151: 1 | K151: =IF(K147>0,K$138,0) -> 2 | L151: 0 | M151: 0 | N151: 6 | O151: 1 | P151: 2 | Q151: 1 | R151: 2 | S151: 4.5 | T151: 0 | U151: 0 | V151: 3 | W151: 1 | X151: 0 | Y151: 0 | Z151: 0 | AA151: 2 | AB151: 0 | AC151: 0 | AD151: 0 | AE151: 2.5 | AF151: 0 | AG151: 4 | AH151: 2 | AI151: 0 | AJ151: 1 | AK151: 3 | AL151: 0 | AM151: 4 | AN151: 2 | AO151: 2 | AP151: 0 | AQ151: 2 | AR151: 2.5 | AS151: 0 | AT151: 0 | AU151: 2 | AV151: 3 | AW151: 2 | AX151: 0 | AY151: 0 | AZ151: 1 | BA151: 1.5 | BB151: 2 | BC151: 2 | BD151: 3 | BE151: 4 | BF151: 0 | BG151: 0 | BH151: 2 | BI151: 3 | BJ151: 1.5 | BK151: 1 | BL151: 0 | BM151: 2 | BN151: 0 | BO151: 0 | BP151: 0 | BQ151: 0 | BR151: 0 | BS151: 0 | BT151: 0 | BU151: 0 | BV151: 0 | BW151: 0 | BX151: 0 | BY151: 0 | BZ151: 0 | CA151: 0 | CB151: 0 | CC151: 0 | CD151: 0 | CE151: 0 | CF151: 0 | CG151: 80.5
